Service Delivery Area(T),Service Delivery Team(T),ExpenditureGroup(T),Account(T),Supplier Name(T),Trans Date,Amount
Adult Social Care,ASC Prevention & Enablement,Supplies & Services,Aids & Appliances,PRISM MEDICAL WESTHOLME DIVISION,21/07/2021,101.28
Adult Social Care,ASC Prevention & Enablement,Supplies & Services,Other Services,VISS Sign Language Interpreting Service,12/07/2021,115
Adult Social Care,ASC Prevention & Enablement,Supplies & Services,Aids & Appliances,Easylink,07/07/2021,115.2
Adult Social Care,ASC Prevention & Enablement,Supplies & Services,Aids & Appliances,Easylink,21/07/2021,153
Adult Social Care,ASC Prevention & Enablement,Supplies & Services,Aids & Appliances,OSPREY HEALTHCARE LTD,02/07/2021,174
Adult Social Care,ASC Prevention & Enablement,Supplies & Services,Aids & Appliances,Medequip,21/07/2021,195
Adult Social Care,ASC Prevention & Enablement,Supplies & Services,Equipment - Repair,Closomat Limited,19/07/2021,219
Adult Social Care,ASC Prevention & Enablement,Supplies & Services,Aids & Appliances,MIDSHIRES MOBILITY GROUP,22/07/2021,257
Adult Social Care,ASC Prevention & Enablement,Supplies & Services,Aids & Appliances, NOTTINGHAM REHAB LTD,28/07/2021,316.65
Adult Social Care,ASC Prevention & Enablement,Supplies & Services,Aids & Appliances, NOTTINGHAM REHAB LTD,28/07/2021,316.65
Adult Social Care,ASC Prevention & Enablement,Supplies & Services,Aids & Appliances,OSPREY HEALTHCARE LTD,30/07/2021,338
Adult Social Care,ASC Prevention & Enablement,Supplies & Services,Aids & Appliances,SHROPSHIRE & WREKIN FIRE AUTHORITY,05/07/2021,600
Adult Social Care,ASC Prevention & Enablement,Supplies & Services,Equipment - Purchase,1st Call Mobility,09/07/2021,600
Adult Social Care,ASC Prevention & Enablement,Supplies & Services,Aids & Appliances, NOTTINGHAM REHAB LTD,02/07/2021,612.72
Adult Social Care,ASC Prevention & Enablement,Supplies & Services,Aids & Appliances,OSPREY HEALTHCARE LTD,21/07/2021,628.6
Adult Social Care,ASC Prevention & Enablement,Supplies & Services,Aids & Appliances,Possum Ltd,21/07/2021,765
Adult Social Care,ASC Prevention & Enablement,Supplies & Services,Equipment - Purchase,1st Call Mobility,09/07/2021,780
Adult Social Care,ASC Prevention & Enablement,Supplies & Services,Aids & Appliances,Possum Ltd,21/07/2021,895
Adult Social Care,ASC Prevention & Enablement,Supplies & Services,Aids & Appliances,1st Call Mobility,09/07/2021,1050
Adult Social Care,ASC Prevention & Enablement,Supplies & Services,Aids & Appliances,PivoTell Ltd,22/07/2021,1900
Adult Social Care,ASC Prevention & Enablement,Supplies & Services,Aids & Appliances,Canary Care Global Limited,06/07/2021,2277
Adult Social Care,ASC Prevention & Enablement,Supplies & Services,Aids & Appliances,1st Call Mobility,09/07/2021,3450
Adult Social Care,ASC Prevention & Enablement,Supplies & Services,Aids & Appliances,SHROPSHIRE COMMUNITY HEALTH NHS TRUST,21/07/2021,6301.66
Adult Social Care,ASC Prevention & Enablement,Third Party Payments,Homecare Expenditure,Serenity Always Healthcare,09/07/2021,695.24
Adult Social Care,"Commissioning, Procurement & Brokerage",Supplies & Services,Other Grants (Expenses),WE ARE THE CARE COMPANY LTD,25/07/2021,115.5
Adult Social Care,"Commissioning, Procurement & Brokerage",Supplies & Services,Other Grants (Expenses),WE ARE THE CARE COMPANY LTD,25/07/2021,132
Adult Social Care,"Commissioning, Procurement & Brokerage",Supplies & Services,Other Grants (Expenses),WE ARE THE CARE COMPANY LTD,25/07/2021,132
Adult Social Care,"Commissioning, Procurement & Brokerage",Supplies & Services,Other Grants (Expenses),WE ARE THE CARE COMPANY LTD,25/07/2021,132
Adult Social Care,"Commissioning, Procurement & Brokerage",Supplies & Services,Other Grants (Expenses),ANCHOR HOUSING TRUST,01/07/2021,133.33
Adult Social Care,"Commissioning, Procurement & Brokerage",Supplies & Services,Other Grants (Expenses),WE ARE THE CARE COMPANY LTD,25/07/2021,140.25
Adult Social Care,"Commissioning, Procurement & Brokerage",Supplies & Services,Other Grants (Expenses),WE ARE THE CARE COMPANY LTD,05/07/2021,151
Adult Social Care,"Commissioning, Procurement & Brokerage",Supplies & Services,Other Grants (Expenses),WE ARE THE CARE COMPANY LTD,29/07/2021,160
Adult Social Care,"Commissioning, Procurement & Brokerage",Supplies & Services,Interest Charges from Late Payment,M T Support Ltd,22/07/2021,335.87
Adult Social Care,"Commissioning, Procurement & Brokerage",Supplies & Services,Other Grants (Expenses),OLD B HOMES,01/07/2021,433.33
Adult Social Care,"Commissioning, Procurement & Brokerage",Supplies & Services,Other Grants (Expenses),SANCTUARY HOUSING ASSOCIATION ,01/07/2021,610.7
Adult Social Care,"Commissioning, Procurement & Brokerage",Supplies & Services,Other Grants (Expenses),HANOVER HOUSING ASSOCIATION,01/07/2021,750
Adult Social Care,"Commissioning, Procurement & Brokerage",Supplies & Services,Registration / Licence Fees,iESE Innovation Ltd,07/07/2021,7475
Adult Social Care,"Commissioning, Procurement & Brokerage",Supplies & Services,Subscriptions,HUB CIC - BRANCHES,05/07/2021,10450
Adult Social Care,"Commissioning, Procurement & Brokerage",Supplies & Services,Registration / Licence Fees,iESE Innovation Ltd,08/07/2021,14000
Adult Social Care,"Commissioning, Procurement & Brokerage",Supplies & Services,Other Grants (Expenses),TELFORD & WREKIN CVS,13/07/2021,18500
Adult Social Care,"Commissioning, Procurement & Brokerage",Supplies & Services,Registration / Licence Fees,iESE Innovation Ltd,16/07/2021,25000
Adult Social Care,"Commissioning, Procurement & Brokerage",Supplies & Services,Other Grants (Expenses),WREKIN HOUSING TRUST ,01/07/2021,25568.33
Adult Social Care,"Commissioning, Procurement & Brokerage",Supplies & Services,Other Grants (Expenses),TELFORD CHRISTIAN COUNCIL SUPPORTED HOUS,01/07/2021,36401.83
Adult Social Care,"Commissioning, Procurement & Brokerage",Supplies & Services,Other Grants (Expenses),BROMFORD HOUSING ASSOCIATION LIMITED,01/07/2021,36666.67
Adult Social Care,Community Social Work & Adult Safeguarding,Supplies & Services,Comp Software (Purch / Hire),PHOENIX SOFTWARE LTD,08/07/2021,399
Adult Social Care,Community Social Work & Adult Safeguarding,Supplies & Services,Legal Expenses,Kings Chambers,02/07/2021,600
Adult Social Care,Community Social Work & Adult Safeguarding,Supplies & Services,Medical Consultants Fees,REDACTED PERSONAL INFORMATION,15/07/2021,893.68
Adult Social Care,Community Social Work & Adult Safeguarding,Supplies & Services,Medical Consultants Fees,REDACTED PERSONAL INFORMATION,07/07/2021,1158.44
Adult Social Care,Community Social Work & Adult Safeguarding,Supplies & Services,Medical Consultants Fees,REDACTED PERSONAL INFORMATION,15/07/2021,1781.9
Adult Social Care,Community Social Work & Adult Safeguarding,Third Party Payments,Supported Living,Oleander House - Sanctuary Housing,15/07/2021,681.56
Adult Social Care,Community Social Work & Adult Safeguarding,Third Party Payments,Supported Living,Oleander House - Sanctuary Housing,15/07/2021,1288.53
Adult Social Care,Community Social Work & Adult Safeguarding,Third Party Payments,Health Funded Services,HUB CIC - BRANCHES,20/07/2021,6592.92
Adult Social Care,Community Social Work & Adult Safeguarding,Transport-Related Expenditure,Taxi Costs,Go Carz,02/07/2021,315.48
Adult Social Care,Community Social Work (Principal Social Worker),Employees,Staff Training,Healthcare Conferences UK,21/07/2021,295
Adult Social Care,Community Social Work (Principal Social Worker),Third Party Payments,Supported Living,Oleander House - Sanctuary Housing,15/07/2021,2556.8
Adult Social Care,My Options,Employees,Agency Supply Costs,Safehands Recruitment,14/07/2021,131.74
Adult Social Care,My Options,Employees,Training Expenses,Wrekin Forest School CIC,13/07/2021,140
Adult Social Care,My Options,Employees,Agency Supply Costs,Safehands Recruitment,02/07/2021,199.5
Adult Social Care,My Options,Employees,Agency Supply Costs,Safehands Recruitment,14/07/2021,219.52
Adult Social Care,My Options,Employees,Agency Supply Costs,Safehands Recruitment,14/07/2021,336.02
Adult Social Care,My Options,Employees,Agency Supply Costs,Safehands Recruitment,02/07/2021,388.41
Adult Social Care,My Options,Employees,Agency Supply Costs,Safehands Recruitment,09/07/2021,457.93
Adult Social Care,My Options,Employees,Training Expenses,Crisis Prevention Institute Europe,14/07/2021,495
Adult Social Care,My Options,Employees,Agency Supply Costs,Safehands Recruitment,09/07/2021,616.6
Adult Social Care,My Options,Employees,Agency Supply Costs,Safehands Recruitment,02/07/2021,726.36
Adult Social Care,My Options,Employees,Agency Supply Costs,Safehands Recruitment,09/07/2021,869.47
Adult Social Care,My Options,Employees,Agency Supply Costs,Safehands Recruitment,14/07/2021,882.32
Adult Social Care,My Options,Employees,Agency Supply Costs,Safehands Recruitment,27/07/2021,1033.2
Adult Social Care,My Options,Employees,Agency Supply Costs,Safehands Recruitment,02/07/2021,1472.97
Adult Social Care,My Options,Premises-Related Expenditure,Clean Mats & Toilet Requisites,PHS GROUP,09/07/2021,112.27
Adult Social Care,My Options,Premises-Related Expenditure,Hire Of Rooms,HOLLINSWOOD & RANDLAY PARISH COUNCIL,09/07/2021,176
Adult Social Care,My Options,Premises-Related Expenditure,Clean Mats & Toilet Requisites,CARESHOP,02/07/2021,194.95
Adult Social Care,My Options,Premises-Related Expenditure,Clean Mats & Toilet Requisites,BERWICK CARE EQUIPMENT LTD,27/07/2021,198.53
Adult Social Care,My Options,Premises-Related Expenditure,Hire Of Rooms,BELMONT COMMUNITY HALL,27/07/2021,208
Adult Social Care,My Options,Premises-Related Expenditure,Hire Of Rooms,MEETING POINT TRUST LTD,27/07/2021,352
Adult Social Care,My Options,Premises-Related Expenditure,Hire Of Rooms,DONNINGTON PARTNERSHIP,09/07/2021,510
Adult Social Care,My Options,Supplies & Services,Respite Care,REDACTED PERSONAL INFORMATION,13/07/2021,155.52
Adult Social Care,My Options,Supplies & Services,Respite Care,REDACTED PERSONAL INFORMATION,14/07/2021,207.36
Adult Social Care,My Options,Supplies & Services,Adult Flexi / Day Care,REDACTED PERSONAL INFORMATION,13/07/2021,207.36
Adult Social Care,My Options,Supplies & Services,Other Travel,REDACTED PERSONAL INFORMATION,15/07/2021,216
Adult Social Care,My Options,Supplies & Services,Respite Care,REDACTED PERSONAL INFORMATION,13/07/2021,311.04
Adult Social Care,My Options,Supplies & Services,Respite Care,REDACTED PERSONAL INFORMATION,06/07/2021,362.88
Adult Social Care,My Options,Supplies & Services,Respite Care,REDACTED PERSONAL INFORMATION,14/07/2021,362.88
Adult Social Care,My Options,Supplies & Services,Adult Flexi / Day Care,REDACTED PERSONAL INFORMATION,15/07/2021,622.08
Adult Social Care,My Options,Supplies & Services,Computer Software (Maint),CARE MONITORING 2000 LTD,14/07/2021,644.4
Adult Social Care,My Options,Supplies & Services,Adult Flexi / Day Care,REDACTED PERSONAL INFORMATION,13/07/2021,673.92
Adult Social Care,My Options,Supplies & Services,Respite Care,REDACTED PERSONAL INFORMATION,14/07/2021,725.76
Adult Social Care,My Options,Supplies & Services,Respite Care,REDACTED PERSONAL INFORMATION,06/07/2021,731.6
Adult Social Care,My Options,Supplies & Services,Respite Care,REDACTED PERSONAL INFORMATION,27/07/2021,792.4
Adult Social Care,My Options,Supplies & Services,Respite Care,REDACTED PERSONAL INFORMATION,27/07/2021,925.32
Adult Social Care,My Options,Supplies & Services,Respite Care,REDACTED PERSONAL INFORMATION,27/07/2021,1151.48
Adult Social Care,My Options,Supplies & Services,Respite Care,REDACTED PERSONAL INFORMATION,27/07/2021,1531.48
Adult Social Care,My Options,Supplies & Services,Respite Care,REDACTED PERSONAL INFORMATION,27/07/2021,1531.48
Adult Social Care,Service Improvement & Efficiency,Capital Expenditure,Other Capital Expenditure,TELFORD & WREKIN CVS,29/07/2021,"3,333.00"
Children's Safeguarding,Child Protection & Family Support,contribution to provision,legal,HM Courts and Tribunal service,16/07/2021," 9,415.00 "
Children's Safeguarding & Family Support,Child Protection & Family Support,Employees,Staff Training,Alasdair Cant & Associates Ltd,05/07/2021,6650
Children's Safeguarding & Family Support,Child Protection & Family Support,Transport-Related Expenditure,Taxi Costs,Go Carz,01/07/2021,522
Children's Safeguarding & Family Support,Family Connect & Childrens Centres,Employees,Childcare Provision,CHILDCARE SOS,29/07/2021,124
Children's Safeguarding & Family Support,Family Connect & Childrens Centres,Premises-Related Expenditure,R&M -Building Other,TAYLORS MECHANICAL H & P SERVICES LTD,29/07/2021,144
Children's Safeguarding & Family Support,Family Connect & Childrens Centres,Supplies & Services,Bulk Refuse Contracts Hire,GREEN SKIPS LTD,06/07/2021,180
Children's Safeguarding & Family Support,Family Connect & Childrens Centres,Supplies & Services,Administrative/Office Supplies,CHILDCARE SOS,19/07/2021,186
Children's Safeguarding & Family Support,Family Connect & Childrens Centres,Supplies & Services,Administrative/Office Supplies,Id verde,16/07/2021,200
Children's Safeguarding & Family Support,Family Connect & Childrens Centres,Supplies & Services,Other Expenses,PPL PRS Ltd,19/07/2021,203.48
Children's Safeguarding & Family Support,Family Connect & Childrens Centres,Supplies & Services,Comp Software (Purch / Hire),Hands Free Computing Ltd,14/07/2021,345
Children's Safeguarding & Family Support,Family Connect & Childrens Centres,Supplies & Services,Comp Software (Purch / Hire),Hands Free Computing Ltd,08/07/2021,745
Children's Safeguarding & Family Support,Family Connect & Childrens Centres,Supplies & Services,Other Services,GRANVILLE CONSTRUCTION & MAINTENANCE LTD,06/07/2021,790
Children's Safeguarding & Family Support,Family Connect & Childrens Centres,Supplies & Services,Equipment - Purchase,ONLINE ERGONOMICS LTD,09/07/2021,1295.82
Children's Safeguarding & Family Support,Family Connect & Childrens Centres,Supplies & Services,Other Grants (Expenses),TELFORD & WREKIN CITIZENS ADVICE BUREAU,06/07/2021,3333.33
Children's Safeguarding & Family Support,Family Connect & Childrens Centres,Supplies & Services,Other Grants (Expenses),TELFORD & WREKIN CITIZENS ADVICE BUREAU,06/07/2021,3333.33
Children's Safeguarding & Family Support,Family Connect & Childrens Centres,Supplies & Services,Other Grants (Expenses),TELFORD & WREKIN CITIZENS ADVICE BUREAU,06/07/2021,3333.34
Children's Safeguarding & Family Support,Family Connect & Childrens Centres,Third Party Payments,Interpreters Fees,VISS Sign Language Interpreting Service,16/07/2021,115
Children's Safeguarding & Family Support,Family Connect & Childrens Centres,Third Party Payments,Interpreters Fees,VISS Sign Language Interpreting Service,16/07/2021,115
Children's Safeguarding & Family Support,"Family Placements, Children in Care, Leaving Care & Emergency Duty Team",Supplies & Services,Aids & Appliances,M A S Associates,05/07/2021,365
Children's Safeguarding & Family Support,"Family Placements, Children in Care, Leaving Care & Emergency Duty Team",Supplies & Services,Advertising,Bauer Radio Ltd,13/07/2021,429
Children's Safeguarding & Family Support,"Family Placements, Children in Care, Leaving Care & Emergency Duty Team",Supplies & Services,Form F Assessments,EW Assessments ltd,01/07/2021,500
Children's Safeguarding & Family Support,"Family Placements, Children in Care, Leaving Care & Emergency Duty Team",Supplies & Services,Advertising,Bauer Radio Ltd,13/07/2021,684
Children's Safeguarding & Family Support,"Family Placements, Children in Care, Leaving Care & Emergency Duty Team",Supplies & Services,Form F Assessments,Kite Fostering Consultancy Ltd,13/07/2021,1810.44
Children's Safeguarding & Family Support,"Family Placements, Children in Care, Leaving Care & Emergency Duty Team",Supplies & Services,Advertising,Global Radio Services Limited,13/07/2021,3200
Children's Safeguarding & Family Support,Safeguarding Advisory,Employees,Staff Training,Alasdair Cant & Associates Ltd,13/07/2021,3900
Children's Safeguarding & Family Support,Safeguarding Advisory,Supplies & Services,Printing - Other,Scribble Inc. Limited,13/07/2021,1500
Children's Safeguarding & Family Support,Safeguarding Advisory,Supplies & Services,Comp Software (Purch / Hire),LIQUIDLOGIC LIMITED,13/07/2021,2000
Children's Safeguarding & Family Support,Safeguarding Advisory,Supplies & Services,Other Services,Signis Limited,13/07/2021,8600
Children's Safeguarding & Family Support,Safeguarding Advisory,Supplies & Services,Other Grants (Expenses),South Staffordshire and Shropshire Healthcare NHS Foundation Trust,21/07/2021,10395.67
Children's Safeguarding & Family Support,Safeguarding Advisory,Supplies & Services,Grants To Voluntary Organis,YMCA,13/07/2021,19876.4
"Communities, Customer & Commercial Services",Commercial Projects,Premises-Related Expenditure,Electricity,West Mercia Energy (WME),22/07/2021,137.34
"Communities, Customer & Commercial Services",Community Services,Capital Expenditure,Expenditure on loans & other financial assistance,LILLESHALL CRICKET CLUB,28/07/2021,"2,000.00"
"Communities, Customer & Commercial Services",Community Services,Capital Expenditure,Expenditure on loans & other financial assistance,Dawley C of E Primary Academy,28/07/2021,"2,496.00"
"Communities, Customer & Commercial Services",Community Services,Capital Expenditure,Expenditure on loans & other financial assistance,WATERS UPTON PARISH COUNCIL,29/07/2021,"4,000.00"
"Communities, Customer & Commercial Services",Community Services,Capital Expenditure,Expenditure on loans & other financial assistance,WELLINGTON TOWN COUNCIL,27/07/2021,"5,000.00"
"Communities, Customer & Commercial Services",Community Services,Capital Expenditure,Expenditure on loans & other financial assistance,LITTLE WENLOCK VILLAGE HALL,28/07/2021,"5,000.00"
"Communities, Customer & Commercial Services",Community Services,Capital Expenditure,Expenditure on loans & other financial assistance,LILLESHALL PARISH COUNCIL,28/07/2021,"5,000.00"
"Communities, Customer & Commercial Services",Community Services,Supplies & Services,Equipment - Purchase,TFM FARM & COUNTRY SUPERSTORE LTD,01/07/2021,497.5
"Communities, Customer & Commercial Services",Community Services,Supplies & Services,Equipment - Purchase,Symmetrikit,01/07/2021,2169
"Communities, Customer & Commercial Services",Community Services,Supplies & Services,Equipment - Purchase,Symmetrikit,01/07/2021,3111
"Communities, Customer & Commercial Services",Community Services,Supplies & Services,Grants To Voluntary Organis,PARK LANE CENTRE,29/07/2021,5372
"Communities, Customer & Commercial Services",Community Services,Supplies & Services,Grants To Voluntary Organis,HOLLINSWOOD & RANDLAY PARISH COUNCIL,03/07/2021,7500
"Communities, Customer & Commercial Services",Community Services,Supplies & Services,Grants To Voluntary Organis,OAKENGATES TOWN COUNCIL,03/07/2021,7500
"Communities, Customer & Commercial Services",Community Services,Supplies & Services,Grants To Voluntary Organis,STIRCHLEY & BROOKSIDE PARISH COUNCIL ,10/07/2021,7500
"Communities, Customer & Commercial Services",Community Services,Supplies & Services,Grants To Voluntary Organis,PARK LANE CENTRE,13/07/2021,10000
"Communities, Customer & Commercial Services",Community Services,Supplies & Services,Grants To Voluntary Organis,Anstice Community Trust,05/07/2021,10000
"Communities, Customer & Commercial Services",Community Services,Supplies & Services,Grants To Voluntary Organis,SENIOR CITIZENS FORUM,22/07/2021,10000
"Communities, Customer & Commercial Services",Community Services,Supplies & Services,Grants To Voluntary Organis,Arleston Community Centre,03/07/2021,18000
"Communities, Customer & Commercial Services",Community Services,Supplies & Services,Grants To Voluntary Organis,DONNINGTON PARTNERSHIP,03/07/2021,20000
"Communities, Customer & Commercial Services",Community Services,Supplies & Services,Grants To Voluntary Organis,Sutton Hill Community Trust,03/07/2021,42000
"Communities, Customer & Commercial Services",Community Services,Supplies & Services,Grants To Voluntary Organis,Brookside Central,05/07/2021,60000
"Communities, Customer & Commercial Services",Community Services,Supplies & Services,Grants To Voluntary Organis,The Leegate Centre CIC,14/07/2021,60000
"Communities, Customer & Commercial Services",Culture & Wellbeing,Premises-Related Expenditure,Grounds Maintenance - Other,AFC TELFORD UNITED,19/07/2021,1980
"Communities, Customer & Commercial Services",Culture & Wellbeing,Supplies & Services,Provisions,BIKOLD,23/07/2021,105.89
"Communities, Customer & Commercial Services",Culture & Wellbeing,Supplies & Services,Wet Resale Provision,M COORS BREWING COMPANY UK LTD,12/07/2021,110.09
"Communities, Customer & Commercial Services",Culture & Wellbeing,Supplies & Services,Wet Resale Provision,M COORS BREWING COMPANY UK LTD,09/07/2021,110.09
"Communities, Customer & Commercial Services",Culture & Wellbeing,Supplies & Services,Wet Resale Provision,M COORS BREWING COMPANY UK LTD,12/07/2021,110.09
"Communities, Customer & Commercial Services",Culture & Wellbeing,Supplies & Services,Wet Resale Provision,M COORS BREWING COMPANY UK LTD,12/07/2021,110.09
"Communities, Customer & Commercial Services",Culture & Wellbeing,Supplies & Services,Artistes Fees,Historical Promotions,16/07/2021,122
"Communities, Customer & Commercial Services",Culture & Wellbeing,Supplies & Services,Equipment - Hire,TELFORD TOILET HIRE,19/07/2021,165
"Communities, Customer & Commercial Services",Culture & Wellbeing,Supplies & Services,Artistes Fees,Fools Paradise Ltd,06/07/2021,170
"Communities, Customer & Commercial Services",Culture & Wellbeing,Supplies & Services,Promotion Expenses,Ticketplan Limited,19/07/2021,186.26
"Communities, Customer & Commercial Services",Culture & Wellbeing,Supplies & Services,Wet Resale Provision,M COORS BREWING COMPANY UK LTD,12/07/2021,199.08
"Communities, Customer & Commercial Services",Culture & Wellbeing,Supplies & Services,Wet Resale Provision,M COORS BREWING COMPANY UK LTD,27/07/2021,199.08
"Communities, Customer & Commercial Services",Culture & Wellbeing,Supplies & Services,Wet Resale Provision,M COORS BREWING COMPANY UK LTD,12/07/2021,199.08
"Communities, Customer & Commercial Services",Culture & Wellbeing,Supplies & Services,Promotion Expenses,crowdEngage Limited,16/07/2021,210
"Communities, Customer & Commercial Services",Culture & Wellbeing,Supplies & Services,Furniture - Repair,WREKIN DRAIN SERVICES LTD,29/07/2021,210
"Communities, Customer & Commercial Services",Culture & Wellbeing,Supplies & Services,Wet Resale Provision,M COORS BREWING COMPANY UK LTD,12/07/2021,220.18
"Communities, Customer & Commercial Services",Culture & Wellbeing,Supplies & Services,Wet Resale Provision,M COORS BREWING COMPANY UK LTD,27/07/2021,220.18
"Communities, Customer & Commercial Services",Culture & Wellbeing,Supplies & Services,Artistes Fees,City Dressing,01/07/2021,235.83
"Communities, Customer & Commercial Services",Culture & Wellbeing,Supplies & Services,Equipment - Hire,B.S.B. (Sound) Ltd,01/07/2021,255
"Communities, Customer & Commercial Services",Culture & Wellbeing,Supplies & Services,First Aid,M- W Medical Service Ltd,06/07/2021,271
"Communities, Customer & Commercial Services",Culture & Wellbeing,Supplies & Services,Advertising,WHATS ON MAGAZINES LTD,06/07/2021,275
"Communities, Customer & Commercial Services",Culture & Wellbeing,Supplies & Services,Wet Resale Provision,M COORS BREWING COMPANY UK LTD,12/07/2021,298.62
"Communities, Customer & Commercial Services",Culture & Wellbeing,Supplies & Services,Wet Resale Provision,M COORS BREWING COMPANY UK LTD,09/07/2021,298.62
"Communities, Customer & Commercial Services",Culture & Wellbeing,Supplies & Services,Artistes Fees,City Dressing,01/07/2021,315
"Communities, Customer & Commercial Services",Culture & Wellbeing,Supplies & Services,Artistes Fees,City Dressing,01/07/2021,315.51
"Communities, Customer & Commercial Services",Culture & Wellbeing,Supplies & Services,Equipment - Purchase,STAGE ELECTRICS PARTNERSHIP LTD,08/07/2021,399.71
"Communities, Customer & Commercial Services",Culture & Wellbeing,Supplies & Services,Furniture - Repair,GRANVILLE CONSTRUCTION & MAINTENANCE LTD,29/07/2021,428
"Communities, Customer & Commercial Services",Culture & Wellbeing,Supplies & Services,Promotion Expenses,High-Viz Publicity Limited,19/07/2021,450
"Communities, Customer & Commercial Services",Culture & Wellbeing,Supplies & Services,Promotion Expenses,Chapelcroft Ltd,08/07/2021,520
"Communities, Customer & Commercial Services",Culture & Wellbeing,Supplies & Services,Printing - Other,THE SIGN SHOP,01/07/2021,524
"Communities, Customer & Commercial Services",Culture & Wellbeing,Supplies & Services,Web Services,YARRINGTON LIMITED,09/07/2021,600
"Communities, Customer & Commercial Services",Culture & Wellbeing,Supplies & Services,First Aid,M- W Medical Service Ltd,20/07/2021,630
"Communities, Customer & Commercial Services",Culture & Wellbeing,Supplies & Services,Artistes Fees,Illuminate Audio Visual Effects,19/07/2021,640
"Communities, Customer & Commercial Services",Culture & Wellbeing,Supplies & Services,Promotion Expenses,Spektrix Limited,12/07/2021,698.63
"Communities, Customer & Commercial Services",Culture & Wellbeing,Supplies & Services,Equipment - Hire,TELFORD TOILET HIRE,07/07/2021,740
"Communities, Customer & Commercial Services",Culture & Wellbeing,Supplies & Services,Wet Resale Provision,M COORS BREWING COMPANY UK LTD,26/07/2021,763.98
"Communities, Customer & Commercial Services",Culture & Wellbeing,Supplies & Services,Artistes Fees,Fools Paradise Ltd,01/07/2021,775
"Communities, Customer & Commercial Services",Culture & Wellbeing,Supplies & Services,Artistes Fees,Fools Paradise Ltd,01/07/2021,810
"Communities, Customer & Commercial Services",Culture & Wellbeing,Supplies & Services,Artistes Fees,Casey's Cordingley Hall,01/07/2021,833.34
"Communities, Customer & Commercial Services",Culture & Wellbeing,Supplies & Services,Advertising,THE SIGN SHOP,20/07/2021,890
"Communities, Customer & Commercial Services",Culture & Wellbeing,Supplies & Services,Artistes Fees,Historical Promotions,16/07/2021,920
"Communities, Customer & Commercial Services",Culture & Wellbeing,Supplies & Services,Equipment - Hire,J.E.F Scaffolding Ltd,06/07/2021,1265
"Communities, Customer & Commercial Services",Culture & Wellbeing,Supplies & Services,Artistes Fees,Pif-Paf Theatre Ltd,20/07/2021,1320
"Communities, Customer & Commercial Services",Culture & Wellbeing,Supplies & Services,Photography,JUST PROJECTORS,20/07/2021,1345.32
"Communities, Customer & Commercial Services",Culture & Wellbeing,Supplies & Services,Artistes Fees,Coulson Media Limited (Rent a Dinosaur),01/07/2021,2000
"Communities, Customer & Commercial Services",Culture & Wellbeing,Supplies & Services,Aids & Appliances,Now Electrical UK,06/07/2021,2199.52
"Communities, Customer & Commercial Services",Culture & Wellbeing,Supplies & Services,Furniture - Repair,COOL SERVICES LTD,29/07/2021,2901.74
"Communities, Customer & Commercial Services",Culture & Wellbeing,Supplies & Services,Aids & Appliances,Now Electrical UK,06/07/2021,3411.17
"Communities, Customer & Commercial Services",Culture & Wellbeing,Supplies & Services,Artistes Fees,Historical Promotions,08/07/2021,3850
"Communities, Customer & Commercial Services",Culture & Wellbeing,Supplies & Services,Artistes Fees,City Dressing,01/07/2021,4572.75
"Communities, Customer & Commercial Services",Culture & Wellbeing,Supplies & Services,Equipment - Hire,Press Red Rentals Limited,19/07/2021,5250
"Communities, Customer & Commercial Services",Culture & Wellbeing,Supplies & Services,Artistes Fees,Historical Promotions,29/07/2021,5495
"Communities, Customer & Commercial Services",Customer Relationships & Welfare Services,Supplies & Services,Funeral Services,Broxap Ltd,26/07/2021,102
"Communities, Customer & Commercial Services",Customer Relationships & Welfare Services,Supplies & Services,Postages,Financial Data Management plc,27/07/2021,105.54
"Communities, Customer & Commercial Services",Customer Relationships & Welfare Services,Supplies & Services,Interpretation,VISS Sign Language Interpreting Service,12/07/2021,115
"Communities, Customer & Commercial Services",Customer Relationships & Welfare Services,Supplies & Services,Postages,Financial Data Management plc,27/07/2021,134.34
"Communities, Customer & Commercial Services",Customer Relationships & Welfare Services,Supplies & Services,Funeral Services,Broxap Ltd,26/07/2021,205
"Communities, Customer & Commercial Services",Customer Relationships & Welfare Services,Supplies & Services,Equipment - Hire,Quadient Finance UK Ltd,07/07/2021,350
"Communities, Customer & Commercial Services",Customer Relationships & Welfare Services,Supplies & Services,Printing - Other,Financial Data Management plc,13/07/2021,393.67
"Communities, Customer & Commercial Services",Customer Relationships & Welfare Services,Supplies & Services,Bus Pass Production,Unicard Ltd,15/07/2021,433.5
"Communities, Customer & Commercial Services",Customer Relationships & Welfare Services,Supplies & Services,Bus Pass Production,Unicard Ltd,12/07/2021,511.4
"Communities, Customer & Commercial Services",Customer Relationships & Welfare Services,Supplies & Services,Permit Production - Blue Badge,Valtech Limited,07/07/2021,553.9
"Communities, Customer & Commercial Services",Customer Relationships & Welfare Services,Supplies & Services,Comp Software (Purch / Hire),Stopford Information System Limited,19/07/2021,845
"Communities, Customer & Commercial Services",Customer Relationships & Welfare Services,Supplies & Services,Permit Production - Blue Badge,APS Group,08/07/2021,1017.78
"Communities, Customer & Commercial Services",Customer Relationships & Welfare Services,Supplies & Services,Bus Pass Production,Euclid Limited,08/07/2021,2070.09
"Communities, Customer & Commercial Services",Customer Relationships & Welfare Services,Supplies & Services,Funeral Services,Broxap Ltd,26/07/2021,2514
"Communities, Customer & Commercial Services",Customer Relationships & Welfare Services,Supplies & Services,Other Grants (Expenses),Hawk Incentives Limited,02/07/2021,541020
"Communities, Customer & Commercial Services",Customer Relationships & Welfare Services,Transfer Payments,Crisis Assistance Awards,PayPoint Network Limited,06/07/2021,135
"Communities, Customer & Commercial Services",Customer Relationships & Welfare Services,Transfer Payments,Crisis Assistance Awards,DAWLEY BARGAIN CENTRE,27/07/2021,145
"Communities, Customer & Commercial Services",Customer Relationships & Welfare Services,Transfer Payments,Crisis Assistance Awards,DAWLEY BARGAIN CENTRE,20/07/2021,175
"Communities, Customer & Commercial Services",Customer Relationships & Welfare Services,Transfer Payments,Crisis Assistance Awards,PayPoint Network Limited,13/07/2021,210
"Communities, Customer & Commercial Services",Customer Relationships & Welfare Services,Transfer Payments,Crisis Assistance Awards,DAWLEY BARGAIN CENTRE,20/07/2021,215
"Communities, Customer & Commercial Services",Customer Relationships & Welfare Services,Transfer Payments,Crisis Assistance Awards,DAWLEY BARGAIN CENTRE,20/07/2021,215
"Communities, Customer & Commercial Services",Customer Relationships & Welfare Services,Transfer Payments,Crisis Assistance Awards,PayPoint Network Limited,20/07/2021,225
"Communities, Customer & Commercial Services",Customer Relationships & Welfare Services,Transfer Payments,Crisis Assistance Awards,DAWLEY BARGAIN CENTRE,20/07/2021,230
"Communities, Customer & Commercial Services",Customer Relationships & Welfare Services,Transfer Payments,Crisis Assistance Awards,DAWLEY BARGAIN CENTRE,20/07/2021,255
"Communities, Customer & Commercial Services",Customer Relationships & Welfare Services,Transfer Payments,Crisis Assistance Awards,DAWLEY BARGAIN CENTRE,27/07/2021,265
"Communities, Customer & Commercial Services",Customer Relationships & Welfare Services,Transfer Payments,Crisis Assistance Awards,DAWLEY BARGAIN CENTRE,20/07/2021,315
"Communities, Customer & Commercial Services",Customer Relationships & Welfare Services,Transfer Payments,Crisis Assistance Awards,Kings of the Road,30/07/2021,325
"Communities, Customer & Commercial Services",Customer Relationships & Welfare Services,Transfer Payments,Crisis Assistance Awards,Kings of the Road,06/07/2021,375
"Communities, Customer & Commercial Services",Customer Relationships & Welfare Services,Transfer Payments,Crisis Assistance Awards,Kings of the Road,08/07/2021,375
"Communities, Customer & Commercial Services",Customer Relationships & Welfare Services,Transfer Payments,Crisis Assistance Awards,DAWLEY BARGAIN CENTRE,20/07/2021,400
"Communities, Customer & Commercial Services",Customer Relationships & Welfare Services,Transfer Payments,Crisis Assistance Awards,Kings of the Road,13/07/2021,445
"Communities, Customer & Commercial Services",Customer Relationships & Welfare Services,Transfer Payments,Crisis Assistance Awards,Self Isolation Grant,21/07/2021,500
"Communities, Customer & Commercial Services",Customer Relationships & Welfare Services,Transfer Payments,Crisis Assistance Awards,Self Isolation Grant,21/07/2021,500
"Communities, Customer & Commercial Services",Customer Relationships & Welfare Services,Transfer Payments,Crisis Assistance Awards,Self Isolation Grant,21/07/2021,500
"Communities, Customer & Commercial Services",Customer Relationships & Welfare Services,Transfer Payments,Crisis Assistance Awards,Self Isolation Grant,21/07/2021,500
"Communities, Customer & Commercial Services",Customer Relationships & Welfare Services,Transfer Payments,Crisis Assistance Awards,Self Isolation Grant,21/07/2021,500
"Communities, Customer & Commercial Services",Customer Relationships & Welfare Services,Transfer Payments,Crisis Assistance Awards,Self Isolation Grant,21/07/2021,500
"Communities, Customer & Commercial Services",Customer Relationships & Welfare Services,Transfer Payments,Crisis Assistance Awards,Self Isolation Grant,30/07/2021,500
"Communities, Customer & Commercial Services",Customer Relationships & Welfare Services,Transfer Payments,Crisis Assistance Awards,Self Isolation Grant,28/07/2021,500
"Communities, Customer & Commercial Services",Customer Relationships & Welfare Services,Transfer Payments,Crisis Assistance Awards,Self Isolation Grant,30/07/2021,500
"Communities, Customer & Commercial Services",Customer Relationships & Welfare Services,Transfer Payments,Crisis Assistance Awards,Self Isolation Grant,30/07/2021,500
"Communities, Customer & Commercial Services",Customer Relationships & Welfare Services,Transfer Payments,Crisis Assistance Awards,Self Isolation Grant,30/07/2021,500
"Communities, Customer & Commercial Services",Customer Relationships & Welfare Services,Transfer Payments,Crisis Assistance Awards,Self Isolation Grant,30/07/2021,500
"Communities, Customer & Commercial Services",Customer Relationships & Welfare Services,Transfer Payments,Crisis Assistance Awards,Self Isolation Grant,30/07/2021,500
"Communities, Customer & Commercial Services",Customer Relationships & Welfare Services,Transfer Payments,Crisis Assistance Awards,Self Isolation Grant,28/07/2021,500
"Communities, Customer & Commercial Services",Customer Relationships & Welfare Services,Transfer Payments,Crisis Assistance Awards,Self Isolation Grant,28/07/2021,500
"Communities, Customer & Commercial Services",Customer Relationships & Welfare Services,Transfer Payments,Crisis Assistance Awards,Self Isolation Grant,28/07/2021,500
"Communities, Customer & Commercial Services",Customer Relationships & Welfare Services,Transfer Payments,Crisis Assistance Awards,Self Isolation Grant,28/07/2021,500
"Communities, Customer & Commercial Services",Customer Relationships & Welfare Services,Transfer Payments,Crisis Assistance Awards,Self Isolation Grant,28/07/2021,500
"Communities, Customer & Commercial Services",Customer Relationships & Welfare Services,Transfer Payments,Crisis Assistance Awards,Self Isolation Grant,28/07/2021,500
"Communities, Customer & Commercial Services",Customer Relationships & Welfare Services,Transfer Payments,Crisis Assistance Awards,Self Isolation Grant,28/07/2021,500
"Communities, Customer & Commercial Services",Customer Relationships & Welfare Services,Transfer Payments,Crisis Assistance Awards,Self Isolation Grant,28/07/2021,500
"Communities, Customer & Commercial Services",Customer Relationships & Welfare Services,Transfer Payments,Crisis Assistance Awards,Self Isolation Grant,28/07/2021,500
"Communities, Customer & Commercial Services",Customer Relationships & Welfare Services,Transfer Payments,Crisis Assistance Awards,Self Isolation Grant,28/07/2021,500
"Communities, Customer & Commercial Services",Customer Relationships & Welfare Services,Transfer Payments,Crisis Assistance Awards,Self Isolation Grant,28/07/2021,500
"Communities, Customer & Commercial Services",Customer Relationships & Welfare Services,Transfer Payments,Crisis Assistance Awards,Self Isolation Grant,28/07/2021,500
"Communities, Customer & Commercial Services",Customer Relationships & Welfare Services,Transfer Payments,Crisis Assistance Awards,Self Isolation Grant,28/07/2021,500
"Communities, Customer & Commercial Services",Customer Relationships & Welfare Services,Transfer Payments,Crisis Assistance Awards,Self Isolation Grant,28/07/2021,500
"Communities, Customer & Commercial Services",Customer Relationships & Welfare Services,Transfer Payments,Crisis Assistance Awards,Self Isolation Grant,28/07/2021,500
"Communities, Customer & Commercial Services",Customer Relationships & Welfare Services,Transfer Payments,Crisis Assistance Awards,Self Isolation Grant,28/07/2021,500
"Communities, Customer & Commercial Services",Customer Relationships & Welfare Services,Transfer Payments,Crisis Assistance Awards,Self Isolation Grant,28/07/2021,500
"Communities, Customer & Commercial Services",Customer Relationships & Welfare Services,Transfer Payments,Crisis Assistance Awards,Self Isolation Grant,28/07/2021,500
"Communities, Customer & Commercial Services",Customer Relationships & Welfare Services,Transfer Payments,Crisis Assistance Awards,Self Isolation Grant,29/07/2021,500
"Communities, Customer & Commercial Services",Customer Relationships & Welfare Services,Transfer Payments,Crisis Assistance Awards,Self Isolation Grant,29/07/2021,500
"Communities, Customer & Commercial Services",Customer Relationships & Welfare Services,Transfer Payments,Crisis Assistance Awards,Self Isolation Grant,29/07/2021,500
"Communities, Customer & Commercial Services",Customer Relationships & Welfare Services,Transfer Payments,Crisis Assistance Awards,Self Isolation Grant,28/07/2021,500
"Communities, Customer & Commercial Services",Customer Relationships & Welfare Services,Transfer Payments,Crisis Assistance Awards,Self Isolation Grant,28/07/2021,500
"Communities, Customer & Commercial Services",Customer Relationships & Welfare Services,Transfer Payments,Crisis Assistance Awards,Self Isolation Grant,28/07/2021,500
"Communities, Customer & Commercial Services",Customer Relationships & Welfare Services,Transfer Payments,Crisis Assistance Awards,Self Isolation Grant,14/07/2021,500
"Communities, Customer & Commercial Services",Customer Relationships & Welfare Services,Transfer Payments,Crisis Assistance Awards,Self Isolation Grant,14/07/2021,500
"Communities, Customer & Commercial Services",Customer Relationships & Welfare Services,Transfer Payments,Crisis Assistance Awards,Self Isolation Grant,29/07/2021,500
"Communities, Customer & Commercial Services",Customer Relationships & Welfare Services,Transfer Payments,Crisis Assistance Awards,Self Isolation Grant,29/07/2021,500
"Communities, Customer & Commercial Services",Customer Relationships & Welfare Services,Transfer Payments,Crisis Assistance Awards,Self Isolation Grant,29/07/2021,500
"Communities, Customer & Commercial Services",Customer Relationships & Welfare Services,Transfer Payments,Crisis Assistance Awards,Self Isolation Grant,29/07/2021,500
"Communities, Customer & Commercial Services",Customer Relationships & Welfare Services,Transfer Payments,Crisis Assistance Awards,Self Isolation Grant,15/07/2021,500
"Communities, Customer & Commercial Services",Customer Relationships & Welfare Services,Transfer Payments,Crisis Assistance Awards,Self Isolation Grant,15/07/2021,500
"Communities, Customer & Commercial Services",Customer Relationships & Welfare Services,Transfer Payments,Crisis Assistance Awards,Self Isolation Grant,15/07/2021,500
"Communities, Customer & Commercial Services",Customer Relationships & Welfare Services,Transfer Payments,Crisis Assistance Awards,Self Isolation Grant,15/07/2021,500
"Communities, Customer & Commercial Services",Customer Relationships & Welfare Services,Transfer Payments,Crisis Assistance Awards,Self Isolation Grant,15/07/2021,500
"Communities, Customer & Commercial Services",Customer Relationships & Welfare Services,Transfer Payments,Crisis Assistance Awards,Self Isolation Grant,05/07/2021,500
"Communities, Customer & Commercial Services",Customer Relationships & Welfare Services,Transfer Payments,Crisis Assistance Awards,Self Isolation Grant,22/07/2021,500
"Communities, Customer & Commercial Services",Customer Relationships & Welfare Services,Transfer Payments,Crisis Assistance Awards,Self Isolation Grant,22/07/2021,500
"Communities, Customer & Commercial Services",Customer Relationships & Welfare Services,Transfer Payments,Crisis Assistance Awards,Self Isolation Grant,16/07/2021,500
"Communities, Customer & Commercial Services",Customer Relationships & Welfare Services,Transfer Payments,Crisis Assistance Awards,Self Isolation Grant,16/07/2021,500
"Communities, Customer & Commercial Services",Customer Relationships & Welfare Services,Transfer Payments,Crisis Assistance Awards,Self Isolation Grant,16/07/2021,500
"Communities, Customer & Commercial Services",Customer Relationships & Welfare Services,Transfer Payments,Crisis Assistance Awards,Self Isolation Grant,15/07/2021,500
"Communities, Customer & Commercial Services",Customer Relationships & Welfare Services,Transfer Payments,Crisis Assistance Awards,Self Isolation Grant,19/07/2021,500
"Communities, Customer & Commercial Services",Customer Relationships & Welfare Services,Transfer Payments,Crisis Assistance Awards,Self Isolation Grant,19/07/2021,500
"Communities, Customer & Commercial Services",Customer Relationships & Welfare Services,Transfer Payments,Crisis Assistance Awards,Self Isolation Grant,19/07/2021,500
"Communities, Customer & Commercial Services",Customer Relationships & Welfare Services,Transfer Payments,Crisis Assistance Awards,Self Isolation Grant,22/07/2021,500
"Communities, Customer & Commercial Services",Customer Relationships & Welfare Services,Transfer Payments,Crisis Assistance Awards,Self Isolation Grant,22/07/2021,500
"Communities, Customer & Commercial Services",Customer Relationships & Welfare Services,Transfer Payments,Crisis Assistance Awards,Self Isolation Grant,22/07/2021,500
"Communities, Customer & Commercial Services",Customer Relationships & Welfare Services,Transfer Payments,Crisis Assistance Awards,Self Isolation Grant,07/07/2021,500
"Communities, Customer & Commercial Services",Customer Relationships & Welfare Services,Transfer Payments,Crisis Assistance Awards,Self Isolation Grant,07/07/2021,500
"Communities, Customer & Commercial Services",Customer Relationships & Welfare Services,Transfer Payments,Crisis Assistance Awards,Self Isolation Grant,14/07/2021,500
"Communities, Customer & Commercial Services",Customer Relationships & Welfare Services,Transfer Payments,Crisis Assistance Awards,Self Isolation Grant,14/07/2021,500
"Communities, Customer & Commercial Services",Customer Relationships & Welfare Services,Transfer Payments,Crisis Assistance Awards,Self Isolation Grant,12/07/2021,500
"Communities, Customer & Commercial Services",Customer Relationships & Welfare Services,Transfer Payments,Crisis Assistance Awards,Self Isolation Grant,12/07/2021,500
"Communities, Customer & Commercial Services",Customer Relationships & Welfare Services,Transfer Payments,Crisis Assistance Awards,Self Isolation Grant,16/07/2021,500
"Communities, Customer & Commercial Services",Customer Relationships & Welfare Services,Transfer Payments,Crisis Assistance Awards,Self Isolation Grant,13/07/2021,500
"Communities, Customer & Commercial Services",Customer Relationships & Welfare Services,Transfer Payments,Crisis Assistance Awards,Self Isolation Grant,13/07/2021,500
"Communities, Customer & Commercial Services",Customer Relationships & Welfare Services,Transfer Payments,Crisis Assistance Awards,Self Isolation Grant,07/07/2021,500
"Communities, Customer & Commercial Services",Customer Relationships & Welfare Services,Transfer Payments,Crisis Assistance Awards,Self Isolation Grant,07/07/2021,500
"Communities, Customer & Commercial Services",Customer Relationships & Welfare Services,Transfer Payments,Crisis Assistance Awards,Self Isolation Grant,07/07/2021,500
"Communities, Customer & Commercial Services",Customer Relationships & Welfare Services,Transfer Payments,Crisis Assistance Awards,Self Isolation Grant,08/07/2021,500
"Communities, Customer & Commercial Services",Customer Relationships & Welfare Services,Transfer Payments,Crisis Assistance Awards,Self Isolation Grant,19/07/2021,500
"Communities, Customer & Commercial Services",Customer Relationships & Welfare Services,Transfer Payments,Crisis Assistance Awards,Self Isolation Grant,19/07/2021,500
"Communities, Customer & Commercial Services",Customer Relationships & Welfare Services,Transfer Payments,Crisis Assistance Awards,Self Isolation Grant,16/07/2021,500
"Communities, Customer & Commercial Services",Customer Relationships & Welfare Services,Transfer Payments,Crisis Assistance Awards,Self Isolation Grant,16/07/2021,500
"Communities, Customer & Commercial Services",Customer Relationships & Welfare Services,Transfer Payments,Crisis Assistance Awards,Self Isolation Grant,16/07/2021,500
"Communities, Customer & Commercial Services",Customer Relationships & Welfare Services,Transfer Payments,Crisis Assistance Awards,Self Isolation Grant,23/07/2021,500
"Communities, Customer & Commercial Services",Customer Relationships & Welfare Services,Transfer Payments,Crisis Assistance Awards,Self Isolation Grant,23/07/2021,500
"Communities, Customer & Commercial Services",Customer Relationships & Welfare Services,Transfer Payments,Crisis Assistance Awards,Self Isolation Grant,12/07/2021,500
"Communities, Customer & Commercial Services",Customer Relationships & Welfare Services,Transfer Payments,Crisis Assistance Awards,Self Isolation Grant,08/07/2021,500
"Communities, Customer & Commercial Services",Customer Relationships & Welfare Services,Transfer Payments,Crisis Assistance Awards,Self Isolation Grant,08/07/2021,500
"Communities, Customer & Commercial Services",Customer Relationships & Welfare Services,Transfer Payments,Crisis Assistance Awards,Self Isolation Grant,08/07/2021,500
"Communities, Customer & Commercial Services",Customer Relationships & Welfare Services,Transfer Payments,Crisis Assistance Awards,Self Isolation Grant,05/07/2021,500
"Communities, Customer & Commercial Services",Customer Relationships & Welfare Services,Transfer Payments,Crisis Assistance Awards,Self Isolation Grant,08/07/2021,500
"Communities, Customer & Commercial Services",Customer Relationships & Welfare Services,Transfer Payments,Crisis Assistance Awards,Self Isolation Grant,08/07/2021,500
"Communities, Customer & Commercial Services",Customer Relationships & Welfare Services,Transfer Payments,Crisis Assistance Awards,Self Isolation Grant,08/07/2021,500
"Communities, Customer & Commercial Services",Customer Relationships & Welfare Services,Transfer Payments,Crisis Assistance Awards,Self Isolation Grant,23/07/2021,500
"Communities, Customer & Commercial Services",Customer Relationships & Welfare Services,Transfer Payments,Crisis Assistance Awards,Self Isolation Grant,23/07/2021,500
"Communities, Customer & Commercial Services",Customer Relationships & Welfare Services,Transfer Payments,Crisis Assistance Awards,Self Isolation Grant,08/07/2021,500
"Communities, Customer & Commercial Services",Customer Relationships & Welfare Services,Transfer Payments,Crisis Assistance Awards,Self Isolation Grant,08/07/2021,500
"Communities, Customer & Commercial Services",Customer Relationships & Welfare Services,Transfer Payments,Crisis Assistance Awards,Self Isolation Grant,08/07/2021,500
"Communities, Customer & Commercial Services",Customer Relationships & Welfare Services,Transfer Payments,Crisis Assistance Awards,Self Isolation Grant,12/07/2021,500
"Communities, Customer & Commercial Services",Customer Relationships & Welfare Services,Transfer Payments,Crisis Assistance Awards,Self Isolation Grant,12/07/2021,500
"Communities, Customer & Commercial Services",Customer Relationships & Welfare Services,Transfer Payments,Crisis Assistance Awards,Self Isolation Grant,12/07/2021,500
"Communities, Customer & Commercial Services",Customer Relationships & Welfare Services,Transfer Payments,Crisis Assistance Awards,Self Isolation Grant,23/07/2021,500
"Communities, Customer & Commercial Services",Customer Relationships & Welfare Services,Transfer Payments,Crisis Assistance Awards,Self Isolation Grant,23/07/2021,500
"Communities, Customer & Commercial Services",Customer Relationships & Welfare Services,Transfer Payments,Crisis Assistance Awards,Self Isolation Grant,01/07/2021,500
"Communities, Customer & Commercial Services",Customer Relationships & Welfare Services,Transfer Payments,Crisis Assistance Awards,Self Isolation Grant,22/07/2021,500
"Communities, Customer & Commercial Services",Customer Relationships & Welfare Services,Transfer Payments,Crisis Assistance Awards,Self Isolation Grant,22/07/2021,500
"Communities, Customer & Commercial Services",Customer Relationships & Welfare Services,Transfer Payments,Crisis Assistance Awards,Self Isolation Grant,22/07/2021,500
"Communities, Customer & Commercial Services",Customer Relationships & Welfare Services,Transfer Payments,Crisis Assistance Awards,Self Isolation Grant,23/07/2021,500
"Communities, Customer & Commercial Services",Customer Relationships & Welfare Services,Transfer Payments,Crisis Assistance Awards,Self Isolation Grant,23/07/2021,500
"Communities, Customer & Commercial Services",Customer Relationships & Welfare Services,Transfer Payments,Crisis Assistance Awards,Self Isolation Grant,23/07/2021,500
"Communities, Customer & Commercial Services",Customer Relationships & Welfare Services,Transfer Payments,Crisis Assistance Awards,Self Isolation Grant,23/07/2021,500
"Communities, Customer & Commercial Services",Customer Relationships & Welfare Services,Transfer Payments,Crisis Assistance Awards,Self Isolation Grant,23/07/2021,500
"Communities, Customer & Commercial Services",Customer Relationships & Welfare Services,Transfer Payments,Crisis Assistance Awards,Self Isolation Grant,23/07/2021,500
"Communities, Customer & Commercial Services",Customer Relationships & Welfare Services,Transfer Payments,Crisis Assistance Awards,Self Isolation Grant,09/07/2021,500
"Communities, Customer & Commercial Services",Customer Relationships & Welfare Services,Transfer Payments,Crisis Assistance Awards,Self Isolation Grant,09/07/2021,500
"Communities, Customer & Commercial Services",Customer Relationships & Welfare Services,Transfer Payments,Crisis Assistance Awards,Self Isolation Grant,22/07/2021,500
"Communities, Customer & Commercial Services",Customer Relationships & Welfare Services,Transfer Payments,Crisis Assistance Awards,Self Isolation Grant,22/07/2021,500
"Communities, Customer & Commercial Services",Customer Relationships & Welfare Services,Transfer Payments,Crisis Assistance Awards,Self Isolation Grant,22/07/2021,500
"Communities, Customer & Commercial Services",Customer Relationships & Welfare Services,Transfer Payments,Crisis Assistance Awards,Self Isolation Grant,23/07/2021,500
"Communities, Customer & Commercial Services",Customer Relationships & Welfare Services,Transfer Payments,Crisis Assistance Awards,Self Isolation Grant,07/07/2021,500
"Communities, Customer & Commercial Services",Customer Relationships & Welfare Services,Transfer Payments,Crisis Assistance Awards,Self Isolation Grant,01/07/2021,500
"Communities, Customer & Commercial Services",Customer Relationships & Welfare Services,Transfer Payments,Crisis Assistance Awards,Self Isolation Grant,01/07/2021,500
"Communities, Customer & Commercial Services",Customer Relationships & Welfare Services,Transfer Payments,Crisis Assistance Awards,Self Isolation Grant,01/07/2021,500
"Communities, Customer & Commercial Services",Customer Relationships & Welfare Services,Transfer Payments,Crisis Assistance Awards,Self Isolation Grant,01/07/2021,500
"Communities, Customer & Commercial Services",Customer Relationships & Welfare Services,Transfer Payments,Crisis Assistance Awards,Self Isolation Grant,09/07/2021,500
"Communities, Customer & Commercial Services",Customer Relationships & Welfare Services,Transfer Payments,Crisis Assistance Awards,Self Isolation Grant,20/07/2021,500
"Communities, Customer & Commercial Services",Customer Relationships & Welfare Services,Transfer Payments,Crisis Assistance Awards,Self Isolation Grant,01/07/2021,500
"Communities, Customer & Commercial Services",Customer Relationships & Welfare Services,Transfer Payments,Crisis Assistance Awards,Self Isolation Grant,01/07/2021,500
"Communities, Customer & Commercial Services",Customer Relationships & Welfare Services,Transfer Payments,Crisis Assistance Awards,Self Isolation Grant,01/07/2021,500
"Communities, Customer & Commercial Services",Customer Relationships & Welfare Services,Transfer Payments,Crisis Assistance Awards,Self Isolation Grant,01/07/2021,500
"Communities, Customer & Commercial Services",Customer Relationships & Welfare Services,Transfer Payments,Crisis Assistance Awards,Self Isolation Grant,20/07/2021,500
"Communities, Customer & Commercial Services",Customer Relationships & Welfare Services,Transfer Payments,Crisis Assistance Awards,Self Isolation Grant,20/07/2021,500
"Communities, Customer & Commercial Services",Customer Relationships & Welfare Services,Transfer Payments,Crisis Assistance Awards,Self Isolation Grant,20/07/2021,500
"Communities, Customer & Commercial Services",Customer Relationships & Welfare Services,Transfer Payments,Crisis Assistance Awards,Self Isolation Grant,20/07/2021,500
"Communities, Customer & Commercial Services",Customer Relationships & Welfare Services,Transfer Payments,Crisis Assistance Awards,Self Isolation Grant,20/07/2021,500
"Communities, Customer & Commercial Services",Customer Relationships & Welfare Services,Transfer Payments,Crisis Assistance Awards,Self Isolation Grant,20/07/2021,500
"Communities, Customer & Commercial Services",Customer Relationships & Welfare Services,Transfer Payments,Crisis Assistance Awards,Self Isolation Grant,20/07/2021,500
"Communities, Customer & Commercial Services",Customer Relationships & Welfare Services,Transfer Payments,Crisis Assistance Awards,Self Isolation Grant,20/07/2021,500
"Communities, Customer & Commercial Services",Customer Relationships & Welfare Services,Transfer Payments,Crisis Assistance Awards,Self Isolation Grant,20/07/2021,500
"Communities, Customer & Commercial Services",Customer Relationships & Welfare Services,Transfer Payments,Crisis Assistance Awards,Self Isolation Grant,20/07/2021,500
"Communities, Customer & Commercial Services",Customer Relationships & Welfare Services,Transfer Payments,Crisis Assistance Awards,Self Isolation Grant,20/07/2021,500
"Communities, Customer & Commercial Services",Customer Relationships & Welfare Services,Transfer Payments,Crisis Assistance Awards,Self Isolation Grant,20/07/2021,500
"Communities, Customer & Commercial Services",Customer Relationships & Welfare Services,Transfer Payments,Crisis Assistance Awards,Self Isolation Grant,20/07/2021,500
"Communities, Customer & Commercial Services",Customer Relationships & Welfare Services,Transfer Payments,Crisis Assistance Awards,Self Isolation Grant,20/07/2021,500
"Communities, Customer & Commercial Services",Customer Relationships & Welfare Services,Transfer Payments,Crisis Assistance Awards,Self Isolation Grant,20/07/2021,500
"Communities, Customer & Commercial Services",Customer Relationships & Welfare Services,Transfer Payments,Crisis Assistance Awards,Self Isolation Grant,20/07/2021,500
"Communities, Customer & Commercial Services",Customer Relationships & Welfare Services,Transfer Payments,Crisis Assistance Awards,Self Isolation Grant,20/07/2021,500
"Communities, Customer & Commercial Services",Customer Relationships & Welfare Services,Transfer Payments,Crisis Assistance Awards,Self Isolation Grant,20/07/2021,500
"Communities, Customer & Commercial Services",Customer Relationships & Welfare Services,Transfer Payments,Crisis Assistance Awards,Self Isolation Grant,20/07/2021,500
"Communities, Customer & Commercial Services",Customer Relationships & Welfare Services,Transfer Payments,Crisis Assistance Awards,Self Isolation Grant,26/07/2021,500
"Communities, Customer & Commercial Services",Customer Relationships & Welfare Services,Transfer Payments,Crisis Assistance Awards,Self Isolation Grant,26/07/2021,500
"Communities, Customer & Commercial Services",Customer Relationships & Welfare Services,Transfer Payments,Crisis Assistance Awards,Self Isolation Grant,20/07/2021,500
"Communities, Customer & Commercial Services",Customer Relationships & Welfare Services,Transfer Payments,Crisis Assistance Awards,Self Isolation Grant,20/07/2021,500
"Communities, Customer & Commercial Services",Customer Relationships & Welfare Services,Transfer Payments,Crisis Assistance Awards,Self Isolation Grant,20/07/2021,500
"Communities, Customer & Commercial Services",Customer Relationships & Welfare Services,Transfer Payments,Crisis Assistance Awards,Self Isolation Grant,20/07/2021,500
"Communities, Customer & Commercial Services",Customer Relationships & Welfare Services,Transfer Payments,Crisis Assistance Awards,Self Isolation Grant,02/07/2021,500
"Communities, Customer & Commercial Services",Customer Relationships & Welfare Services,Transfer Payments,Crisis Assistance Awards,Self Isolation Grant,19/07/2021,500
"Communities, Customer & Commercial Services",Customer Relationships & Welfare Services,Transfer Payments,Crisis Assistance Awards,Self Isolation Grant,26/07/2021,500
"Communities, Customer & Commercial Services",Customer Relationships & Welfare Services,Transfer Payments,Crisis Assistance Awards,Self Isolation Grant,26/07/2021,500
"Communities, Customer & Commercial Services",Customer Relationships & Welfare Services,Transfer Payments,Crisis Assistance Awards,Self Isolation Grant,26/07/2021,500
"Communities, Customer & Commercial Services",Customer Relationships & Welfare Services,Transfer Payments,Crisis Assistance Awards,Self Isolation Grant,26/07/2021,500
"Communities, Customer & Commercial Services",Customer Relationships & Welfare Services,Transfer Payments,Crisis Assistance Awards,Self Isolation Grant,06/07/2021,500
"Communities, Customer & Commercial Services",Customer Relationships & Welfare Services,Transfer Payments,Crisis Assistance Awards,Self Isolation Grant,06/07/2021,500
"Communities, Customer & Commercial Services",Customer Relationships & Welfare Services,Transfer Payments,Crisis Assistance Awards,Self Isolation Grant,06/07/2021,500
"Communities, Customer & Commercial Services",Customer Relationships & Welfare Services,Transfer Payments,Crisis Assistance Awards,Self Isolation Grant,06/07/2021,500
"Communities, Customer & Commercial Services",Customer Relationships & Welfare Services,Transfer Payments,Crisis Assistance Awards,Self Isolation Grant,02/07/2021,500
"Communities, Customer & Commercial Services",Customer Relationships & Welfare Services,Transfer Payments,Crisis Assistance Awards,Self Isolation Grant,02/07/2021,500
"Communities, Customer & Commercial Services",Customer Relationships & Welfare Services,Transfer Payments,Crisis Assistance Awards,A W HOLDINGS,07/07/2021,827
"Communities, Customer & Commercial Services",ICT,Capital Expenditure,Computer Hardware,XMA LIMITED,12/07/2021,140.00
"Communities, Customer & Commercial Services",ICT,Capital Expenditure,Other Capital Expenditure,GRANVILLE CONSTRUCTION & MAINTENANCE LTD,29/07/2021,144.00
"Communities, Customer & Commercial Services",ICT,Capital Expenditure,Computer Hardware,CCS MEDIA LIMITED,21/07/2021,394.50
"Communities, Customer & Commercial Services",ICT,Capital Expenditure,Other Capital Expenditure,CCS MEDIA LIMITED,28/07/2021,408.00
"Communities, Customer & Commercial Services",ICT,Capital Expenditure,Other Capital Expenditure,CCS MEDIA LIMITED,27/07/2021,425.55
"Communities, Customer & Commercial Services",ICT,Capital Expenditure,Other Capital Expenditure,CCS MEDIA LIMITED,27/07/2021,492.00
"Communities, Customer & Commercial Services",ICT,Capital Expenditure,Other Capital Expenditure,CCS MEDIA LIMITED,28/07/2021,501.60
"Communities, Customer & Commercial Services",ICT,Capital Expenditure,Computer Hardware,CCS MEDIA LIMITED,08/07/2021,664.00
"Communities, Customer & Commercial Services",ICT,Capital Expenditure,Computer Hardware,CCS MEDIA LIMITED,09/07/2021,925.00
"Communities, Customer & Commercial Services",ICT,Capital Expenditure,Other Capital Expenditure,CCS MEDIA LIMITED,21/07/2021,952.00
"Communities, Customer & Commercial Services",ICT,Capital Expenditure,Computer Hardware,CCS MEDIA LIMITED,28/07/2021,"1,000.00"
"Communities, Customer & Commercial Services",ICT,Capital Expenditure,Other Capital Expenditure,CCS MEDIA LIMITED,27/07/2021,"1,194.00"
"Communities, Customer & Commercial Services",ICT,Capital Expenditure,Computer Hardware,CCS MEDIA LIMITED,09/07/2021,"1,390.00"
"Communities, Customer & Commercial Services",ICT,Capital Expenditure,Other Capital Expenditure,AVK/SEG (UK) Ltd,09/07/2021,"1,490.71"
"Communities, Customer & Commercial Services",ICT,Capital Expenditure,Other Capital Expenditure,CCS MEDIA LIMITED,27/07/2021,"1,616.91"
"Communities, Customer & Commercial Services",ICT,Capital Expenditure,Computer Hardware,CCS MEDIA LIMITED,23/07/2021,"2,206.43"
"Communities, Customer & Commercial Services",ICT,Capital Expenditure,Computer Software,PHOENIX SOFTWARE LTD,21/07/2021,"3,380.30"
"Communities, Customer & Commercial Services",ICT,Capital Expenditure,Computer Hardware,CCS MEDIA LIMITED,22/07/2021,"4,800.00"
"Communities, Customer & Commercial Services",ICT,Capital Expenditure,Computer Hardware,CCS MEDIA LIMITED,28/07/2021,"5,374.00"
"Communities, Customer & Commercial Services",ICT,Capital Expenditure,Computer Hardware,CCS MEDIA LIMITED,22/07/2021,"6,489.50"
"Communities, Customer & Commercial Services",ICT,Capital Expenditure,Computer Hardware,Bronze Software Labs Ltd,01/07/2021,"7,225.00"
"Communities, Customer & Commercial Services",ICT,Capital Expenditure,Computer Hardware,Bronze Software Labs Ltd,01/07/2021,"7,650.00"
"Communities, Customer & Commercial Services",ICT,Capital Expenditure,Computer Software,CAPITA IT SERVICES LIMITED,21/07/2021,"52,856.64"
"Communities, Customer & Commercial Services",ICT,Premises-Related Expenditure,Intra Committee - Premises,Charlton Academy,01/07/2021,891.79
"Communities, Customer & Commercial Services",ICT,Supplies & Services,Telecomms,VIRGIN MEDIA BUSINESS ,27/07/2021,102.31
"Communities, Customer & Commercial Services",ICT,Supplies & Services,Telecomms,Airband Community Internet,29/07/2021,125
"Communities, Customer & Commercial Services",ICT,Supplies & Services,Telecomms,Airband Community Internet,29/07/2021,125
"Communities, Customer & Commercial Services",ICT,Supplies & Services,Telecomms,Airband Community Internet,29/07/2021,125
"Communities, Customer & Commercial Services",ICT,Supplies & Services,Telephones,CAPITA IT SERVICES LIMITED,21/07/2021,138.22
"Communities, Customer & Commercial Services",ICT,Supplies & Services,Text Messages,PROCESS FLOWS UK LTD,09/07/2021,255.54
"Communities, Customer & Commercial Services",ICT,Supplies & Services,Mobile Phones,EE LTD AIRTIME ,15/07/2021,321
"Communities, Customer & Commercial Services",ICT,Supplies & Services,Comp Hardware (Purch / Hire),Press Red Rentals Limited,21/07/2021,344.56
"Communities, Customer & Commercial Services",ICT,Supplies & Services,Comp Hardware (Purch / Hire),CCS MEDIA LIMITED,14/07/2021,384
"Communities, Customer & Commercial Services",ICT,Supplies & Services,Comp Hardware (Purch / Hire),CCS MEDIA LIMITED,27/07/2021,479
"Communities, Customer & Commercial Services",ICT,Supplies & Services,Telecomms,Airband Community Internet,29/07/2021,491.65
"Communities, Customer & Commercial Services",ICT,Supplies & Services,Equipment - Purchase,COOL SERVICES LTD,12/07/2021,514.28
"Communities, Customer & Commercial Services",ICT,Supplies & Services,Equipment - Purchase,CCS MEDIA LIMITED,27/07/2021,517.34
"Communities, Customer & Commercial Services",ICT,Supplies & Services,Stationery,PREMIER PAPER GROUP LTD,12/07/2021,543.75
"Communities, Customer & Commercial Services",ICT,Supplies & Services,Telephones,BRITISH TELECOMMUNICATIONS PLC ,22/07/2021,561.54
"Communities, Customer & Commercial Services",ICT,Supplies & Services,Comp Software (Purch / Hire),CCS MEDIA LIMITED,20/07/2021,668.1
"Communities, Customer & Commercial Services",ICT,Supplies & Services,Telecomms,Nominet,27/07/2021,765.94
"Communities, Customer & Commercial Services",ICT,Supplies & Services,Telephones,VIRGIN MEDIA BUSINESS LTD ,06/07/2021,1078.01
"Communities, Customer & Commercial Services",ICT,Supplies & Services,Telephones,BRITISH TELECOMMUNICATIONS PLC,23/07/2021,1210.57
"Communities, Customer & Commercial Services",ICT,Supplies & Services,Telecomms,BRITISH TELECOMMUNICATIONS PLC,27/07/2021,1231.32
"Communities, Customer & Commercial Services",ICT,Supplies & Services,Telecomms,BRITISH TELECOMMUNICATIONS PLC,27/07/2021,1231.32
"Communities, Customer & Commercial Services",ICT,Supplies & Services,Comp Software (Purch / Hire),PILLAR SOFTWARE LIMITED,16/07/2021,1325
"Communities, Customer & Commercial Services",ICT,Supplies & Services,Equipment - Purchase,CCS MEDIA LIMITED,27/07/2021,2175.56
"Communities, Customer & Commercial Services",ICT,Supplies & Services,Comp Software (Purch / Hire),PHOENIX SOFTWARE LTD,29/07/2021,2232.92
"Communities, Customer & Commercial Services",ICT,Supplies & Services,Telecomms,BRITISH TELECOMMUNICATIONS PLC,27/07/2021,2373.57
"Communities, Customer & Commercial Services",ICT,Supplies & Services,Telecomms,BRITISH TELECOMMUNICATIONS PLC,27/07/2021,2373.58
"Communities, Customer & Commercial Services",ICT,Supplies & Services,Equipment - Purchase,CCS MEDIA LIMITED,28/07/2021,2695
"Communities, Customer & Commercial Services",ICT,Supplies & Services,Telecomms,VIRGIN MEDIA BUSINESS LTD ,20/07/2021,2923.22
"Communities, Customer & Commercial Services",ICT,Supplies & Services,Telecomms,VODAFONE LTD,09/07/2021,3089
"Communities, Customer & Commercial Services",ICT,Supplies & Services,Telecomms,VIRGIN MEDIA BUSINESS,27/07/2021,3174.66
"Communities, Customer & Commercial Services",ICT,Supplies & Services,Comp Hardware (Purch / Hire),CCS MEDIA LIMITED,21/07/2021,3250
"Communities, Customer & Commercial Services",ICT,Supplies & Services,Telephones,CAPITA IT SERVICES LIMITED,28/07/2021,3953.53
"Communities, Customer & Commercial Services",ICT,Supplies & Services,Comp Software (Purch / Hire),Zellis UK Ltd,09/07/2021,4125
"Communities, Customer & Commercial Services",ICT,Supplies & Services,Equipment - Purchase,CCS MEDIA LIMITED,28/07/2021,5972.89
"Communities, Customer & Commercial Services",ICT,Supplies & Services,Comp Software (Purch / Hire),Bronze Software Labs Ltd,01/07/2021,8000
"Communities, Customer & Commercial Services",ICT,Supplies & Services,Comp Software (Purch / Hire),PHOENIX SOFTWARE LTD,21/07/2021,10732.32
"Communities, Customer & Commercial Services",ICT,Supplies & Services,Mobile Phones,EE LTD AIRTIME ,15/07/2021,11515.42
"Communities, Customer & Commercial Services",ICT,Supplies & Services,Comp Software (Purch / Hire),IDOX SOFTWARE LTD,19/07/2021,20493.7
"Communities, Customer & Commercial Services",ICT,Supplies & Services,Equipment - Purchase,CCS MEDIA LIMITED,28/07/2021,27115.66
"Communities, Customer & Commercial Services",ICT,Supplies & Services,Computer Hardware (Maint),PHOENIX SOFTWARE LTD,23/07/2021,47003.62
"Communities, Customer & Commercial Services",ICT,Supplies & Services,Computer Hardware (Maint),PHOENIX SOFTWARE LTD,23/07/2021,70505.44
"Communities, Customer & Commercial Services",ICT,Supplies & Services,Telecomms,CAPITA IT SERVICES LIMITED,19/07/2021,301410.32
"Communities, Customer & Commercial Services",ICT,Supplies & Services,Telecomms,CAPITA IT SERVICES LIMITED,19/07/2021,484549
"Communities, Customer & Commercial Services",Sport & Leisure,Capital Expenditure,Payments to Contractor,REDACTED PERSONAL INFORMATION,02/07/2021,"2,790.00"
"Communities, Customer & Commercial Services",Sport & Leisure,Capital Financing Costs,Loans Repaid,LTA OPERATIONS LTD,27/07/2021,13000
"Communities, Customer & Commercial Services",Sport & Leisure,Employees,Agency Supply Costs,TOTAL CATERING SOLUTONS RECRUITMENT LTD,09/07/2021,121.44
"Communities, Customer & Commercial Services",Sport & Leisure,Employees,Agency Supply Costs,TOTAL CATERING SOLUTONS RECRUITMENT LTD,28/07/2021,151.8
"Communities, Customer & Commercial Services",Sport & Leisure,Employees,Agency Supply Costs,TOTAL CATERING SOLUTONS RECRUITMENT LTD,09/07/2021,182.16
"Communities, Customer & Commercial Services",Sport & Leisure,Employees,Agency Supply Costs,TOTAL CATERING SOLUTONS RECRUITMENT LTD,09/07/2021,182.16
"Communities, Customer & Commercial Services",Sport & Leisure,Employees,Agency Supply Costs,TOTAL CATERING SOLUTONS RECRUITMENT LTD,09/07/2021,182.16
"Communities, Customer & Commercial Services",Sport & Leisure,Employees,Agency Supply Costs,TOTAL CATERING SOLUTONS RECRUITMENT LTD,19/07/2021,182.16
"Communities, Customer & Commercial Services",Sport & Leisure,Employees,Agency Supply Costs,TOTAL CATERING SOLUTONS RECRUITMENT LTD,09/07/2021,242.88
"Communities, Customer & Commercial Services",Sport & Leisure,Employees,Agency Supply Costs,TOTAL CATERING SOLUTONS RECRUITMENT LTD,07/07/2021,242.88
"Communities, Customer & Commercial Services",Sport & Leisure,Employees,Agency Supply Costs,TOTAL CATERING SOLUTONS RECRUITMENT LTD,07/07/2021,242.88
"Communities, Customer & Commercial Services",Sport & Leisure,Employees,Agency Supply Costs,TOTAL CATERING SOLUTONS RECRUITMENT LTD,09/07/2021,242.88
"Communities, Customer & Commercial Services",Sport & Leisure,Employees,Agency Supply Costs,TOTAL CATERING SOLUTONS RECRUITMENT LTD,28/07/2021,250.47
"Communities, Customer & Commercial Services",Sport & Leisure,Employees,Agency Supply Costs,TOTAL CATERING SOLUTONS RECRUITMENT LTD,28/07/2021,303.6
"Communities, Customer & Commercial Services",Sport & Leisure,Employees,Agency Supply Costs,TOTAL CATERING SOLUTONS RECRUITMENT LTD,28/07/2021,303.6
"Communities, Customer & Commercial Services",Sport & Leisure,Employees,Agency Supply Costs,TOTAL CATERING SOLUTONS RECRUITMENT LTD,13/07/2021,303.6
"Communities, Customer & Commercial Services",Sport & Leisure,Employees,Agency Supply Costs,TOTAL CATERING SOLUTONS RECRUITMENT LTD,07/07/2021,303.6
"Communities, Customer & Commercial Services",Sport & Leisure,Employees,Agency Supply Costs,TOTAL CATERING SOLUTONS RECRUITMENT LTD,28/07/2021,303.6
"Communities, Customer & Commercial Services",Sport & Leisure,Employees,Agency Supply Costs,TOTAL CATERING SOLUTONS RECRUITMENT LTD,09/07/2021,303.6
"Communities, Customer & Commercial Services",Sport & Leisure,Employees,Agency Supply Costs,TOTAL CATERING SOLUTONS RECRUITMENT LTD,09/07/2021,303.6
"Communities, Customer & Commercial Services",Sport & Leisure,Employees,Agency Supply Costs,TOTAL CATERING SOLUTONS RECRUITMENT LTD,09/07/2021,303.6
"Communities, Customer & Commercial Services",Sport & Leisure,Employees,Agency Supply Costs,TOTAL CATERING SOLUTONS RECRUITMENT LTD,07/07/2021,303.6
"Communities, Customer & Commercial Services",Sport & Leisure,Employees,Agency Supply Costs,TOTAL CATERING SOLUTONS RECRUITMENT LTD,07/07/2021,303.6
"Communities, Customer & Commercial Services",Sport & Leisure,Employees,Agency Supply Costs,TOTAL CATERING SOLUTONS RECRUITMENT LTD,09/07/2021,303.6
"Communities, Customer & Commercial Services",Sport & Leisure,Employees,Agency Supply Costs,TOTAL CATERING SOLUTONS RECRUITMENT LTD,09/07/2021,303.6
"Communities, Customer & Commercial Services",Sport & Leisure,Employees,Agency Supply Costs,TOTAL CATERING SOLUTONS RECRUITMENT LTD,09/07/2021,303.6
"Communities, Customer & Commercial Services",Sport & Leisure,Employees,Agency Supply Costs,TOTAL CATERING SOLUTONS RECRUITMENT LTD,19/07/2021,303.6
"Communities, Customer & Commercial Services",Sport & Leisure,Employees,Agency Supply Costs,TOTAL CATERING SOLUTONS RECRUITMENT LTD,19/07/2021,303.6
"Communities, Customer & Commercial Services",Sport & Leisure,Employees,Agency Supply Costs,TOTAL CATERING SOLUTONS RECRUITMENT LTD,19/07/2021,303.6
"Communities, Customer & Commercial Services",Sport & Leisure,Employees,Agency Supply Costs,TOTAL CATERING SOLUTONS RECRUITMENT LTD,19/07/2021,303.6
"Communities, Customer & Commercial Services",Sport & Leisure,Employees,Agency Supply Costs,TOTAL CATERING SOLUTONS RECRUITMENT LTD,09/07/2021,323.2
"Communities, Customer & Commercial Services",Sport & Leisure,Employees,Agency Supply Costs,TOTAL CATERING SOLUTONS RECRUITMENT LTD,28/07/2021,364.32
"Communities, Customer & Commercial Services",Sport & Leisure,Employees,Agency Supply Costs,TOTAL CATERING SOLUTONS RECRUITMENT LTD,07/07/2021,607.2
"Communities, Customer & Commercial Services",Sport & Leisure,Employees,Agency Supply Costs,TOTAL CATERING SOLUTONS RECRUITMENT LTD,19/07/2021,607.2
"Communities, Customer & Commercial Services",Sport & Leisure,Premises-Related Expenditure,Clean Mats & Toilet Requisites,Border Janitorial Supplies Limited,30/07/2021,101.1
"Communities, Customer & Commercial Services",Sport & Leisure,Premises-Related Expenditure,Clean Mats & Toilet Requisites,Border Janitorial Supplies Limited,19/07/2021,102.64
"Communities, Customer & Commercial Services",Sport & Leisure,Premises-Related Expenditure,Clean Mats & Toilet Requisites,Border Janitorial Supplies Limited,26/07/2021,103
"Communities, Customer & Commercial Services",Sport & Leisure,Premises-Related Expenditure,Clean Mats & Toilet Requisites,Border Janitorial Supplies Limited,07/07/2021,103.52
"Communities, Customer & Commercial Services",Sport & Leisure,Premises-Related Expenditure,Clean Mats & Toilet Requisites,Border Janitorial Supplies Limited,30/07/2021,105.32
"Communities, Customer & Commercial Services",Sport & Leisure,Premises-Related Expenditure,Clean Mats & Toilet Requisites,Border Janitorial Supplies Limited,30/07/2021,105.32
"Communities, Customer & Commercial Services",Sport & Leisure,Premises-Related Expenditure,Clean Mats & Toilet Requisites,Border Janitorial Supplies Limited,07/07/2021,105.32
"Communities, Customer & Commercial Services",Sport & Leisure,Premises-Related Expenditure,Clean Mats & Toilet Requisites,Border Janitorial Supplies Limited,12/07/2021,105.32
"Communities, Customer & Commercial Services",Sport & Leisure,Premises-Related Expenditure,Clean Mats & Toilet Requisites,Border Janitorial Supplies Limited,12/07/2021,105.32
"Communities, Customer & Commercial Services",Sport & Leisure,Premises-Related Expenditure,Clean Mats & Toilet Requisites,Border Janitorial Supplies Limited,07/07/2021,105.32
"Communities, Customer & Commercial Services",Sport & Leisure,Premises-Related Expenditure,Clean Mats & Toilet Requisites,Border Janitorial Supplies Limited,30/07/2021,107.62
"Communities, Customer & Commercial Services",Sport & Leisure,Premises-Related Expenditure,Clean Mats & Toilet Requisites,Border Janitorial Supplies Limited,30/07/2021,108.36
"Communities, Customer & Commercial Services",Sport & Leisure,Premises-Related Expenditure,Clean Mats & Toilet Requisites,Border Janitorial Supplies Limited,30/07/2021,109.25
"Communities, Customer & Commercial Services",Sport & Leisure,Premises-Related Expenditure,Clean Mats & Toilet Requisites,Border Janitorial Supplies Limited,19/07/2021,111.28
"Communities, Customer & Commercial Services",Sport & Leisure,Premises-Related Expenditure,Clean Mats & Toilet Requisites,Border Janitorial Supplies Limited,30/07/2021,119.55
"Communities, Customer & Commercial Services",Sport & Leisure,Premises-Related Expenditure,R&M - Mechanical,Life Fitness UK Ltd,01/07/2021,120.53
"Communities, Customer & Commercial Services",Sport & Leisure,Premises-Related Expenditure,Clean Mats & Toilet Requisites,Border Janitorial Supplies Limited,30/07/2021,121.22
"Communities, Customer & Commercial Services",Sport & Leisure,Premises-Related Expenditure,Clean Mats & Toilet Requisites,Border Janitorial Supplies Limited,30/07/2021,121.22
"Communities, Customer & Commercial Services",Sport & Leisure,Premises-Related Expenditure,Clean Mats & Toilet Requisites,Border Janitorial Supplies Limited,30/07/2021,121.22
"Communities, Customer & Commercial Services",Sport & Leisure,Premises-Related Expenditure,Clean Mats & Toilet Requisites,Border Janitorial Supplies Limited,07/07/2021,127.62
"Communities, Customer & Commercial Services",Sport & Leisure,Premises-Related Expenditure,Clean Mats & Toilet Requisites,Border Janitorial Supplies Limited,30/07/2021,132.22
"Communities, Customer & Commercial Services",Sport & Leisure,Premises-Related Expenditure,Clean Mats & Toilet Requisites,Border Janitorial Supplies Limited,30/07/2021,132.22
"Communities, Customer & Commercial Services",Sport & Leisure,Premises-Related Expenditure,Clean Mats & Toilet Requisites,Border Janitorial Supplies Limited,30/07/2021,136.5
"Communities, Customer & Commercial Services",Sport & Leisure,Premises-Related Expenditure,Clean Mats & Toilet Requisites,Border Janitorial Supplies Limited,30/07/2021,138.88
"Communities, Customer & Commercial Services",Sport & Leisure,Premises-Related Expenditure,Clean Mats & Toilet Requisites,Border Janitorial Supplies Limited,30/07/2021,138.88
"Communities, Customer & Commercial Services",Sport & Leisure,Premises-Related Expenditure,Clean Mats & Toilet Requisites,Border Janitorial Supplies Limited,30/07/2021,143.15
"Communities, Customer & Commercial Services",Sport & Leisure,Premises-Related Expenditure,Clean Mats & Toilet Requisites,Border Janitorial Supplies Limited,30/07/2021,145.88
"Communities, Customer & Commercial Services",Sport & Leisure,Premises-Related Expenditure,R&M -Buildings DLO Charge,PROKILL UK LIMITED,06/07/2021,150
"Communities, Customer & Commercial Services",Sport & Leisure,Premises-Related Expenditure,Clean Mats & Toilet Requisites,Border Janitorial Supplies Limited,19/07/2021,154.1
"Communities, Customer & Commercial Services",Sport & Leisure,Premises-Related Expenditure,Clean Mats & Toilet Requisites,Border Janitorial Supplies Limited,09/07/2021,154.11
"Communities, Customer & Commercial Services",Sport & Leisure,Premises-Related Expenditure,Clean Mats & Toilet Requisites,Border Janitorial Supplies Limited,30/07/2021,155.08
"Communities, Customer & Commercial Services",Sport & Leisure,Premises-Related Expenditure,Clean Mats & Toilet Requisites,Border Janitorial Supplies Limited,30/07/2021,155.75
"Communities, Customer & Commercial Services",Sport & Leisure,Premises-Related Expenditure,Clean Mats & Toilet Requisites,Border Janitorial Supplies Limited,30/07/2021,157.18
"Communities, Customer & Commercial Services",Sport & Leisure,Premises-Related Expenditure,Clean Mats & Toilet Requisites,Border Janitorial Supplies Limited,30/07/2021,159.84
"Communities, Customer & Commercial Services",Sport & Leisure,Premises-Related Expenditure,Clean Mats & Toilet Requisites,Border Janitorial Supplies Limited,30/07/2021,176.91
"Communities, Customer & Commercial Services",Sport & Leisure,Premises-Related Expenditure,Clean Mats & Toilet Requisites,Border Janitorial Supplies Limited,12/07/2021,178.14
"Communities, Customer & Commercial Services",Sport & Leisure,Premises-Related Expenditure,Clean Mats & Toilet Requisites,Border Janitorial Supplies Limited,30/07/2021,178.8
"Communities, Customer & Commercial Services",Sport & Leisure,Premises-Related Expenditure,Clean Mats & Toilet Requisites,Border Janitorial Supplies Limited,30/07/2021,181.32
"Communities, Customer & Commercial Services",Sport & Leisure,Premises-Related Expenditure,Clean Mats & Toilet Requisites,Border Janitorial Supplies Limited,09/07/2021,188.07
"Communities, Customer & Commercial Services",Sport & Leisure,Premises-Related Expenditure,Clean Mats & Toilet Requisites,Border Janitorial Supplies Limited,07/07/2021,201.39
"Communities, Customer & Commercial Services",Sport & Leisure,Premises-Related Expenditure,Clean Mats & Toilet Requisites,THE CLEAN MACHINE DIRECT LTD,30/07/2021,218.85
"Communities, Customer & Commercial Services",Sport & Leisure,Premises-Related Expenditure,Clean Mats & Toilet Requisites,Border Janitorial Supplies Limited,30/07/2021,224.56
"Communities, Customer & Commercial Services",Sport & Leisure,Premises-Related Expenditure,Clean Mats & Toilet Requisites,Border Janitorial Supplies Limited,30/07/2021,227.39
"Communities, Customer & Commercial Services",Sport & Leisure,Premises-Related Expenditure,Clean Mats & Toilet Requisites,Border Janitorial Supplies Limited,30/07/2021,229
"Communities, Customer & Commercial Services",Sport & Leisure,Premises-Related Expenditure,Clean Mats & Toilet Requisites,Border Janitorial Supplies Limited,30/07/2021,238.71
"Communities, Customer & Commercial Services",Sport & Leisure,Premises-Related Expenditure,Clean Mats & Toilet Requisites,TOTAL CATERING SOLUTONS RECRUITMENT LTD,12/07/2021,242.88
"Communities, Customer & Commercial Services",Sport & Leisure,Premises-Related Expenditure,Clean Mats & Toilet Requisites,Border Janitorial Supplies Limited,30/07/2021,257.82
"Communities, Customer & Commercial Services",Sport & Leisure,Premises-Related Expenditure,Clean Mats & Toilet Requisites,Border Janitorial Supplies Limited,30/07/2021,266.89
"Communities, Customer & Commercial Services",Sport & Leisure,Premises-Related Expenditure,Clean Mats & Toilet Requisites,Border Janitorial Supplies Limited,30/07/2021,268.88
"Communities, Customer & Commercial Services",Sport & Leisure,Premises-Related Expenditure,Clean Mats & Toilet Requisites,Border Janitorial Supplies Limited,30/07/2021,273.84
"Communities, Customer & Commercial Services",Sport & Leisure,Premises-Related Expenditure,Clean Mats & Toilet Requisites,Border Janitorial Supplies Limited,12/07/2021,311.59
"Communities, Customer & Commercial Services",Sport & Leisure,Premises-Related Expenditure,Clean Mats & Toilet Requisites,Border Janitorial Supplies Limited,30/07/2021,325.15
"Communities, Customer & Commercial Services",Sport & Leisure,Premises-Related Expenditure,Clean Mats & Toilet Requisites,Border Janitorial Supplies Limited,30/07/2021,353.94
"Communities, Customer & Commercial Services",Sport & Leisure,Premises-Related Expenditure,Clean Mats & Toilet Requisites,Border Janitorial Supplies Limited,06/07/2021,394.17
"Communities, Customer & Commercial Services",Sport & Leisure,Premises-Related Expenditure,Clean Mats & Toilet Requisites,Border Janitorial Supplies Limited,30/07/2021,407.04
"Communities, Customer & Commercial Services",Sport & Leisure,Premises-Related Expenditure,Clean Mats & Toilet Requisites,Border Janitorial Supplies Limited,13/07/2021,413.96
"Communities, Customer & Commercial Services",Sport & Leisure,Premises-Related Expenditure,Minor Alterations H & Safety,GRANVILLE CONSTRUCTION & MAINTENANCE LTD,29/07/2021,462.59
"Communities, Customer & Commercial Services",Sport & Leisure,Premises-Related Expenditure,R&M WC Planned,Agrovista UK LTD,02/07/2021,606
"Communities, Customer & Commercial Services",Sport & Leisure,Premises-Related Expenditure,R&M WC Planned,Agrovista UK LTD,02/07/2021,1032.7
"Communities, Customer & Commercial Services",Sport & Leisure,Premises-Related Expenditure,Clean Mats & Toilet Requisites,TOTAL CATERING SOLUTONS RECRUITMENT LTD,30/07/2021,1070.6
"Communities, Customer & Commercial Services",Sport & Leisure,Premises-Related Expenditure,Clean Mats & Toilet Requisites,TOTAL CATERING SOLUTONS RECRUITMENT LTD,30/07/2021,1073.48
"Communities, Customer & Commercial Services",Sport & Leisure,Premises-Related Expenditure,Clean Mats & Toilet Requisites,TOTAL CATERING SOLUTONS RECRUITMENT LTD,30/07/2021,1078.68
"Communities, Customer & Commercial Services",Sport & Leisure,Premises-Related Expenditure,Clean Mats & Toilet Requisites,TOTAL CATERING SOLUTONS RECRUITMENT LTD,30/07/2021,1098.88
"Communities, Customer & Commercial Services",Sport & Leisure,Premises-Related Expenditure,Clean Mats & Toilet Requisites,TOTAL CATERING SOLUTONS RECRUITMENT LTD,30/07/2021,1111
"Communities, Customer & Commercial Services",Sport & Leisure,Premises-Related Expenditure,R&M WC Planned,Agrovista UK LTD,22/07/2021,2500
"Communities, Customer & Commercial Services",Sport & Leisure,Premises-Related Expenditure,Clean Mats & Toilet Requisites,Border Janitorial Supplies Limited,12/07/2021,2560.8
"Communities, Customer & Commercial Services",Sport & Leisure,Premises-Related Expenditure,Clean Mats & Toilet Requisites,TOTAL CATERING SOLUTONS RECRUITMENT LTD,12/07/2021,2666.4
"Communities, Customer & Commercial Services",Sport & Leisure,Premises-Related Expenditure,Clean Mats & Toilet Requisites,TOTAL CATERING SOLUTONS RECRUITMENT LTD,12/07/2021,2852.31
"Communities, Customer & Commercial Services",Sport & Leisure,Premises-Related Expenditure,Clean Mats & Toilet Requisites,TOTAL CATERING SOLUTONS RECRUITMENT LTD,12/07/2021,2912.84
"Communities, Customer & Commercial Services",Sport & Leisure,Supplies & Services,Provisions,BIKOLD,15/07/2021,100.07
"Communities, Customer & Commercial Services",Sport & Leisure,Supplies & Services,Provisions,BIKOLD,23/07/2021,100.32
"Communities, Customer & Commercial Services",Sport & Leisure,Supplies & Services,Provisions,R & COMPANY,13/07/2021,100.37
"Communities, Customer & Commercial Services",Sport & Leisure,Supplies & Services,Provisions,BIKOLD,23/07/2021,100.44
"Communities, Customer & Commercial Services",Sport & Leisure,Supplies & Services,Provisions,R & COMPANY,13/07/2021,100.63
"Communities, Customer & Commercial Services",Sport & Leisure,Supplies & Services,Provisions,BIKOLD,02/07/2021,100.75
"Communities, Customer & Commercial Services",Sport & Leisure,Supplies & Services,Provisions,R & COMPANY,13/07/2021,100.82
"Communities, Customer & Commercial Services",Sport & Leisure,Supplies & Services,Provisions,BIKOLD,02/07/2021,100.85
"Communities, Customer & Commercial Services",Sport & Leisure,Supplies & Services,Provisions,R & COMPANY,05/07/2021,101.28
"Communities, Customer & Commercial Services",Sport & Leisure,Supplies & Services,Provisions,J S Catering Butchers,13/07/2021,101.44
"Communities, Customer & Commercial Services",Sport & Leisure,Supplies & Services,Provisions,BIKOLD,08/07/2021,101.48
"Communities, Customer & Commercial Services",Sport & Leisure,Supplies & Services,Provisions,BIKOLD,02/07/2021,101.6
"Communities, Customer & Commercial Services",Sport & Leisure,Supplies & Services,Provisions,J S Catering Butchers,13/07/2021,102
"Communities, Customer & Commercial Services",Sport & Leisure,Supplies & Services,Provisions,J S Catering Butchers,26/07/2021,102.55
"Communities, Customer & Commercial Services",Sport & Leisure,Supplies & Services,Provisions,R & COMPANY,19/07/2021,102.92
"Communities, Customer & Commercial Services",Sport & Leisure,Supplies & Services,Provisions,BIKOLD,23/07/2021,103.02
"Communities, Customer & Commercial Services",Sport & Leisure,Supplies & Services,Provisions,BIKOLD,15/07/2021,103.05
"Communities, Customer & Commercial Services",Sport & Leisure,Supplies & Services,Provisions,BIKOLD,15/07/2021,103.09
"Communities, Customer & Commercial Services",Sport & Leisure,Supplies & Services,Provisions,J S Catering Butchers,13/07/2021,103.47
"Communities, Customer & Commercial Services",Sport & Leisure,Supplies & Services,Provisions,R & COMPANY,26/07/2021,103.55
"Communities, Customer & Commercial Services",Sport & Leisure,Supplies & Services,Provisions,BIKOLD,02/07/2021,103.94
"Communities, Customer & Commercial Services",Sport & Leisure,Supplies & Services,Provisions,BIKOLD,02/07/2021,104.71
"Communities, Customer & Commercial Services",Sport & Leisure,Supplies & Services,Provisions,R & COMPANY,05/07/2021,104.74
"Communities, Customer & Commercial Services",Sport & Leisure,Supplies & Services,Provisions,BIKOLD,02/07/2021,104.83
"Communities, Customer & Commercial Services",Sport & Leisure,Supplies & Services,Provisions,BIKOLD,08/07/2021,105.17
"Communities, Customer & Commercial Services",Sport & Leisure,Supplies & Services,Provisions,BIKOLD,02/07/2021,105.23
"Communities, Customer & Commercial Services",Sport & Leisure,Supplies & Services,Provisions,BIKOLD,02/07/2021,105.41
"Communities, Customer & Commercial Services",Sport & Leisure,Supplies & Services,Provisions,R & COMPANY,19/07/2021,105.62
"Communities, Customer & Commercial Services",Sport & Leisure,Supplies & Services,Provisions,BIKOLD,02/07/2021,105.75
"Communities, Customer & Commercial Services",Sport & Leisure,Supplies & Services,Provisions,DO NOT USE FOR ORDERING- DIRECT BILLING ONLY,15/07/2021,105.81
"Communities, Customer & Commercial Services",Sport & Leisure,Supplies & Services,Provisions,J S Catering Butchers,26/07/2021,106.03
"Communities, Customer & Commercial Services",Sport & Leisure,Supplies & Services,Provisions,BIKOLD,15/07/2021,106.27
"Communities, Customer & Commercial Services",Sport & Leisure,Supplies & Services,Provisions,J S Catering Butchers,05/07/2021,106.45
"Communities, Customer & Commercial Services",Sport & Leisure,Supplies & Services,Provisions,BIKOLD,08/07/2021,106.75
"Communities, Customer & Commercial Services",Sport & Leisure,Supplies & Services,Provisions,BIKOLD,15/07/2021,107.81
"Communities, Customer & Commercial Services",Sport & Leisure,Supplies & Services,Provisions,BIKOLD,15/07/2021,108.47
"Communities, Customer & Commercial Services",Sport & Leisure,Supplies & Services,Provisions,R & COMPANY,19/07/2021,108.59
"Communities, Customer & Commercial Services",Sport & Leisure,Supplies & Services,Provisions,BIKOLD,02/07/2021,109.27
"Communities, Customer & Commercial Services",Sport & Leisure,Supplies & Services,Provisions,BIKOLD,15/07/2021,109.75
"Communities, Customer & Commercial Services",Sport & Leisure,Supplies & Services,Provisions,R & COMPANY,05/07/2021,109.98
"Communities, Customer & Commercial Services",Sport & Leisure,Supplies & Services,Provisions,BIKOLD,15/07/2021,110.17
"Communities, Customer & Commercial Services",Sport & Leisure,Supplies & Services,Provisions,R & COMPANY,05/07/2021,110.2
"Communities, Customer & Commercial Services",Sport & Leisure,Supplies & Services,Provisions,BIKOLD,08/07/2021,110.33
"Communities, Customer & Commercial Services",Sport & Leisure,Supplies & Services,Provisions,BIKOLD,08/07/2021,110.46
"Communities, Customer & Commercial Services",Sport & Leisure,Supplies & Services,Financial Services,DEBIT FINANCE COLLECTIONS ,27/07/2021,110.62
"Communities, Customer & Commercial Services",Sport & Leisure,Supplies & Services,Provisions,BIKOLD,02/07/2021,110.79
"Communities, Customer & Commercial Services",Sport & Leisure,Supplies & Services,Provisions,SPICE TIME,21/07/2021,111
"Communities, Customer & Commercial Services",Sport & Leisure,Supplies & Services,Provisions,BIKOLD,15/07/2021,111.04
"Communities, Customer & Commercial Services",Sport & Leisure,Supplies & Services,Provisions,BIKOLD,02/07/2021,111.22
"Communities, Customer & Commercial Services",Sport & Leisure,Supplies & Services,Provisions,R & COMPANY,05/07/2021,111.25
"Communities, Customer & Commercial Services",Sport & Leisure,Supplies & Services,Provisions,BIKOLD,23/07/2021,111.27
"Communities, Customer & Commercial Services",Sport & Leisure,Supplies & Services,Provisions,BIKOLD,15/07/2021,111.69
"Communities, Customer & Commercial Services",Sport & Leisure,Supplies & Services,Provisions,R & COMPANY,05/07/2021,112.83
"Communities, Customer & Commercial Services",Sport & Leisure,Supplies & Services,Provisions,BIKOLD,15/07/2021,113
"Communities, Customer & Commercial Services",Sport & Leisure,Supplies & Services,Provisions,BIKOLD,02/07/2021,113.36
"Communities, Customer & Commercial Services",Sport & Leisure,Supplies & Services,Provisions,BIKOLD,02/07/2021,113.46
"Communities, Customer & Commercial Services",Sport & Leisure,Supplies & Services,Provisions,BIKOLD,02/07/2021,113.81
"Communities, Customer & Commercial Services",Sport & Leisure,Supplies & Services,Provisions,BIKOLD,15/07/2021,114.67
"Communities, Customer & Commercial Services",Sport & Leisure,Supplies & Services,Provisions,BIKOLD,02/07/2021,114.83
"Communities, Customer & Commercial Services",Sport & Leisure,Supplies & Services,Provisions,BIKOLD,08/07/2021,114.93
"Communities, Customer & Commercial Services",Sport & Leisure,Supplies & Services,Provisions,BIKOLD,08/07/2021,115.09
"Communities, Customer & Commercial Services",Sport & Leisure,Supplies & Services,Provisions,BIKOLD,15/07/2021,115.09
"Communities, Customer & Commercial Services",Sport & Leisure,Supplies & Services,Provisions,BIKOLD,02/07/2021,115.46
"Communities, Customer & Commercial Services",Sport & Leisure,Supplies & Services,Provisions,BIKOLD,08/07/2021,115.51
"Communities, Customer & Commercial Services",Sport & Leisure,Supplies & Services,Provisions,BIKOLD,02/07/2021,115.58
"Communities, Customer & Commercial Services",Sport & Leisure,Supplies & Services,Provisions,BIKOLD,15/07/2021,116.18
"Communities, Customer & Commercial Services",Sport & Leisure,Supplies & Services,Provisions,BIKOLD,02/07/2021,116.28
"Communities, Customer & Commercial Services",Sport & Leisure,Supplies & Services,Provisions,BIKOLD,08/07/2021,116.49
"Communities, Customer & Commercial Services",Sport & Leisure,Supplies & Services,Provisions,BIKOLD,15/07/2021,116.52
"Communities, Customer & Commercial Services",Sport & Leisure,Supplies & Services,Provisions,BIKOLD,08/07/2021,116.53
"Communities, Customer & Commercial Services",Sport & Leisure,Supplies & Services,Provisions,BIKOLD,02/07/2021,116.69
"Communities, Customer & Commercial Services",Sport & Leisure,Supplies & Services,Provisions,BIKOLD,02/07/2021,116.74
"Communities, Customer & Commercial Services",Sport & Leisure,Supplies & Services,Provisions,J S Catering Butchers,05/07/2021,117.1
"Communities, Customer & Commercial Services",Sport & Leisure,Supplies & Services,Provisions,BIKOLD,15/07/2021,117.13
"Communities, Customer & Commercial Services",Sport & Leisure,Supplies & Services,Provisions,R & COMPANY,13/07/2021,117.4
"Communities, Customer & Commercial Services",Sport & Leisure,Supplies & Services,Provisions,BIKOLD,02/07/2021,117.48
"Communities, Customer & Commercial Services",Sport & Leisure,Supplies & Services,Provisions,BIKOLD,15/07/2021,117.63
"Communities, Customer & Commercial Services",Sport & Leisure,Supplies & Services,Provisions,BIKOLD,02/07/2021,117.89
"Communities, Customer & Commercial Services",Sport & Leisure,Supplies & Services,Provisions,Delice de France,28/07/2021,118
"Communities, Customer & Commercial Services",Sport & Leisure,Supplies & Services,Provisions,J S Catering Butchers,05/07/2021,119
"Communities, Customer & Commercial Services",Sport & Leisure,Supplies & Services,Provisions,J S Catering Butchers,26/07/2021,119
"Communities, Customer & Commercial Services",Sport & Leisure,Supplies & Services,Provisions,BIKOLD,23/07/2021,119.21
"Communities, Customer & Commercial Services",Sport & Leisure,Supplies & Services,Provisions,BIKOLD,08/07/2021,119.44
"Communities, Customer & Commercial Services",Sport & Leisure,Supplies & Services,Provisions,BIKOLD,15/07/2021,119.61
"Communities, Customer & Commercial Services",Sport & Leisure,Supplies & Services,Provisions,BIKOLD,15/07/2021,119.82
"Communities, Customer & Commercial Services",Sport & Leisure,Supplies & Services,Provisions,BIKOLD,15/07/2021,119.87
"Communities, Customer & Commercial Services",Sport & Leisure,Supplies & Services,Provisions,On A Roll,13/07/2021,119.94
"Communities, Customer & Commercial Services",Sport & Leisure,Supplies & Services,Provisions,On A Roll,13/07/2021,119.94
"Communities, Customer & Commercial Services",Sport & Leisure,Supplies & Services,Provisions,On A Roll,13/07/2021,119.94
"Communities, Customer & Commercial Services",Sport & Leisure,Supplies & Services,Provisions,On A Roll,21/07/2021,119.94
"Communities, Customer & Commercial Services",Sport & Leisure,Supplies & Services,Provisions,On A Roll,02/07/2021,119.94
"Communities, Customer & Commercial Services",Sport & Leisure,Supplies & Services,Provisions,On A Roll,01/07/2021,119.94
"Communities, Customer & Commercial Services",Sport & Leisure,Supplies & Services,Provisions,On A Roll,26/07/2021,120.06
"Communities, Customer & Commercial Services",Sport & Leisure,Supplies & Services,Provisions,BIKOLD,15/07/2021,120.53
"Communities, Customer & Commercial Services",Sport & Leisure,Supplies & Services,Provisions,BIKOLD,02/07/2021,120.58
"Communities, Customer & Commercial Services",Sport & Leisure,Supplies & Services,Provisions,J S Catering Butchers,13/07/2021,120.86
"Communities, Customer & Commercial Services",Sport & Leisure,Supplies & Services,Provisions,BIKOLD,23/07/2021,121.64
"Communities, Customer & Commercial Services",Sport & Leisure,Supplies & Services,Provisions,BIKOLD,08/07/2021,121.72
"Communities, Customer & Commercial Services",Sport & Leisure,Supplies & Services,Provisions,BIKOLD,08/07/2021,122.9
"Communities, Customer & Commercial Services",Sport & Leisure,Supplies & Services,Provisions,BIKOLD,08/07/2021,122.98
"Communities, Customer & Commercial Services",Sport & Leisure,Supplies & Services,Provisions,BIKOLD,02/07/2021,123.25
"Communities, Customer & Commercial Services",Sport & Leisure,Supplies & Services,Equipment - Purchase,J P L LTD,19/07/2021,123.28
"Communities, Customer & Commercial Services",Sport & Leisure,Supplies & Services,Provisions,J S Catering Butchers,26/07/2021,123.82
"Communities, Customer & Commercial Services",Sport & Leisure,Supplies & Services,Provisions,BIKOLD,02/07/2021,123.85
"Communities, Customer & Commercial Services",Sport & Leisure,Supplies & Services,Provisions,BIKOLD,15/07/2021,124.42
"Communities, Customer & Commercial Services",Sport & Leisure,Supplies & Services,Provisions,BIKOLD,02/07/2021,124.95
"Communities, Customer & Commercial Services",Sport & Leisure,Supplies & Services,Provisions,R & COMPANY,19/07/2021,125.47
"Communities, Customer & Commercial Services",Sport & Leisure,Supplies & Services,Provisions,BIKOLD,08/07/2021,125.5
"Communities, Customer & Commercial Services",Sport & Leisure,Supplies & Services,Provisions,J S Catering Butchers,05/07/2021,126
"Communities, Customer & Commercial Services",Sport & Leisure,Supplies & Services,Furniture - Purchase,FURNITURE @ WORK LTD,29/07/2021,126
"Communities, Customer & Commercial Services",Sport & Leisure,Supplies & Services,Provisions,BIKOLD,02/07/2021,126.19
"Communities, Customer & Commercial Services",Sport & Leisure,Supplies & Services,Provisions,R & COMPANY,19/07/2021,126.4
"Communities, Customer & Commercial Services",Sport & Leisure,Supplies & Services,Provisions,BIKOLD,08/07/2021,126.54
"Communities, Customer & Commercial Services",Sport & Leisure,Supplies & Services,Provisions,BIKOLD,08/07/2021,126.81
"Communities, Customer & Commercial Services",Sport & Leisure,Supplies & Services,Provisions,BIKOLD,02/07/2021,127.26
"Communities, Customer & Commercial Services",Sport & Leisure,Supplies & Services,Provisions,BIKOLD,08/07/2021,127.39
"Communities, Customer & Commercial Services",Sport & Leisure,Supplies & Services,Provisions,BIKOLD,08/07/2021,127.64
"Communities, Customer & Commercial Services",Sport & Leisure,Supplies & Services,Provisions,R & COMPANY,05/07/2021,127.68
"Communities, Customer & Commercial Services",Sport & Leisure,Supplies & Services,Provisions,BIKOLD,02/07/2021,127.86
"Communities, Customer & Commercial Services",Sport & Leisure,Supplies & Services,Provisions,BIKOLD,15/07/2021,129.26
"Communities, Customer & Commercial Services",Sport & Leisure,Supplies & Services,Provisions,BIKOLD,08/07/2021,129.59
"Communities, Customer & Commercial Services",Sport & Leisure,Supplies & Services,Provisions,BIKOLD,08/07/2021,129.65
"Communities, Customer & Commercial Services",Sport & Leisure,Supplies & Services,Provisions,BIKOLD,15/07/2021,129.74
"Communities, Customer & Commercial Services",Sport & Leisure,Supplies & Services,Provisions,J S Catering Butchers,13/07/2021,130.53
"Communities, Customer & Commercial Services",Sport & Leisure,Supplies & Services,Provisions,R & COMPANY,19/07/2021,130.71
"Communities, Customer & Commercial Services",Sport & Leisure,Supplies & Services,Provisions,BIKOLD,15/07/2021,131.01
"Communities, Customer & Commercial Services",Sport & Leisure,Supplies & Services,Provisions,BIKOLD,02/07/2021,132.07
"Communities, Customer & Commercial Services",Sport & Leisure,Supplies & Services,Crockery/Hardware/Light Equip,Vegware,13/07/2021,132.42
"Communities, Customer & Commercial Services",Sport & Leisure,Supplies & Services,Provisions,BIKOLD,02/07/2021,132.54
"Communities, Customer & Commercial Services",Sport & Leisure,Supplies & Services,Provisions,BIKOLD,02/07/2021,132.77
"Communities, Customer & Commercial Services",Sport & Leisure,Supplies & Services,Provisions,BIKOLD,15/07/2021,133.76
"Communities, Customer & Commercial Services",Sport & Leisure,Supplies & Services,Provisions,BIKOLD,08/07/2021,133.88
"Communities, Customer & Commercial Services",Sport & Leisure,Supplies & Services,Provisions,BIKOLD,15/07/2021,134.06
"Communities, Customer & Commercial Services",Sport & Leisure,Supplies & Services,Provisions,BIKOLD,08/07/2021,134.43
"Communities, Customer & Commercial Services",Sport & Leisure,Supplies & Services,Provisions,BIKOLD,08/07/2021,134.64
"Communities, Customer & Commercial Services",Sport & Leisure,Supplies & Services,Provisions,BIKOLD,30/07/2021,135.4
"Communities, Customer & Commercial Services",Sport & Leisure,Supplies & Services,Provisions,J S Catering Butchers,13/07/2021,135.75
"Communities, Customer & Commercial Services",Sport & Leisure,Supplies & Services,Provisions,J S Catering Butchers,13/07/2021,135.88
"Communities, Customer & Commercial Services",Sport & Leisure,Supplies & Services,Provisions,BIKOLD,02/07/2021,135.93
"Communities, Customer & Commercial Services",Sport & Leisure,Supplies & Services,Provisions,BIKOLD,08/07/2021,136.53
"Communities, Customer & Commercial Services",Sport & Leisure,Supplies & Services,Provisions,BIKOLD,08/07/2021,136.57
"Communities, Customer & Commercial Services",Sport & Leisure,Supplies & Services,Provisions,BIKOLD,02/07/2021,136.72
"Communities, Customer & Commercial Services",Sport & Leisure,Supplies & Services,Provisions,BIKOLD,08/07/2021,137.3
"Communities, Customer & Commercial Services",Sport & Leisure,Supplies & Services,Provisions,BIKOLD,23/07/2021,137.96
"Communities, Customer & Commercial Services",Sport & Leisure,Supplies & Services,Provisions,Handmade Speciality Products Ltd,19/07/2021,138
"Communities, Customer & Commercial Services",Sport & Leisure,Supplies & Services,Provisions,BIKOLD,08/07/2021,138.02
"Communities, Customer & Commercial Services",Sport & Leisure,Supplies & Services,Provisions,BIKOLD,08/07/2021,138.12
"Communities, Customer & Commercial Services",Sport & Leisure,Supplies & Services,Crockery/Hardware/Light Equip,E N CATERING SUPPLIES LTD,21/07/2021,138.5
"Communities, Customer & Commercial Services",Sport & Leisure,Supplies & Services,Provisions,BIKOLD,23/07/2021,138.64
"Communities, Customer & Commercial Services",Sport & Leisure,Supplies & Services,Provisions,BIKOLD,02/07/2021,139.07
"Communities, Customer & Commercial Services",Sport & Leisure,Supplies & Services,Provisions,BIKOLD,23/07/2021,139.29
"Communities, Customer & Commercial Services",Sport & Leisure,Supplies & Services,Provisions,R & COMPANY,05/07/2021,139.54
"Communities, Customer & Commercial Services",Sport & Leisure,Supplies & Services,Provisions,BIKOLD,23/07/2021,139.55
"Communities, Customer & Commercial Services",Sport & Leisure,Supplies & Services,Provisions,BIKOLD,02/07/2021,139.83
"Communities, Customer & Commercial Services",Sport & Leisure,Supplies & Services,Provisions,BIKOLD,02/07/2021,140.19
"Communities, Customer & Commercial Services",Sport & Leisure,Supplies & Services,Provisions,J S Catering Butchers,26/07/2021,140.77
"Communities, Customer & Commercial Services",Sport & Leisure,Supplies & Services,Provisions,R & COMPANY,13/07/2021,141.07
"Communities, Customer & Commercial Services",Sport & Leisure,Supplies & Services,Provisions,R & COMPANY,05/07/2021,141.45
"Communities, Customer & Commercial Services",Sport & Leisure,Supplies & Services,Crockery/Hardware/Light Equip,PLANGLOW LTD,13/07/2021,141.5
"Communities, Customer & Commercial Services",Sport & Leisure,Supplies & Services,Provisions,BIKOLD,15/07/2021,141.71
"Communities, Customer & Commercial Services",Sport & Leisure,Supplies & Services,Provisions,J S Catering Butchers,26/07/2021,142.5
"Communities, Customer & Commercial Services",Sport & Leisure,Supplies & Services,Provisions,J S Catering Butchers,26/07/2021,142.65
"Communities, Customer & Commercial Services",Sport & Leisure,Supplies & Services,Equipment - Purchase,J P L LTD,16/07/2021,143
"Communities, Customer & Commercial Services",Sport & Leisure,Supplies & Services,Provisions,BIKOLD,15/07/2021,143.73
"Communities, Customer & Commercial Services",Sport & Leisure,Supplies & Services,Provisions,BIKOLD,08/07/2021,143.75
"Communities, Customer & Commercial Services",Sport & Leisure,Supplies & Services,Sport Equip - Purchase,RLSS UK Shop,22/07/2021,144.2
"Communities, Customer & Commercial Services",Sport & Leisure,Supplies & Services,Provisions,R & COMPANY,13/07/2021,144.23
"Communities, Customer & Commercial Services",Sport & Leisure,Supplies & Services,Provisions,BIKOLD,08/07/2021,144.31
"Communities, Customer & Commercial Services",Sport & Leisure,Supplies & Services,Provisions,BIKOLD,15/07/2021,144.64
"Communities, Customer & Commercial Services",Sport & Leisure,Supplies & Services,Provisions,BIKOLD,08/07/2021,144.73
"Communities, Customer & Commercial Services",Sport & Leisure,Supplies & Services,Provisions,J S Catering Butchers,26/07/2021,145.1
"Communities, Customer & Commercial Services",Sport & Leisure,Supplies & Services,Provisions,J S Catering Butchers,05/07/2021,145.55
"Communities, Customer & Commercial Services",Sport & Leisure,Supplies & Services,Provisions,R & COMPANY,05/07/2021,145.6
"Communities, Customer & Commercial Services",Sport & Leisure,Supplies & Services,Provisions,BIKOLD,08/07/2021,145.75
"Communities, Customer & Commercial Services",Sport & Leisure,Supplies & Services,Provisions,BIKOLD,15/07/2021,145.9
"Communities, Customer & Commercial Services",Sport & Leisure,Supplies & Services,Provisions,BIKOLD,08/07/2021,146.19
"Communities, Customer & Commercial Services",Sport & Leisure,Supplies & Services,Provisions,BIKOLD,08/07/2021,146.75
"Communities, Customer & Commercial Services",Sport & Leisure,Supplies & Services,Provisions,R & COMPANY,13/07/2021,146.86
"Communities, Customer & Commercial Services",Sport & Leisure,Supplies & Services,Provisions,BIKOLD,15/07/2021,146.96
"Communities, Customer & Commercial Services",Sport & Leisure,Supplies & Services,Crockery/Hardware/Light Equip,E N CATERING SUPPLIES LTD,07/07/2021,146.99
"Communities, Customer & Commercial Services",Sport & Leisure,Supplies & Services,Crockery/Hardware/Light Equip,E N CATERING SUPPLIES LTD,07/07/2021,146.99
"Communities, Customer & Commercial Services",Sport & Leisure,Supplies & Services,Provisions,BIKOLD,15/07/2021,147.2
"Communities, Customer & Commercial Services",Sport & Leisure,Supplies & Services,Provisions,BIKOLD,02/07/2021,147.38
"Communities, Customer & Commercial Services",Sport & Leisure,Supplies & Services,Provisions,BIKOLD,15/07/2021,147.57
"Communities, Customer & Commercial Services",Sport & Leisure,Supplies & Services,Provisions,BIKOLD,08/07/2021,147.83
"Communities, Customer & Commercial Services",Sport & Leisure,Supplies & Services,Provisions,J S Catering Butchers,13/07/2021,148.08
"Communities, Customer & Commercial Services",Sport & Leisure,Supplies & Services,Provisions,BIKOLD,08/07/2021,148.71
"Communities, Customer & Commercial Services",Sport & Leisure,Supplies & Services,Provisions,BIKOLD,15/07/2021,148.73
"Communities, Customer & Commercial Services",Sport & Leisure,Supplies & Services,Provisions,BIKOLD,08/07/2021,149.15
"Communities, Customer & Commercial Services",Sport & Leisure,Supplies & Services,Provisions,Handmade Speciality Products Ltd,19/07/2021,149.5
"Communities, Customer & Commercial Services",Sport & Leisure,Supplies & Services,Provisions,BIKOLD,02/07/2021,149.98
"Communities, Customer & Commercial Services",Sport & Leisure,Supplies & Services,Provisions,BIKOLD,02/07/2021,150.27
"Communities, Customer & Commercial Services",Sport & Leisure,Supplies & Services,Provisions,R & COMPANY,13/07/2021,150.44
"Communities, Customer & Commercial Services",Sport & Leisure,Supplies & Services,Provisions,J S Catering Butchers,13/07/2021,150.44
"Communities, Customer & Commercial Services",Sport & Leisure,Supplies & Services,Provisions,On A Roll,21/07/2021,150.48
"Communities, Customer & Commercial Services",Sport & Leisure,Supplies & Services,Provisions,On A Roll,02/07/2021,150.48
"Communities, Customer & Commercial Services",Sport & Leisure,Supplies & Services,Provisions,On A Roll,26/07/2021,150.48
"Communities, Customer & Commercial Services",Sport & Leisure,Supplies & Services,Provisions,On A Roll,13/07/2021,150.48
"Communities, Customer & Commercial Services",Sport & Leisure,Supplies & Services,Provisions,BIKOLD,02/07/2021,150.9
"Communities, Customer & Commercial Services",Sport & Leisure,Supplies & Services,Crockery/Hardware/Light Equip,Vegware,21/07/2021,152.32
"Communities, Customer & Commercial Services",Sport & Leisure,Supplies & Services,Equipment - Purchase,On A Roll,01/07/2021,153.13
"Communities, Customer & Commercial Services",Sport & Leisure,Supplies & Services,Provisions,BIKOLD,23/07/2021,153.44
"Communities, Customer & Commercial Services",Sport & Leisure,Supplies & Services,Provisions,BIKOLD,08/07/2021,154.69
"Communities, Customer & Commercial Services",Sport & Leisure,Supplies & Services,Provisions,BIKOLD,15/07/2021,154.79
"Communities, Customer & Commercial Services",Sport & Leisure,Supplies & Services,Provisions,BIKOLD,23/07/2021,155.73
"Communities, Customer & Commercial Services",Sport & Leisure,Supplies & Services,Provisions,BIKOLD,23/07/2021,155.74
"Communities, Customer & Commercial Services",Sport & Leisure,Supplies & Services,Provisions,R & COMPANY,19/07/2021,156.16
"Communities, Customer & Commercial Services",Sport & Leisure,Supplies & Services,Provisions,BIKOLD,15/07/2021,156.44
"Communities, Customer & Commercial Services",Sport & Leisure,Supplies & Services,Provisions,BIKOLD,02/07/2021,156.72
"Communities, Customer & Commercial Services",Sport & Leisure,Supplies & Services,Provisions,BIKOLD,15/07/2021,157.5
"Communities, Customer & Commercial Services",Sport & Leisure,Supplies & Services,Provisions,BIKOLD,08/07/2021,157.92
"Communities, Customer & Commercial Services",Sport & Leisure,Supplies & Services,Provisions,BIKOLD,15/07/2021,157.95
"Communities, Customer & Commercial Services",Sport & Leisure,Supplies & Services,Chemicals/Cleaning Products,MAIN MAN SUPPLIES LTD,27/07/2021,158.91
"Communities, Customer & Commercial Services",Sport & Leisure,Supplies & Services,Provisions,J S Catering Butchers,13/07/2021,159.26
"Communities, Customer & Commercial Services",Sport & Leisure,Supplies & Services,Provisions,BIKOLD,23/07/2021,159.8
"Communities, Customer & Commercial Services",Sport & Leisure,Supplies & Services,Equipment - Purchase,CMW Equipment Holdings Limited,16/07/2021,159.95
"Communities, Customer & Commercial Services",Sport & Leisure,Supplies & Services,Provisions,R & COMPANY,19/07/2021,160.39
"Communities, Customer & Commercial Services",Sport & Leisure,Supplies & Services,Provisions,BIKOLD,15/07/2021,160.47
"Communities, Customer & Commercial Services",Sport & Leisure,Supplies & Services,Provisions,BIKOLD,15/07/2021,160.7
"Communities, Customer & Commercial Services",Sport & Leisure,Supplies & Services,Provisions,BIKOLD,08/07/2021,160.73
"Communities, Customer & Commercial Services",Sport & Leisure,Supplies & Services,Provisions,BIKOLD,02/07/2021,160.89
"Communities, Customer & Commercial Services",Sport & Leisure,Supplies & Services,Provisions,BIKOLD,08/07/2021,161.11
"Communities, Customer & Commercial Services",Sport & Leisure,Supplies & Services,Provisions,BIKOLD,08/07/2021,162.09
"Communities, Customer & Commercial Services",Sport & Leisure,Supplies & Services,Provisions,BIKOLD,15/07/2021,163.06
"Communities, Customer & Commercial Services",Sport & Leisure,Supplies & Services,Provisions,BIKOLD,15/07/2021,163.11
"Communities, Customer & Commercial Services",Sport & Leisure,Supplies & Services,Provisions,BIKOLD,08/07/2021,163.27
"Communities, Customer & Commercial Services",Sport & Leisure,Supplies & Services,Provisions,BIKOLD,02/07/2021,163.45
"Communities, Customer & Commercial Services",Sport & Leisure,Supplies & Services,Provisions,BIKOLD,02/07/2021,164.21
"Communities, Customer & Commercial Services",Sport & Leisure,Supplies & Services,Provisions,BIKOLD,15/07/2021,164.33
"Communities, Customer & Commercial Services",Sport & Leisure,Supplies & Services,Provisions,R & COMPANY,05/07/2021,164.61
"Communities, Customer & Commercial Services",Sport & Leisure,Supplies & Services,Provisions,BIKOLD,15/07/2021,164.62
"Communities, Customer & Commercial Services",Sport & Leisure,Supplies & Services,Provisions,J S Catering Butchers,26/07/2021,165.28
"Communities, Customer & Commercial Services",Sport & Leisure,Supplies & Services,Provisions,BIKOLD,08/07/2021,165.66
"Communities, Customer & Commercial Services",Sport & Leisure,Supplies & Services,Provisions,J S Catering Butchers,05/07/2021,165.88
"Communities, Customer & Commercial Services",Sport & Leisure,Supplies & Services,Provisions,Handmade Speciality Products Ltd,26/07/2021,165.98
"Communities, Customer & Commercial Services",Sport & Leisure,Supplies & Services,Provisions,BIKOLD,15/07/2021,166.07
"Communities, Customer & Commercial Services",Sport & Leisure,Supplies & Services,Provisions,BIKOLD,08/07/2021,167.15
"Communities, Customer & Commercial Services",Sport & Leisure,Supplies & Services,Provisions,J S Catering Butchers,26/07/2021,167.59
"Communities, Customer & Commercial Services",Sport & Leisure,Supplies & Services,Provisions,BIKOLD,08/07/2021,167.68
"Communities, Customer & Commercial Services",Sport & Leisure,Supplies & Services,Provisions,R & COMPANY,19/07/2021,167.69
"Communities, Customer & Commercial Services",Sport & Leisure,Supplies & Services,Provisions,BIKOLD,08/07/2021,168.15
"Communities, Customer & Commercial Services",Sport & Leisure,Supplies & Services,Crockery/Hardware/Light Equip,Vegware,19/07/2021,168.48
"Communities, Customer & Commercial Services",Sport & Leisure,Supplies & Services,Provisions,BIKOLD,15/07/2021,168.61
"Communities, Customer & Commercial Services",Sport & Leisure,Supplies & Services,Provisions,BIKOLD,02/07/2021,168.63
"Communities, Customer & Commercial Services",Sport & Leisure,Supplies & Services,Provisions,BIKOLD,02/07/2021,169.26
"Communities, Customer & Commercial Services",Sport & Leisure,Supplies & Services,Provisions,BIKOLD,15/07/2021,170.13
"Communities, Customer & Commercial Services",Sport & Leisure,Supplies & Services,Provisions,BIKOLD,15/07/2021,170.5
"Communities, Customer & Commercial Services",Sport & Leisure,Supplies & Services,Provisions,BIKOLD,02/07/2021,170.94
"Communities, Customer & Commercial Services",Sport & Leisure,Supplies & Services,Provisions,BIKOLD,02/07/2021,172.17
"Communities, Customer & Commercial Services",Sport & Leisure,Supplies & Services,Provisions,BIKOLD,23/07/2021,172.36
"Communities, Customer & Commercial Services",Sport & Leisure,Supplies & Services,Provisions,BIKOLD,15/07/2021,172.8
"Communities, Customer & Commercial Services",Sport & Leisure,Supplies & Services,Provisions,BIKOLD,08/07/2021,173.18
"Communities, Customer & Commercial Services",Sport & Leisure,Supplies & Services,Provisions,J S Catering Butchers,05/07/2021,173.3
"Communities, Customer & Commercial Services",Sport & Leisure,Supplies & Services,Provisions,BIKOLD,15/07/2021,174.77
"Communities, Customer & Commercial Services",Sport & Leisure,Supplies & Services,Provisions,BIKOLD,02/07/2021,174.78
"Communities, Customer & Commercial Services",Sport & Leisure,Supplies & Services,Provisions,BIKOLD,15/07/2021,174.84
"Communities, Customer & Commercial Services",Sport & Leisure,Supplies & Services,Provisions,J S Catering Butchers,26/07/2021,176.4
"Communities, Customer & Commercial Services",Sport & Leisure,Supplies & Services,Provisions,J S Catering Butchers,05/07/2021,176.4
"Communities, Customer & Commercial Services",Sport & Leisure,Supplies & Services,Provisions,J S Catering Butchers,26/07/2021,176.4
"Communities, Customer & Commercial Services",Sport & Leisure,Supplies & Services,Provisions,BIKOLD,15/07/2021,176.6
"Communities, Customer & Commercial Services",Sport & Leisure,Supplies & Services,Provisions,BIKOLD,02/07/2021,176.89
"Communities, Customer & Commercial Services",Sport & Leisure,Supplies & Services,Provisions,BIKOLD,02/07/2021,176.94
"Communities, Customer & Commercial Services",Sport & Leisure,Supplies & Services,Provisions,BIKOLD,02/07/2021,177.33
"Communities, Customer & Commercial Services",Sport & Leisure,Supplies & Services,Provisions,BIKOLD,15/07/2021,178.17
"Communities, Customer & Commercial Services",Sport & Leisure,Supplies & Services,Provisions,BIKOLD,08/07/2021,179.64
"Communities, Customer & Commercial Services",Sport & Leisure,Supplies & Services,Provisions,BIKOLD,15/07/2021,180.14
"Communities, Customer & Commercial Services",Sport & Leisure,Supplies & Services,Provisions,J S Catering Butchers,13/07/2021,182.05
"Communities, Customer & Commercial Services",Sport & Leisure,Supplies & Services,Provisions,J S Catering Butchers,26/07/2021,182.79
"Communities, Customer & Commercial Services",Sport & Leisure,Supplies & Services,Provisions,BIKOLD,02/07/2021,183.55
"Communities, Customer & Commercial Services",Sport & Leisure,Supplies & Services,Provisions,BIKOLD,15/07/2021,183.68
"Communities, Customer & Commercial Services",Sport & Leisure,Supplies & Services,Provisions,BIKOLD,15/07/2021,183.68
"Communities, Customer & Commercial Services",Sport & Leisure,Supplies & Services,Provisions,R & COMPANY,13/07/2021,183.76
"Communities, Customer & Commercial Services",Sport & Leisure,Supplies & Services,Provisions,BIKOLD,08/07/2021,184.72
"Communities, Customer & Commercial Services",Sport & Leisure,Supplies & Services,Provisions,R & COMPANY,19/07/2021,184.88
"Communities, Customer & Commercial Services",Sport & Leisure,Supplies & Services,Provisions,BIKOLD,08/07/2021,184.96
"Communities, Customer & Commercial Services",Sport & Leisure,Supplies & Services,Provisions,J S Catering Butchers,26/07/2021,185.02
"Communities, Customer & Commercial Services",Sport & Leisure,Supplies & Services,Provisions,BIKOLD,08/07/2021,185.08
"Communities, Customer & Commercial Services",Sport & Leisure,Supplies & Services,Provisions,BIKOLD,08/07/2021,185.5
"Communities, Customer & Commercial Services",Sport & Leisure,Supplies & Services,Provisions,BIKOLD,02/07/2021,185.72
"Communities, Customer & Commercial Services",Sport & Leisure,Supplies & Services,Chemicals/Cleaning Products,BRENNTAG UK LIMITED,21/07/2021,186.36
"Communities, Customer & Commercial Services",Sport & Leisure,Supplies & Services,Provisions,BIKOLD,02/07/2021,188.77
"Communities, Customer & Commercial Services",Sport & Leisure,Supplies & Services,Provisions,BIKOLD,08/07/2021,190.07
"Communities, Customer & Commercial Services",Sport & Leisure,Supplies & Services,Provisions,BIKOLD,08/07/2021,191.91
"Communities, Customer & Commercial Services",Sport & Leisure,Supplies & Services,Provisions,BIKOLD,15/07/2021,192.25
"Communities, Customer & Commercial Services",Sport & Leisure,Supplies & Services,Provisions,On A Roll,21/07/2021,192.45
"Communities, Customer & Commercial Services",Sport & Leisure,Supplies & Services,Provisions,On A Roll,02/07/2021,192.45
"Communities, Customer & Commercial Services",Sport & Leisure,Supplies & Services,Provisions,On A Roll,26/07/2021,192.45
"Communities, Customer & Commercial Services",Sport & Leisure,Supplies & Services,Provisions,BIKOLD,02/07/2021,192.85
"Communities, Customer & Commercial Services",Sport & Leisure,Supplies & Services,Provisions,BIKOLD,15/07/2021,193.41
"Communities, Customer & Commercial Services",Sport & Leisure,Supplies & Services,Provisions,BIKOLD,15/07/2021,193.41
"Communities, Customer & Commercial Services",Sport & Leisure,Supplies & Services,Provisions,BIKOLD,15/07/2021,194.2
"Communities, Customer & Commercial Services",Sport & Leisure,Supplies & Services,Provisions,BIKOLD,02/07/2021,194.24
"Communities, Customer & Commercial Services",Sport & Leisure,Supplies & Services,Provisions,BIKOLD,15/07/2021,194.31
"Communities, Customer & Commercial Services",Sport & Leisure,Supplies & Services,Provisions,BIKOLD,08/07/2021,195.69
"Communities, Customer & Commercial Services",Sport & Leisure,Supplies & Services,Provisions,R & COMPANY,05/07/2021,196.13
"Communities, Customer & Commercial Services",Sport & Leisure,Supplies & Services,Provisions,BIKOLD,02/07/2021,196.26
"Communities, Customer & Commercial Services",Sport & Leisure,Supplies & Services,Provisions,BIKOLD,08/07/2021,196.32
"Communities, Customer & Commercial Services",Sport & Leisure,Supplies & Services,Provisions,BIKOLD,15/07/2021,197
"Communities, Customer & Commercial Services",Sport & Leisure,Supplies & Services,Provisions,BIKOLD,08/07/2021,197.09
"Communities, Customer & Commercial Services",Sport & Leisure,Supplies & Services,Provisions,BIKOLD,15/07/2021,197.73
"Communities, Customer & Commercial Services",Sport & Leisure,Supplies & Services,Provisions,BIKOLD,02/07/2021,197.85
"Communities, Customer & Commercial Services",Sport & Leisure,Supplies & Services,Provisions,J S Catering Butchers,26/07/2021,198.04
"Communities, Customer & Commercial Services",Sport & Leisure,Supplies & Services,Provisions,BIKOLD,08/07/2021,198.25
"Communities, Customer & Commercial Services",Sport & Leisure,Supplies & Services,Provisions,J S Catering Butchers,26/07/2021,198.45
"Communities, Customer & Commercial Services",Sport & Leisure,Supplies & Services,Provisions,BIKOLD,08/07/2021,198.59
"Communities, Customer & Commercial Services",Sport & Leisure,Supplies & Services,Financial Services,DEBIT FINANCE COLLECTIONS ,27/07/2021,198.86
"Communities, Customer & Commercial Services",Sport & Leisure,Supplies & Services,Provisions,BIKOLD,02/07/2021,198.89
"Communities, Customer & Commercial Services",Sport & Leisure,Supplies & Services,Provisions,BIKOLD,08/07/2021,198.96
"Communities, Customer & Commercial Services",Sport & Leisure,Supplies & Services,Provisions,BIKOLD,15/07/2021,200.34
"Communities, Customer & Commercial Services",Sport & Leisure,Supplies & Services,Provisions,J S Catering Butchers,26/07/2021,201.01
"Communities, Customer & Commercial Services",Sport & Leisure,Supplies & Services,Provisions,BIKOLD,08/07/2021,201.4
"Communities, Customer & Commercial Services",Sport & Leisure,Supplies & Services,Provisions,R & COMPANY,05/07/2021,201.89
"Communities, Customer & Commercial Services",Sport & Leisure,Supplies & Services,Provisions,BIKOLD,02/07/2021,202.08
"Communities, Customer & Commercial Services",Sport & Leisure,Supplies & Services,Provisions,BIKOLD,02/07/2021,202.24
"Communities, Customer & Commercial Services",Sport & Leisure,Supplies & Services,Provisions,BIKOLD,15/07/2021,202.84
"Communities, Customer & Commercial Services",Sport & Leisure,Supplies & Services,Protective Clothing,CORPORATE TOGS LTD,02/07/2021,203.85
"Communities, Customer & Commercial Services",Sport & Leisure,Supplies & Services,Provisions,BIKOLD,15/07/2021,204.24
"Communities, Customer & Commercial Services",Sport & Leisure,Supplies & Services,Provisions,BIKOLD,02/07/2021,204.55
"Communities, Customer & Commercial Services",Sport & Leisure,Supplies & Services,Provisions,BIKOLD,08/07/2021,205.01
"Communities, Customer & Commercial Services",Sport & Leisure,Supplies & Services,Provisions,BIKOLD,15/07/2021,205.68
"Communities, Customer & Commercial Services",Sport & Leisure,Supplies & Services,Provisions,BIKOLD,23/07/2021,205.7
"Communities, Customer & Commercial Services",Sport & Leisure,Supplies & Services,Provisions,Handmade Speciality Products Ltd,19/07/2021,207
"Communities, Customer & Commercial Services",Sport & Leisure,Supplies & Services,Provisions,BIKOLD,02/07/2021,207.95
"Communities, Customer & Commercial Services",Sport & Leisure,Supplies & Services,Crockery/Hardware/Light Equip,PLANGLOW LTD,07/07/2021,208.34
"Communities, Customer & Commercial Services",Sport & Leisure,Supplies & Services,Provisions,BIKOLD,15/07/2021,209.14
"Communities, Customer & Commercial Services",Sport & Leisure,Supplies & Services,Provisions,BIKOLD,02/07/2021,209.62
"Communities, Customer & Commercial Services",Sport & Leisure,Supplies & Services,Provisions,BIKOLD,15/07/2021,210
"Communities, Customer & Commercial Services",Sport & Leisure,Supplies & Services,Provisions,BIKOLD,08/07/2021,210.28
"Communities, Customer & Commercial Services",Sport & Leisure,Supplies & Services,Provisions,BIKOLD,02/07/2021,210.94
"Communities, Customer & Commercial Services",Sport & Leisure,Supplies & Services,Provisions,BIKOLD,08/07/2021,211.44
"Communities, Customer & Commercial Services",Sport & Leisure,Supplies & Services,Provisions,BIKOLD,02/07/2021,211.8
"Communities, Customer & Commercial Services",Sport & Leisure,Supplies & Services,Provisions,BIKOLD,15/07/2021,211.85
"Communities, Customer & Commercial Services",Sport & Leisure,Supplies & Services,Provisions,BIKOLD,15/07/2021,212.19
"Communities, Customer & Commercial Services",Sport & Leisure,Supplies & Services,Provisions,J S Catering Butchers,05/07/2021,212.3
"Communities, Customer & Commercial Services",Sport & Leisure,Supplies & Services,Provisions,BIKOLD,08/07/2021,212.6
"Communities, Customer & Commercial Services",Sport & Leisure,Supplies & Services,Provisions,BIKOLD,02/07/2021,213.26
"Communities, Customer & Commercial Services",Sport & Leisure,Supplies & Services,Provisions,J S Catering Butchers,05/07/2021,215.15
"Communities, Customer & Commercial Services",Sport & Leisure,Supplies & Services,Equipment - Purchase,RLSS UK Shop,23/07/2021,216
"Communities, Customer & Commercial Services",Sport & Leisure,Supplies & Services,Provisions,R & COMPANY,05/07/2021,216.57
"Communities, Customer & Commercial Services",Sport & Leisure,Supplies & Services,Provisions,BIKOLD,02/07/2021,216.88
"Communities, Customer & Commercial Services",Sport & Leisure,Supplies & Services,Provisions,BIKOLD,02/07/2021,219
"Communities, Customer & Commercial Services",Sport & Leisure,Supplies & Services,Provisions,BIKOLD,02/07/2021,219.87
"Communities, Customer & Commercial Services",Sport & Leisure,Supplies & Services,Equipment - Purchase,CMW Equipment Holdings Limited,28/07/2021,223.05
"Communities, Customer & Commercial Services",Sport & Leisure,Supplies & Services,Provisions,BIKOLD,30/07/2021,223.07
"Communities, Customer & Commercial Services",Sport & Leisure,Supplies & Services,Provisions,BIKOLD,08/07/2021,223.15
"Communities, Customer & Commercial Services",Sport & Leisure,Supplies & Services,Provisions,BIKOLD,30/07/2021,223.58
"Communities, Customer & Commercial Services",Sport & Leisure,Supplies & Services,Provisions,BIKOLD,02/07/2021,223.69
"Communities, Customer & Commercial Services",Sport & Leisure,Supplies & Services,Provisions,BIKOLD,08/07/2021,224.47
"Communities, Customer & Commercial Services",Sport & Leisure,Supplies & Services,Equipment - Purchase,RLSS UK Shop,20/07/2021,224.85
"Communities, Customer & Commercial Services",Sport & Leisure,Supplies & Services,Equipment - Purchase,RLSS UK Shop,20/07/2021,224.85
"Communities, Customer & Commercial Services",Sport & Leisure,Supplies & Services,Equipment - Purchase,RLSS UK Shop,20/07/2021,224.85
"Communities, Customer & Commercial Services",Sport & Leisure,Supplies & Services,Equipment - Purchase,RLSS UK Shop,20/07/2021,224.85
"Communities, Customer & Commercial Services",Sport & Leisure,Supplies & Services,Provisions,BIKOLD,08/07/2021,225.3
"Communities, Customer & Commercial Services",Sport & Leisure,Supplies & Services,Provisions,BIKOLD,02/07/2021,226.01
"Communities, Customer & Commercial Services",Sport & Leisure,Supplies & Services,Provisions,R & COMPANY,05/07/2021,226.11
"Communities, Customer & Commercial Services",Sport & Leisure,Supplies & Services,Provisions,BIKOLD,02/07/2021,226.71
"Communities, Customer & Commercial Services",Sport & Leisure,Supplies & Services,Provisions,BIKOLD,30/07/2021,228.08
"Communities, Customer & Commercial Services",Sport & Leisure,Supplies & Services,Provisions,BIKOLD,15/07/2021,228.44
"Communities, Customer & Commercial Services",Sport & Leisure,Supplies & Services,Provisions,BIKOLD,08/07/2021,229.14
"Communities, Customer & Commercial Services",Sport & Leisure,Supplies & Services,Provisions,BIKOLD,02/07/2021,229.42
"Communities, Customer & Commercial Services",Sport & Leisure,Supplies & Services,Provisions,BIKOLD,08/07/2021,229.82
"Communities, Customer & Commercial Services",Sport & Leisure,Supplies & Services,Provisions,BIKOLD,23/07/2021,230.51
"Communities, Customer & Commercial Services",Sport & Leisure,Supplies & Services,Provisions,BIKOLD,15/07/2021,230.61
"Communities, Customer & Commercial Services",Sport & Leisure,Supplies & Services,Provisions,BIKOLD,15/07/2021,232.24
"Communities, Customer & Commercial Services",Sport & Leisure,Supplies & Services,Provisions,BIKOLD,08/07/2021,232.38
"Communities, Customer & Commercial Services",Sport & Leisure,Supplies & Services,Provisions,BIKOLD,08/07/2021,233.1
"Communities, Customer & Commercial Services",Sport & Leisure,Supplies & Services,Provisions,On A Roll,13/07/2021,233.76
"Communities, Customer & Commercial Services",Sport & Leisure,Supplies & Services,Provisions,R & COMPANY,13/07/2021,234.33
"Communities, Customer & Commercial Services",Sport & Leisure,Supplies & Services,Provisions,J S Catering Butchers,05/07/2021,234.39
"Communities, Customer & Commercial Services",Sport & Leisure,Supplies & Services,Provisions,R & COMPANY,13/07/2021,234.56
"Communities, Customer & Commercial Services",Sport & Leisure,Supplies & Services,Provisions,BIKOLD,08/07/2021,234.6
"Communities, Customer & Commercial Services",Sport & Leisure,Supplies & Services,Sub Contractors,BUSINESS WATCH GUARDING LIMITED,14/07/2021,234.9
"Communities, Customer & Commercial Services",Sport & Leisure,Supplies & Services,Provisions,J S Catering Butchers,26/07/2021,235.43
"Communities, Customer & Commercial Services",Sport & Leisure,Supplies & Services,Provisions,BIKOLD,02/07/2021,235.6
"Communities, Customer & Commercial Services",Sport & Leisure,Supplies & Services,Provisions,BIKOLD,15/07/2021,235.86
"Communities, Customer & Commercial Services",Sport & Leisure,Supplies & Services,Provisions,BIKOLD,02/07/2021,236.02
"Communities, Customer & Commercial Services",Sport & Leisure,Supplies & Services,Provisions,BIKOLD,15/07/2021,236.71
"Communities, Customer & Commercial Services",Sport & Leisure,Supplies & Services,Provisions,BIKOLD,02/07/2021,237.5
"Communities, Customer & Commercial Services",Sport & Leisure,Supplies & Services,Provisions,BIKOLD,23/07/2021,238.68
"Communities, Customer & Commercial Services",Sport & Leisure,Supplies & Services,Sub Contractors,BUSINESS WATCH GUARDING LIMITED,13/07/2021,240
"Communities, Customer & Commercial Services",Sport & Leisure,Supplies & Services,Sub Contractors,BUSINESS WATCH GUARDING LIMITED,14/07/2021,240
"Communities, Customer & Commercial Services",Sport & Leisure,Supplies & Services,Provisions,BIKOLD,15/07/2021,240.11
"Communities, Customer & Commercial Services",Sport & Leisure,Supplies & Services,Provisions,BIKOLD,08/07/2021,241.75
"Communities, Customer & Commercial Services",Sport & Leisure,Supplies & Services,Provisions,BIKOLD,15/07/2021,243.33
"Communities, Customer & Commercial Services",Sport & Leisure,Supplies & Services,Crockery/Hardware/Light Equip,Vegware,13/07/2021,245.21
"Communities, Customer & Commercial Services",Sport & Leisure,Supplies & Services,Provisions,BIKOLD,02/07/2021,245.53
"Communities, Customer & Commercial Services",Sport & Leisure,Supplies & Services,Crockery/Hardware/Light Equip,PLANGLOW LTD,13/07/2021,245.99
"Communities, Customer & Commercial Services",Sport & Leisure,Supplies & Services,Crockery/Hardware/Light Equip,PLANGLOW LTD,13/07/2021,245.99
"Communities, Customer & Commercial Services",Sport & Leisure,Supplies & Services,Provisions,BIKOLD,02/07/2021,246.54
"Communities, Customer & Commercial Services",Sport & Leisure,Supplies & Services,Provisions,J S Catering Butchers,26/07/2021,248.72
"Communities, Customer & Commercial Services",Sport & Leisure,Supplies & Services,Provisions,BIKOLD,08/07/2021,248.75
"Communities, Customer & Commercial Services",Sport & Leisure,Supplies & Services,Provisions,BIKOLD,15/07/2021,248.96
"Communities, Customer & Commercial Services",Sport & Leisure,Supplies & Services,Provisions,BIKOLD,08/07/2021,249.24
"Communities, Customer & Commercial Services",Sport & Leisure,Supplies & Services,Provisions,On A Roll,13/07/2021,249.6
"Communities, Customer & Commercial Services",Sport & Leisure,Supplies & Services,Provisions,On A Roll,01/07/2021,249.6
"Communities, Customer & Commercial Services",Sport & Leisure,Supplies & Services,Provisions,BIKOLD,02/07/2021,250.59
"Communities, Customer & Commercial Services",Sport & Leisure,Supplies & Services,Financial Services,DEBIT FINANCE COLLECTIONS ,27/07/2021,252.88
"Communities, Customer & Commercial Services",Sport & Leisure,Supplies & Services,Provisions,BIKOLD,02/07/2021,253.34
"Communities, Customer & Commercial Services",Sport & Leisure,Supplies & Services,Provisions,On A Roll,13/07/2021,254.78
"Communities, Customer & Commercial Services",Sport & Leisure,Supplies & Services,Provisions,BIKOLD,15/07/2021,256.13
"Communities, Customer & Commercial Services",Sport & Leisure,Supplies & Services,Provisions,BIKOLD,08/07/2021,257.98
"Communities, Customer & Commercial Services",Sport & Leisure,Supplies & Services,Provisions,BIKOLD,15/07/2021,258.08
"Communities, Customer & Commercial Services",Sport & Leisure,Supplies & Services,Crockery/Hardware/Light Equip,Vegware,13/07/2021,259.84
"Communities, Customer & Commercial Services",Sport & Leisure,Supplies & Services,Provisions,BIKOLD,02/07/2021,260.73
"Communities, Customer & Commercial Services",Sport & Leisure,Supplies & Services,Provisions,BIKOLD,02/07/2021,261.06
"Communities, Customer & Commercial Services",Sport & Leisure,Supplies & Services,Provisions,BIKOLD,23/07/2021,261.37
"Communities, Customer & Commercial Services",Sport & Leisure,Supplies & Services,Protective Clothing,CORPORATE TOGS LTD,12/07/2021,263.85
"Communities, Customer & Commercial Services",Sport & Leisure,Supplies & Services,Provisions,BIKOLD,15/07/2021,264.23
"Communities, Customer & Commercial Services",Sport & Leisure,Supplies & Services,Provisions,BIKOLD,02/07/2021,264.44
"Communities, Customer & Commercial Services",Sport & Leisure,Supplies & Services,Provisions,BIKOLD,08/07/2021,265.01
"Communities, Customer & Commercial Services",Sport & Leisure,Supplies & Services,Provisions,BIKOLD,02/07/2021,266.24
"Communities, Customer & Commercial Services",Sport & Leisure,Supplies & Services,Provisions,BIKOLD,15/07/2021,266.65
"Communities, Customer & Commercial Services",Sport & Leisure,Supplies & Services,Provisions,BIKOLD,02/07/2021,266.91
"Communities, Customer & Commercial Services",Sport & Leisure,Supplies & Services,Provisions,BIKOLD,08/07/2021,268.55
"Communities, Customer & Commercial Services",Sport & Leisure,Supplies & Services,Provisions,BIKOLD,15/07/2021,268.67
"Communities, Customer & Commercial Services",Sport & Leisure,Supplies & Services,Provisions,BIKOLD,08/07/2021,269.08
"Communities, Customer & Commercial Services",Sport & Leisure,Supplies & Services,Provisions,BIKOLD,15/07/2021,270.21
"Communities, Customer & Commercial Services",Sport & Leisure,Supplies & Services,Provisions,Delice de France,27/07/2021,271.6
"Communities, Customer & Commercial Services",Sport & Leisure,Supplies & Services,Provisions,BIKOLD,15/07/2021,273.46
"Communities, Customer & Commercial Services",Sport & Leisure,Supplies & Services,Sub Contractors,Waterplay Solutions Limited,16/07/2021,275
"Communities, Customer & Commercial Services",Sport & Leisure,Supplies & Services,Provisions,BIKOLD,08/07/2021,278.76
"Communities, Customer & Commercial Services",Sport & Leisure,Supplies & Services,Provisions,J S Catering Butchers,13/07/2021,278.85
"Communities, Customer & Commercial Services",Sport & Leisure,Supplies & Services,Provisions,BIKOLD,08/07/2021,282.19
"Communities, Customer & Commercial Services",Sport & Leisure,Supplies & Services,Provisions,BIKOLD,23/07/2021,283.03
"Communities, Customer & Commercial Services",Sport & Leisure,Supplies & Services,Provisions,BIKOLD,15/07/2021,284.03
"Communities, Customer & Commercial Services",Sport & Leisure,Supplies & Services,Provisions,BIKOLD,08/07/2021,290.15
"Communities, Customer & Commercial Services",Sport & Leisure,Supplies & Services,Provisions,BIKOLD,15/07/2021,291.48
"Communities, Customer & Commercial Services",Sport & Leisure,Supplies & Services,Provisions,BIKOLD,08/07/2021,291.5
"Communities, Customer & Commercial Services",Sport & Leisure,Supplies & Services,Provisions,BIKOLD,08/07/2021,292.68
"Communities, Customer & Commercial Services",Sport & Leisure,Supplies & Services,Provisions,J S Catering Butchers,26/07/2021,294.03
"Communities, Customer & Commercial Services",Sport & Leisure,Supplies & Services,Financial Services,DEBIT FINANCE COLLECTIONS ,27/07/2021,294.94
"Communities, Customer & Commercial Services",Sport & Leisure,Supplies & Services,Provisions,Delice de France,09/07/2021,295
"Communities, Customer & Commercial Services",Sport & Leisure,Supplies & Services,Crockery/Hardware/Light Equip,PLANGLOW LTD,07/07/2021,295.19
"Communities, Customer & Commercial Services",Sport & Leisure,Supplies & Services,Provisions,BIKOLD,02/07/2021,295.62
"Communities, Customer & Commercial Services",Sport & Leisure,Supplies & Services,Provisions,BIKOLD,02/07/2021,297.17
"Communities, Customer & Commercial Services",Sport & Leisure,Supplies & Services,Chemicals/Cleaning Products,BRENNTAG UK LIMITED,22/07/2021,297.84
"Communities, Customer & Commercial Services",Sport & Leisure,Supplies & Services,Provisions,J S Catering Butchers,26/07/2021,298.2
"Communities, Customer & Commercial Services",Sport & Leisure,Supplies & Services,Provisions,BIKOLD,02/07/2021,298.54
"Communities, Customer & Commercial Services",Sport & Leisure,Supplies & Services,Provisions,BIKOLD,15/07/2021,299.32
"Communities, Customer & Commercial Services",Sport & Leisure,Supplies & Services,Provisions,BIKOLD,08/07/2021,299.81
"Communities, Customer & Commercial Services",Sport & Leisure,Supplies & Services,Provisions,BIKOLD,02/07/2021,300.22
"Communities, Customer & Commercial Services",Sport & Leisure,Supplies & Services,Provisions,BIKOLD,15/07/2021,301.12
"Communities, Customer & Commercial Services",Sport & Leisure,Supplies & Services,Provisions,BIKOLD,15/07/2021,301.28
"Communities, Customer & Commercial Services",Sport & Leisure,Supplies & Services,Provisions,On A Roll,01/07/2021,301.6
"Communities, Customer & Commercial Services",Sport & Leisure,Supplies & Services,Provisions,BIKOLD,08/07/2021,302.68
"Communities, Customer & Commercial Services",Sport & Leisure,Supplies & Services,Provisions,BIKOLD,15/07/2021,304.28
"Communities, Customer & Commercial Services",Sport & Leisure,Supplies & Services,Provisions,On A Roll,21/07/2021,307.58
"Communities, Customer & Commercial Services",Sport & Leisure,Supplies & Services,Provisions,BIKOLD,02/07/2021,308.44
"Communities, Customer & Commercial Services",Sport & Leisure,Supplies & Services,Provisions,On A Roll,26/07/2021,308.88
"Communities, Customer & Commercial Services",Sport & Leisure,Supplies & Services,Chemicals/Cleaning Products,BRENNTAG UK LIMITED,29/07/2021,309
"Communities, Customer & Commercial Services",Sport & Leisure,Supplies & Services,Equipment - Purchase,J P L LTD,12/07/2021,309.4
"Communities, Customer & Commercial Services",Sport & Leisure,Supplies & Services,Provisions,BIKOLD,23/07/2021,310.34
"Communities, Customer & Commercial Services",Sport & Leisure,Supplies & Services,Equipment - Purchase,European Golf Machinery,28/07/2021,314.95
"Communities, Customer & Commercial Services",Sport & Leisure,Supplies & Services,Provisions,J S Catering Butchers,05/07/2021,315.56
"Communities, Customer & Commercial Services",Sport & Leisure,Supplies & Services,Chemicals/Cleaning Products,BRENNTAG UK LIMITED,29/07/2021,320
"Communities, Customer & Commercial Services",Sport & Leisure,Supplies & Services,Provisions,BIKOLD,02/07/2021,320.87
"Communities, Customer & Commercial Services",Sport & Leisure,Supplies & Services,Provisions,BIKOLD,02/07/2021,322.36
"Communities, Customer & Commercial Services",Sport & Leisure,Supplies & Services,Provisions,BIKOLD,02/07/2021,326.06
"Communities, Customer & Commercial Services",Sport & Leisure,Supplies & Services,Provisions,BIKOLD,08/07/2021,326.54
"Communities, Customer & Commercial Services",Sport & Leisure,Supplies & Services,Provisions,T FOOD SERVICE LTD,21/07/2021,328.78
"Communities, Customer & Commercial Services",Sport & Leisure,Supplies & Services,Equipment - Hire,OAKLEYS LTD,16/07/2021,329.13
"Communities, Customer & Commercial Services",Sport & Leisure,Supplies & Services,Provisions,Delice de France,21/07/2021,332
"Communities, Customer & Commercial Services",Sport & Leisure,Supplies & Services,Provisions,Delice de France,28/07/2021,332
"Communities, Customer & Commercial Services",Sport & Leisure,Supplies & Services,Provisions,BIKOLD,08/07/2021,332.9
"Communities, Customer & Commercial Services",Sport & Leisure,Supplies & Services,Provisions,On A Roll,02/07/2021,335.29
"Communities, Customer & Commercial Services",Sport & Leisure,Supplies & Services,Financial Services,DEBIT FINANCE COLLECTIONS ,27/07/2021,335.4
"Communities, Customer & Commercial Services",Sport & Leisure,Supplies & Services,Provisions,BIKOLD,02/07/2021,336.63
"Communities, Customer & Commercial Services",Sport & Leisure,Supplies & Services,Provisions,On A Roll,01/07/2021,337.14
"Communities, Customer & Commercial Services",Sport & Leisure,Supplies & Services,Provisions,BIKOLD,23/07/2021,337.53
"Communities, Customer & Commercial Services",Sport & Leisure,Supplies & Services,Provisions,T FOOD SERVICE LTD,13/07/2021,337.98
"Communities, Customer & Commercial Services",Sport & Leisure,Supplies & Services,Provisions,T FOOD SERVICE LTD,07/07/2021,337.98
"Communities, Customer & Commercial Services",Sport & Leisure,Supplies & Services,Provisions,BIKOLD,15/07/2021,342.89
"Communities, Customer & Commercial Services",Sport & Leisure,Supplies & Services,Provisions,BIKOLD,02/07/2021,346.58
"Communities, Customer & Commercial Services",Sport & Leisure,Supplies & Services,Provisions,On A Roll,01/07/2021,346.96
"Communities, Customer & Commercial Services",Sport & Leisure,Supplies & Services,Equipment - Purchase,Bates Office Services Ltd,30/07/2021,347.35
"Communities, Customer & Commercial Services",Sport & Leisure,Supplies & Services,Provisions,BIKOLD,15/07/2021,351.6
"Communities, Customer & Commercial Services",Sport & Leisure,Supplies & Services,Provisions,BIKOLD,02/07/2021,358.01
"Communities, Customer & Commercial Services",Sport & Leisure,Supplies & Services,Provisions,BIKOLD,15/07/2021,360.24
"Communities, Customer & Commercial Services",Sport & Leisure,Supplies & Services,Provisions,BIKOLD,08/07/2021,361.21
"Communities, Customer & Commercial Services",Sport & Leisure,Supplies & Services,Equipment - Purchase,R & J Hill Engineering Limited,07/07/2021,362.15
"Communities, Customer & Commercial Services",Sport & Leisure,Supplies & Services,Provisions,BIKOLD,02/07/2021,363.75
"Communities, Customer & Commercial Services",Sport & Leisure,Supplies & Services,Provisions,BIKOLD,15/07/2021,371.6
"Communities, Customer & Commercial Services",Sport & Leisure,Supplies & Services,Provisions,BIKOLD,15/07/2021,374.11
"Communities, Customer & Commercial Services",Sport & Leisure,Supplies & Services,Provisions,BIKOLD,08/07/2021,374.93
"Communities, Customer & Commercial Services",Sport & Leisure,Supplies & Services,Crockery/Hardware/Light Equip,Vegware,19/07/2021,379.48
"Communities, Customer & Commercial Services",Sport & Leisure,Supplies & Services,Crockery/Hardware/Light Equip,Vegware,07/07/2021,379.48
"Communities, Customer & Commercial Services",Sport & Leisure,Supplies & Services,Provisions,BIKOLD,08/07/2021,379.8
"Communities, Customer & Commercial Services",Sport & Leisure,Supplies & Services,Crockery/Hardware/Light Equip,Vegware,13/07/2021,381.04
"Communities, Customer & Commercial Services",Sport & Leisure,Supplies & Services,Provisions,BIKOLD,08/07/2021,381.4
"Communities, Customer & Commercial Services",Sport & Leisure,Supplies & Services,Provisions,T FOOD SERVICE LTD,21/07/2021,382
"Communities, Customer & Commercial Services",Sport & Leisure,Supplies & Services,Provisions,T FOOD SERVICE LTD,09/07/2021,382
"Communities, Customer & Commercial Services",Sport & Leisure,Supplies & Services,Provisions,BIKOLD,02/07/2021,395.06
"Communities, Customer & Commercial Services",Sport & Leisure,Supplies & Services,Provisions,BIKOLD,08/07/2021,397.49
"Communities, Customer & Commercial Services",Sport & Leisure,Supplies & Services,Provisions,On A Roll,01/07/2021,398.84
"Communities, Customer & Commercial Services",Sport & Leisure,Supplies & Services,Provisions,BIKOLD,23/07/2021,407.6
"Communities, Customer & Commercial Services",Sport & Leisure,Supplies & Services,Provisions,BIKOLD,23/07/2021,410.79
"Communities, Customer & Commercial Services",Sport & Leisure,Supplies & Services,Provisions,BIKOLD,02/07/2021,411.96
"Communities, Customer & Commercial Services",Sport & Leisure,Supplies & Services,Equipment - Purchase,J P L LTD,28/07/2021,422.92
"Communities, Customer & Commercial Services",Sport & Leisure,Supplies & Services,Items For Resale,SWIM ENGLAND TRADING LIMITED ,01/07/2021,431.2
"Communities, Customer & Commercial Services",Sport & Leisure,Supplies & Services,Provisions,BIKOLD,08/07/2021,433.4
"Communities, Customer & Commercial Services",Sport & Leisure,Supplies & Services,Provisions,BIKOLD,02/07/2021,436.85
"Communities, Customer & Commercial Services",Sport & Leisure,Supplies & Services,Provisions,BIKOLD,15/07/2021,437.68
"Communities, Customer & Commercial Services",Sport & Leisure,Supplies & Services,Sub Contractors,Waterplay Solutions Limited,22/07/2021,438
"Communities, Customer & Commercial Services",Sport & Leisure,Supplies & Services,Provisions,BIKOLD,02/07/2021,439.67
"Communities, Customer & Commercial Services",Sport & Leisure,Supplies & Services,Equipment - Purchase,J P L LTD,16/07/2021,442.4
"Communities, Customer & Commercial Services",Sport & Leisure,Supplies & Services,Provisions,BIKOLD,15/07/2021,444.9
"Communities, Customer & Commercial Services",Sport & Leisure,Supplies & Services,Provisions,BIKOLD,23/07/2021,455.76
"Communities, Customer & Commercial Services",Sport & Leisure,Supplies & Services,Equipment - Purchase,PHS GROUP,16/07/2021,467.22
"Communities, Customer & Commercial Services",Sport & Leisure,Supplies & Services,Provisions,BIKOLD,08/07/2021,473.42
"Communities, Customer & Commercial Services",Sport & Leisure,Supplies & Services,Provisions,BIKOLD,02/07/2021,477.16
"Communities, Customer & Commercial Services",Sport & Leisure,Supplies & Services,Crockery/Hardware/Light Equip,PLANGLOW LTD,19/07/2021,480
"Communities, Customer & Commercial Services",Sport & Leisure,Supplies & Services,Provisions,PASTA KING (UK) LIMITED,21/07/2021,480
"Communities, Customer & Commercial Services",Sport & Leisure,Supplies & Services,Provisions,BIKOLD,02/07/2021,493.76
"Communities, Customer & Commercial Services",Sport & Leisure,Supplies & Services,Provisions,BIKOLD,02/07/2021,496.76
"Communities, Customer & Commercial Services",Sport & Leisure,Supplies & Services,Financial Services,DEBIT FINANCE COLLECTIONS,27/07/2021,498.42
"Communities, Customer & Commercial Services",Sport & Leisure,Supplies & Services,Provisions,BIKOLD,15/07/2021,500.07
"Communities, Customer & Commercial Services",Sport & Leisure,Supplies & Services,Provisions,BIKOLD,02/07/2021,506.64
"Communities, Customer & Commercial Services",Sport & Leisure,Supplies & Services,Licences,L M Fitness UK Ltd,16/07/2021,508.66
"Communities, Customer & Commercial Services",Sport & Leisure,Supplies & Services,Other Materials,PP ELECTRICAL SERVICES (Shropshire) Ltd,22/07/2021,510
"Communities, Customer & Commercial Services",Sport & Leisure,Supplies & Services,Provisions,ICare (GB) Limited,26/07/2021,517
"Communities, Customer & Commercial Services",Sport & Leisure,Supplies & Services,Provisions,BIKOLD,02/07/2021,517.4
"Communities, Customer & Commercial Services",Sport & Leisure,Supplies & Services,Advertising,Chapelcroft Ltd,29/07/2021,520
"Communities, Customer & Commercial Services",Sport & Leisure,Supplies & Services,Items For Resale,SWIM ENGLAND TRADING LIMITED,06/07/2021,539
"Communities, Customer & Commercial Services",Sport & Leisure,Supplies & Services,Chemicals/Cleaning Products,BRENNTAG UK LIMITED,21/07/2021,540.42
"Communities, Customer & Commercial Services",Sport & Leisure,Supplies & Services,Advertising,Alight Media Ltd,08/07/2021,550
"Communities, Customer & Commercial Services",Sport & Leisure,Supplies & Services,Pocket Money/Home Leave,THE CLEAN MACHINE DIRECT LTD,06/07/2021,575.96
"Communities, Customer & Commercial Services",Sport & Leisure,Supplies & Services,Provisions,BIKOLD,08/07/2021,585.06
"Communities, Customer & Commercial Services",Sport & Leisure,Supplies & Services,Provisions,BIKOLD,08/07/2021,586.85
"Communities, Customer & Commercial Services",Sport & Leisure,Supplies & Services,Provisions,PASTA KING (UK) LIMITED,07/07/2021,612
"Communities, Customer & Commercial Services",Sport & Leisure,Supplies & Services,Provisions,BIKOLD,08/07/2021,612.42
"Communities, Customer & Commercial Services",Sport & Leisure,Supplies & Services,Protective Clothing,CORPORATE TOGS LTD,09/07/2021,638.8
"Communities, Customer & Commercial Services",Sport & Leisure,Supplies & Services,Provisions,BIKOLD,08/07/2021,656.3
"Communities, Customer & Commercial Services",Sport & Leisure,Supplies & Services,Provisions,BIKOLD,23/07/2021,675.29
"Communities, Customer & Commercial Services",Sport & Leisure,Supplies & Services,Protective Clothing,IMAGE@WORK LTD,02/07/2021,704.64
"Communities, Customer & Commercial Services",Sport & Leisure,Supplies & Services,Provisions,BIKOLD,02/07/2021,705.37
"Communities, Customer & Commercial Services",Sport & Leisure,Supplies & Services,Licences,L M Fitness UK Ltd,16/07/2021,710.25
"Communities, Customer & Commercial Services",Sport & Leisure,Supplies & Services,Equipment - Purchase,Waterlogic GB LTD,29/07/2021,742.13
"Communities, Customer & Commercial Services",Sport & Leisure,Supplies & Services,Provisions,BIKOLD,15/07/2021,762.75
"Communities, Customer & Commercial Services",Sport & Leisure,Supplies & Services,EEC Whole Milk,J DAIRIES,14/07/2021,782.52
"Communities, Customer & Commercial Services",Sport & Leisure,Supplies & Services,EEC Whole Milk,J DAIRIES,27/07/2021,788
"Communities, Customer & Commercial Services",Sport & Leisure,Supplies & Services,Provisions,J DAIRIES,07/07/2021,789.4
"Communities, Customer & Commercial Services",Sport & Leisure,Supplies & Services,Sub Contractors,The Severn Sign & Print Company Ltd,22/07/2021,790
"Communities, Customer & Commercial Services",Sport & Leisure,Supplies & Services,Equipment - Purchase,J P L LTD,12/07/2021,820.75
"Communities, Customer & Commercial Services",Sport & Leisure,Supplies & Services,Sub Contractors,Waterplay Solutions Limited,06/07/2021,903
"Communities, Customer & Commercial Services",Sport & Leisure,Supplies & Services,Provisions,PASTA KING (UK) LIMITED,21/07/2021,1020
"Communities, Customer & Commercial Services",Sport & Leisure,Supplies & Services,Licences,L M Fitness UK Ltd,13/07/2021,1030.83
"Communities, Customer & Commercial Services",Sport & Leisure,Supplies & Services,Items For Resale,SWIM ENGLAND TRADING LIMITED ,29/07/2021,1205.83
"Communities, Customer & Commercial Services",Sport & Leisure,Supplies & Services,EEC Whole Milk,J DAIRIES,14/07/2021,1470.88
"Communities, Customer & Commercial Services",Sport & Leisure,Supplies & Services,EEC Whole Milk,J DAIRIES,27/07/2021,1510.36
"Communities, Customer & Commercial Services",Sport & Leisure,Supplies & Services,EEC Whole Milk,J DAIRIES,07/07/2021,1510.36
"Communities, Customer & Commercial Services",Sport & Leisure,Supplies & Services,Sub Contractors,PORTAKABIN LTD,02/07/2021,1720.74
"Communities, Customer & Commercial Services",Sport & Leisure,Supplies & Services,Equipment - Purchase,J P L LTD,27/07/2021,1780
"Communities, Customer & Commercial Services",Sport & Leisure,Supplies & Services,Sub Contractors,The Severn Sign & Print Company Ltd,13/07/2021,2120
"Communities, Customer & Commercial Services",Sport & Leisure,Supplies & Services,Equipment - Purchase,Rangeball UK LTD,16/07/2021,2835
"Communities, Customer & Commercial Services",Sport & Leisure,Supplies & Services,Other Materials,S PLAY LTD,14/07/2021,3057.9
"Communities, Customer & Commercial Services",Sport & Leisure,Supplies & Services,Sub Contractors,Waterplay Solutions Limited,06/07/2021,4035.55
Corporate Communications,Communications & Marketing,Employees,Recruitment Advertising,360 Resourcing Solutions Ltd,13/07/2021,450
Corporate Communications,Communications & Marketing,Employees,Recruitment Advertising,360 Resourcing Solutions Ltd,13/07/2021,1135
Corporate Communications,Communications & Marketing,Employees,Recruitment Advertising,360 Resourcing Solutions Ltd,20/07/2021,6875
Corporate Communications,Communications & Marketing,Supplies & Services,Subscriptions,SHROPSHIRE CHAMBER OF COMMERCE & ENTERPR,16/07/2021,199
Corporate Communications,Communications & Marketing,Supplies & Services,Community Newspaper,ROYAL MAIL GROUP PLC ,16/07/2021,413.02
Corporate Communications,Communications & Marketing,Supplies & Services,Advertising,Alight Media Ltd,16/07/2021,1100
Corporate Communications,Communications & Marketing,Supplies & Services,Advertising,Council Advertising Network,16/07/2021,5000
Corporate Communications,Communications & Marketing,Supplies & Services,Community Newspaper,PRECISION COLOUR PRINTING,16/07/2021,10453
Corporate Items,Corporate Codes,Capital Financing Costs,Unitary Charge,PYRAMID SCHOOLS (HADLEY) LTD,14/07/2021,894927.15
Corporate Items,Corporate Codes,Employees,Agency Supply Costs,Matrix SCM,06/07/2021,22959.59
Corporate Items,Corporate Codes,Employees,Agency Supply Costs,Matrix SCM,20/07/2021,27125.2
Corporate Items,Corporate Codes,Employees,Agency Supply Costs,Matrix SCM,29/07/2021,28997.25
Corporate Items,Corporate Codes,Employees,Agency Supply Costs,Matrix SCM,13/07/2021,34935.81
Corporate Items,Corporate Codes,Supplies & Services,Subscriptions,HEMMING GROUP LTD,16/07/2021,140
Corporate Items,Corporate Codes,Supplies & Services,Other Grants (Expenses),HADLEY & LEEGOMERY PARISH COUNCIL,07/07/2021,256
Corporate Items,Corporate Codes,Supplies & Services,Other Grants (Expenses),NEWPORT TOWN COUNCIL ,07/07/2021,282.25
Corporate Items,Corporate Codes,Supplies & Services,Comp Hardware (Purch / Hire),CCS MEDIA LIMITED,14/07/2021,306
Corporate Items,Corporate Codes,Supplies & Services,Other Grants (Expenses),MADELEY PARISH COUNCIL ,07/07/2021,941.56
Corporate Items,Corporate Codes,Supplies & Services,Other Grants (Expenses),Great Dawley Town Council,07/07/2021,2758.05
Corporate Items,Corporate Codes,Supplies & Services,Other Grants (Expenses),OAKENGATES TOWN COUNCIL,07/07/2021,4563.5
Education & Skills,Consultancy & Advisory Services,Employees,Agency Supply Costs,Permanent Futures Ltd,27/07/2021,2055
Education & Skills,Consultancy & Advisory Services,Employees,Agency Supply Costs,Permanent Futures Ltd,27/07/2021,2055
Education & Skills,Consultancy & Advisory Services,Employees,Agency Supply Costs,Permanent Futures Ltd,27/07/2021,2055
Education & Skills,Consultancy & Advisory Services,Premises-Related Expenditure,Hire Of Rooms,Mercure Telford Centre Hotel,27/07/2021,104.16
Education & Skills,Consultancy & Advisory Services,Supplies & Services,Training Costs - Participants Recharged,Mercure Telford Centre Hotel,27/07/2021,142.81
Education & Skills,Consultancy & Advisory Services,Supplies & Services,Other Grants (Expenses),HALESFIELD DAY NURSERY CENTRE ,08/07/2021,260
Education & Skills,Consultancy & Advisory Services,Supplies & Services,Other Grants (Expenses),ABC DAY NURSERY HOLLINSWOOD,08/07/2021,260
Education & Skills,Consultancy & Advisory Services,Supplies & Services,Other Grants (Expenses),WOODEN TOPS DAY NURSERY ,08/07/2021,260
Education & Skills,Consultancy & Advisory Services,Supplies & Services,Other Grants (Expenses),HADLEY UNDER 5'S ,08/07/2021,400
Education & Skills,Consultancy & Advisory Services,Supplies & Services,Other Grants (Expenses),HONEYBUNS NURSERIES,08/07/2021,520
Education & Skills,Consultancy & Advisory Services,Supplies & Services,Other Grants (Expenses),LITTLE DRAGONS PRE-SCHOOL,08/07/2021,520
Education & Skills,Culture & Recreation,Supplies & Services,Comp Software (Purch / Hire),Charanga Ltd.,22/07/2021,780
Education & Skills,Culture & Recreation,Supplies & Services,Artistes Fees,REDACTED PERSONAL INFORMATION,15/07/2021,1020
Education & Skills,Culture & Recreation,Supplies & Services,Artistes Fees,REDACTED PERSONAL INFORMATION,15/07/2021,3560
Education & Skills,Culture & Recreation,Supplies & Services,Other Expenses,Entrust Support Services Ltd,28/07/2021,4546.53
Education & Skills,Culture & Recreation,Supplies & Services,Other Expenses,Entrust Support Services Ltd,09/07/2021,10945.35
Education & Skills,Education & Skills,Capital Expenditure,Legal Fees,W H SOLICITORS,23/07/2021,215.80
Education & Skills,Education & Skills,Capital Expenditure,Payments to Contractor,WREKIN DRAIN SERVICES LTD,05/07/2021,270.00
Education & Skills,Education & Skills,Capital Expenditure,Payments to Contractor,WREKIN REMOVALS,27/07/2021,418.00
Education & Skills,Education & Skills,Capital Expenditure,Payments to Contractor,WREKIN REMOVALS,23/07/2021,470.00
Education & Skills,Education & Skills,Capital Expenditure,Payments to Contractor,WPD MIDLANDS NETWORKS SERVICES LTD,27/07/2021,841.63
Education & Skills,Education & Skills,Capital Expenditure,Payments to Contractor,E N CATERING SUPPLIES LTD,05/07/2021,984.00
Education & Skills,Education & Skills,Capital Expenditure,Payments to Contractor,Ridge and Partners LLP,23/07/2021,"3,000.00"
Education & Skills,Education & Skills,Capital Expenditure,Payments to Contractor,PORTAKABIN LTD,08/07/2021,"4,077.65"
Education & Skills,Education & Skills,Capital Expenditure,Payments to Contractor,PORTAKABIN LTD,08/07/2021,"4,077.65"
Education & Skills,Education & Skills,Capital Expenditure,Payments to Contractor,WINDOW & DOOR CONTRACT SERVICES,05/07/2021,"6,389.10"
Education & Skills,Education & Skills,Capital Expenditure,Payments to Contractor,Morris Property Ltd,06/07/2021,"274,914.95"
Education & Skills,Education & Skills,Capital Expenditure,Payments to Contractor,Read Construction Holdings Ltd,29/07/2021,"303,559.91"
Education & Skills,Education & Skills,Capital Expenditure,Payments to Contractor,Read Construction Holdings Ltd,06/07/2021,"320,299.34"
Education & Skills,Pupil Support Services,Third Party Payments,Misc. Education Payments to Non Schools,HRP Education,02/07/2021,196
Education & Skills,Pupil Support Services,Third Party Payments,Misc. Education Payments to Non Schools,HRP Education,02/07/2021,196
Education & Skills,Pupil Support Services,Third Party Payments,Misc. Education Payments to Non Schools,HRP Education,02/07/2021,196
Education & Skills,Pupil Support Services,Third Party Payments,Misc. Education Payments to Non Schools,HRP Education,02/07/2021,196
Education & Skills,Pupil Support Services,Third Party Payments,Misc. Education Payments to Non Schools,HRP Education,02/07/2021,196
Education & Skills,Pupil Support Services,Third Party Payments,Misc. Education Payments to Non Schools,HRP Education,02/07/2021,196
Education & Skills,Pupil Support Services,Third Party Payments,Misc. Education Payments to Non Schools,HRP Education,09/07/2021,196
Education & Skills,Pupil Support Services,Third Party Payments,Misc. Education Payments to Non Schools,HRP Education,09/07/2021,196
Education & Skills,Pupil Support Services,Third Party Payments,Misc. Education Payments to Non Schools,HRP Education,09/07/2021,196
Education & Skills,Pupil Support Services,Third Party Payments,DSG - High Needs Block,Cygnet Health (NW) Ltd,23/07/2021,2310
Education & Skills,Pupil Support Services,Third Party Payments,DSG - High Needs Block,The Place Young Peoples Company Ltd,16/07/2021,30150.33
Education & Skills,SEND (0-25),Employees,Course Fees,NATIONAL AUTISTIC  SOCIETY,02/07/2021,965
Education & Skills,SEND (0-25),Employees,Course Fees,NATIONAL AUTISTIC  SOCIETY,22/07/2021,965
Education & Skills,SEND (0-25),Supplies & Services,Equipment - Purchase,SOUNDBYTE SOLUTIONS (UK) LTD,26/07/2021,196
Education & Skills,SEND (0-25),Supplies & Services,Aids & Appliances,Hands Free Computing Ltd,12/07/2021,375
Education & Skills,SEND (0-25),Supplies & Services,Aids & Appliances,PHONAK UK LTD,20/07/2021,955.89
Education & Skills,SEND (0-25),Third Party Payments,DSG - High Needs Block,The National Teaching & Advisory Service,27/07/2021,130
Education & Skills,SEND (0-25),Third Party Payments,DSG - High Needs Block,HRP Education,09/07/2021,147
Education & Skills,SEND (0-25),Third Party Payments,DSG - High Needs Block,HRP Education,20/07/2021,245
Education & Skills,SEND (0-25),Third Party Payments,DSG - High Needs Block,HRP Education,09/07/2021,245
Education & Skills,SEND (0-25),Third Party Payments,DSG - High Needs Block,HRP Education,09/07/2021,245
Education & Skills,SEND (0-25),Third Party Payments,DSG - High Needs Block,HRP Education,09/07/2021,245
Education & Skills,SEND (0-25),Third Party Payments,DSG - High Needs Block,HRP Education,09/07/2021,245
Education & Skills,SEND (0-25),Third Party Payments,DSG - High Needs Block,HRP Education,09/07/2021,245
Education & Skills,SEND (0-25),Third Party Payments,DSG - High Needs Block,HRP Education,05/07/2021,245
Education & Skills,SEND (0-25),Third Party Payments,DSG - High Needs Block,HRP Education,12/07/2021,245
Education & Skills,SEND (0-25),Third Party Payments,DSG - High Needs Block,HRP Education,05/07/2021,245
Education & Skills,SEND (0-25),Third Party Payments,DSG - High Needs Block,Aqueduct Little Learners,22/07/2021,260.05
Education & Skills,SEND (0-25),Third Party Payments,DSG - High Needs Block,Grange Park Primary School - Community Academies Trust,22/07/2021,336.76
Education & Skills,SEND (0-25),Third Party Payments,DSG - High Needs Block,Apley Village Day Nursery,22/07/2021,339.73
Education & Skills,SEND (0-25),Third Party Payments,DSG - High Needs Block,HRP Education,09/07/2021,392
Education & Skills,SEND (0-25),Third Party Payments,DSG - High Needs Block,HRP Education,12/07/2021,392
Education & Skills,SEND (0-25),Third Party Payments,DSG - High Needs Block,HRP Education,05/07/2021,392
Education & Skills,SEND (0-25),Third Party Payments,DSG - High Needs Block,RED GEORGE RURAL SKILLS PROJECT,21/07/2021,400
Education & Skills,SEND (0-25),Third Party Payments,DSG - High Needs Block,HRP Education,20/07/2021,441
Education & Skills,SEND (0-25),Third Party Payments,DSG - High Needs Block,HRP Education,09/07/2021,490
Education & Skills,SEND (0-25),Third Party Payments,DSG - High Needs Block,HRP Education,09/07/2021,490
Education & Skills,SEND (0-25),Third Party Payments,DSG - High Needs Block,HRP Education,09/07/2021,490
Education & Skills,SEND (0-25),Third Party Payments,DSG - High Needs Block,HRP Education,20/07/2021,588
Education & Skills,SEND (0-25),Third Party Payments,DSG - High Needs Block,HRP Education,09/07/2021,588
Education & Skills,SEND (0-25),Third Party Payments,DSG - High Needs Block,HRP Education,09/07/2021,588
Education & Skills,SEND (0-25),Third Party Payments,DSG - High Needs Block,HRP Education,09/07/2021,588
Education & Skills,SEND (0-25),Third Party Payments,DSG - High Needs Block,HRP Education,09/07/2021,588
Education & Skills,SEND (0-25),Third Party Payments,DSG - High Needs Block,HRP Education,09/07/2021,588
Education & Skills,SEND (0-25),Third Party Payments,DSG - High Needs Block,HRP Education,12/07/2021,588
Education & Skills,SEND (0-25),Third Party Payments,DSG - High Needs Block,HRP Education,05/07/2021,588
Education & Skills,SEND (0-25),Third Party Payments,DSG - High Needs Block,RED GEORGE RURAL SKILLS PROJECT,21/07/2021,700
Education & Skills,SEND (0-25),Third Party Payments,DSG - High Needs Block,HRP Education,20/07/2021,735
Education & Skills,SEND (0-25),Third Party Payments,DSG - High Needs Block,HRP Education,20/07/2021,735
Education & Skills,SEND (0-25),Third Party Payments,DSG - High Needs Block,HRP Education,09/07/2021,735
Education & Skills,SEND (0-25),Third Party Payments,DSG - High Needs Block,HRP Education,09/07/2021,735
Education & Skills,SEND (0-25),Third Party Payments,DSG - High Needs Block,HRP Education,09/07/2021,735
Education & Skills,SEND (0-25),Third Party Payments,DSG - High Needs Block,HRP Education,09/07/2021,735
Education & Skills,SEND (0-25),Third Party Payments,DSG - High Needs Block,HRP Education,09/07/2021,735
Education & Skills,SEND (0-25),Third Party Payments,DSG - High Needs Block,HRP Education,09/07/2021,735
Education & Skills,SEND (0-25),Third Party Payments,DSG - High Needs Block,HRP Education,12/07/2021,735
Education & Skills,SEND (0-25),Third Party Payments,DSG - High Needs Block,HRP Education,12/07/2021,735
Education & Skills,SEND (0-25),Third Party Payments,DSG - High Needs Block,CHILDCARE SOS,27/07/2021,810.24
Education & Skills,SEND (0-25),Third Party Payments,DSG - High Needs Block,TORTOISE NURSERY SCHOOL,22/07/2021,810.73
Education & Skills,SEND (0-25),Third Party Payments,DSG - High Needs Block,LITTLE DRAGONS PRE-SCHOOL,22/07/2021,818.95
Education & Skills,SEND (0-25),Third Party Payments,DSG - High Needs Block,PUDDLEDUCKS PLAYGROUP ,22/07/2021,818.95
Education & Skills,SEND (0-25),Third Party Payments,DSG - High Needs Block,Busy Bees Day Nursery Telford,22/07/2021,818.95
Education & Skills,SEND (0-25),Third Party Payments,DSG - High Needs Block,DAISY CHAIN @ OLD HALL,22/07/2021,818.95
Education & Skills,SEND (0-25),Third Party Payments,DSG - High Needs Block,Apley Village Day Nursery,27/07/2021,927.48
Education & Skills,SEND (0-25),Third Party Payments,DSG - High Needs Block,Bryn Melyn Care Ltd,05/07/2021,1000
Education & Skills,SEND (0-25),Third Party Payments,DSG - High Needs Block,HALESFIELD DAY NURSERY CENTRE ,27/07/2021,1056.3
Education & Skills,SEND (0-25),Third Party Payments,DSG - High Needs Block,TORTOISE NURSERY SCHOOL ,27/07/2021,1056.3
Education & Skills,SEND (0-25),Third Party Payments,DSG - High Needs Block,ABC DAY NURSERY LTD ,22/07/2021,1059.82
Education & Skills,SEND (0-25),Third Party Payments,DSG - High Needs Block,Hadley Learning Community Academy,22/07/2021,1637.9
Education & Skills,SEND (0-25),Third Party Payments,DSG - High Needs Block,WOODEN TOPS DAY NURSERY,22/07/2021,1637.9
Education & Skills,SEND (0-25),Third Party Payments,DSG - High Needs Block,Lawley Village Day Nursery,22/07/2021,1637.9
Education & Skills,SEND (0-25),Third Party Payments,DSG - High Needs Block,Grange Park Primary School - Community Academies Trust,22/07/2021,1637.9
Education & Skills,SEND (0-25),Third Party Payments,DSG - High Needs Block,Keys PCE Limited,26/07/2021,2380
Education & Skills,SEND (0-25),Third Party Payments,DSG - High Needs Block,Church Street Day Nursery,22/07/2021,2456.85
Education & Skills,SEND (0-25),Third Party Payments,DSG - High Needs Block,Keys PCE Limited,26/07/2021,2520
Education & Skills,SEND (0-25),Third Party Payments,DSG - High Needs Block,Endeavour Multi Academy Trust T/A Wightwick Hall School,22/07/2021,3197.14
Education & Skills,SEND (0-25),Third Party Payments,DSG - High Needs Block,TEAGUES BRIDGE PRE-SCHOOL ,27/07/2021,5013.8
Education & Skills,SEND (0-25),Third Party Payments,DSG - High Needs Block,Aqueduct Little Learners,27/07/2021,5013.85
Education & Skills,SEND (0-25),Third Party Payments,DSG - High Needs Block,THE EDUCATION DEVELOPMENT SERVICE LTD,20/07/2021,7355
Education & Skills,SEND (0-25),Third Party Payments,DSG - High Needs Block,THE EDUCATION DEVELOPMENT SERVICE LTD,20/07/2021,7765
Education & Skills,SEND (0-25),Third Party Payments,DSG - High Needs Block,THE EDUCATION DEVELOPMENT SERVICE LTD,20/07/2021,7765
Education & Skills,SEND (0-25),Third Party Payments,DSG - High Needs Block,THE EDUCATION DEVELOPMENT SERVICE LTD,20/07/2021,7765
Education & Skills,SEND (0-25),Third Party Payments,DSG - High Needs Block,THE EDUCATION DEVELOPMENT SERVICE LTD,20/07/2021,7765
Education & Skills,SEND (0-25),Third Party Payments,DSG - High Needs Block,THE EDUCATION DEVELOPMENT SERVICE LTD,20/07/2021,7765
Education & Skills,SEND (0-25),Third Party Payments,DSG - High Needs Block,CITY OF STOKE ON TRENT,09/07/2021,12000
Education & Skills,SEND (0-25),Third Party Payments,DSG - High Needs Block,The Priory Group ,09/07/2021,16666.66
Education & Skills,SEND (0-25),Third Party Payments,DSG - High Needs Block,The Priory Group,09/07/2021,16666.67
Education & Skills,SEND (0-25),Third Party Payments,DSG - High Needs Block,Queensway HLC,29/07/2021,54100.63
Education & Skills,SEND (0-25),Third Party Payments,DSG - High Needs Block,Queensway HLC,29/07/2021,67436.11
Education & Skills,SEND (0-25),Transport-Related Expenditure,Taxi Costs,Go Carz,27/07/2021,136.5
Education & Skills,SEND (0-25),Transport-Related Expenditure,Taxi Costs,Go Carz,27/07/2021,168
Education & Skills,SEND (0-25),Transport-Related Expenditure,Taxi Costs,Go Carz,05/07/2021,189
Education & Skills,SEND (0-25),Transport-Related Expenditure,Taxi Costs,Go Carz,27/07/2021,225
Education & Skills,SEND (0-25),Transport-Related Expenditure,Taxi Costs,Go Carz,05/07/2021,230
Education & Skills,SEND (0-25),Transport-Related Expenditure,Taxi Costs,Go Carz,27/07/2021,234
Education & Skills,SEND (0-25),Transport-Related Expenditure,Taxi Costs,Go Carz,27/07/2021,241.5
Education & Skills,SEND (0-25),Transport-Related Expenditure,Taxi Costs,Go Carz,27/07/2021,242
Education & Skills,SEND (0-25),Transport-Related Expenditure,Taxi Costs,Go Carz,05/07/2021,242
Education & Skills,SEND (0-25),Transport-Related Expenditure,Taxi Costs,Go Carz,05/07/2021,250
Education & Skills,SEND (0-25),Transport-Related Expenditure,Taxi Costs,Go Carz,27/07/2021,252
Education & Skills,SEND (0-25),Transport-Related Expenditure,Taxi Costs,Go Carz,05/07/2021,299
Education & Skills,SEND (0-25),Transport-Related Expenditure,Taxi Costs,Go Carz,27/07/2021,308
Education & Skills,SEND (0-25),Transport-Related Expenditure,Taxi Costs,Go Carz,27/07/2021,364
Education & Skills,SEND (0-25),Transport-Related Expenditure,Taxi Costs,Telford and Wrekin Community Enterprise LTD,09/07/2021,374.4
Education & Skills,SEND (0-25),Transport-Related Expenditure,Taxi Costs,Go Carz,05/07/2021,390
Education & Skills,SEND (0-25),Transport-Related Expenditure,Taxi Costs,Go Carz,27/07/2021,396
Education & Skills,SEND (0-25),Transport-Related Expenditure,Taxi Costs,Telford and Wrekin Community Enterprise LTD,09/07/2021,554.2
Education & Skills,SEND (0-25),Transport-Related Expenditure,Taxi Costs,ULTIMATE TAXIS LTD,27/07/2021,560
Education & Skills,SEND (0-25),Transport-Related Expenditure,Taxi Costs,ULTIMATE TAXIS LTD,27/07/2021,640
Education & Skills,SEND (0-25),Transport-Related Expenditure,Taxi Costs,Go Carz,27/07/2021,648
Education & Skills,SEND (0-25),Transport-Related Expenditure,Taxi Costs,Go Carz,27/07/2021,792
Education & Skills,SEND (0-25),Transport-Related Expenditure,Taxi Costs,Go Carz,05/07/2021,836
Education & Skills,SEND (0-25),Transport-Related Expenditure,Taxi Costs,Go Carz,05/07/2021,910
Education & Skills,SEND (0-25),Transport-Related Expenditure,Taxi Costs,Go Carz,27/07/2021,936
Education & Skills,SEND (0-25),Transport-Related Expenditure,Taxi Costs,Go Carz,27/07/2021,980
Education & Skills,SEND (0-25),Transport-Related Expenditure,Taxi Costs,Go Carz,05/07/2021,980
Education & Skills,SEND (0-25),Transport-Related Expenditure,Taxi Costs,Go Carz,05/07/2021,980
Education & Skills,SEND (0-25),Transport-Related Expenditure,Taxi Costs,Go Carz,27/07/2021,1188
Education & Skills,SEND (0-25),Transport-Related Expenditure,Taxi Costs,Go Carz,05/07/2021,2200
Education & Skills,SEND (0-25),Transport-Related Expenditure,Taxi Costs,Go Carz,27/07/2021,2400
Education & Skills,SEND (0-25),Transport-Related Expenditure,Taxi Costs,Go Carz,27/07/2021,4140
Education & Skills,SEND (0-25),Transport-Related Expenditure,Taxi Costs,Go Carz,05/07/2021,4380
Education & Skills,SEND (0-25),Transport-Related Expenditure,Transport Contractors,A-STAR TRANSPORT MIDLANDS LTD,27/07/2021,5715
Education & Skills,Skills,Premises-Related Expenditure,Hire Of Rooms,PARK LANE CENTRE,15/07/2021,120
Education & Skills,Skills,Premises-Related Expenditure,Hire Of Rooms,The Leegate Centre CIC,27/07/2021,120
Education & Skills,Skills,Premises-Related Expenditure,Hire Of Rooms,MADELEY PARISH COUNCIL ,13/07/2021,131.75
Education & Skills,Skills,Premises-Related Expenditure,Hire Of Rooms,MEETING POINT TRUST LTD,01/07/2021,160
Education & Skills,Skills,Premises-Related Expenditure,Hire Of Rooms,DONNINGTON PARTNERSHIP,13/07/2021,187
Education & Skills,Skills,Premises-Related Expenditure,Hire Of Rooms,The Leegate Centre CIC,13/07/2021,240
Education & Skills,Skills,Premises-Related Expenditure,Hire Of Rooms,PARK LANE CENTRE,13/07/2021,450
Education & Skills,Skills,Premises-Related Expenditure,Hire Of Rooms,Dawley Social Club,27/07/2021,1500
Education & Skills,Skills,Supplies & Services,Exam Fees,OPEN COLLEGE NETWORK WEST MIDLANDS REGION,27/07/2021,105
Education & Skills,Skills,Supplies & Services,Exam Fees,CITY & GUILDS,13/07/2021,129.72
Education & Skills,Skills,Supplies & Services,Exam Fees,Pearltech UK Ltd,13/07/2021,1200
Education & Skills,Skills,Supplies & Services,Research Surveys,J2 Research LTD (,13/07/2021,3393.6
Finance & Human Resources,Employment Services & Purchase Ledger,Supplies & Services,Fees,MERIDIAN COST BENEFIT LTD,15/07/2021,1248.33
Finance & Human Resources,Finance,Supplies & Services,Other Services,ALLPAY.NET LIMITED,12/07/2021,226.74
Finance & Human Resources,Finance,Supplies & Services,Other Services,ALLPAY.NET LIMITED,12/07/2021,1824.94
Finance & Human Resources,"Finance Manager (Business, Education & Care)",Employees,Professional Subs,AAT,01/07/2021, 159.00 
Finance & Human Resources,"Finance Manager (Business, Education & Care)",Employees,Professional Subs,AAT,01/07/2021, 159.00 
Finance & Human Resources,Finance Manager (Corporate & Capital),Supplies & Services,Bank Charges,TALL Security Print Ltd,12/07/2021,122
Finance & Human Resources,Human Resources,Employees,Criminal Records Bureau Checks,Capita Recruitment Vetting Service ,13/07/2021,308.95
Finance & Human Resources,Human Resources,Employees,Criminal Records Bureau Checks,Capita Recruitment Vetting Service ,06/07/2021,567.4
Finance & Human Resources,Human Resources,Supplies & Services,Doctors Fees,TELFORD OCCUPATIONAL HEALTH SERVICE LTD,15/07/2021,460
Finance & Human Resources,Revenues,Supplies & Services,Stationery,PREMIER PAPER GROUP LTD,12/07/2021,108.7
Finance & Human Resources,Revenues,Supplies & Services,Stationery,PREMIER PAPER GROUP LTD,06/07/2021,121.55
Finance & Human Resources,Revenues,Supplies & Services,Stationery,Francotyp Postalia Ltd ,12/07/2021,136
Finance & Human Resources,Revenues,Supplies & Services,Printing - Other,Financial Data Management plc,13/07/2021,155
Finance & Human Resources,Revenues,Supplies & Services,Postages,ROYAL MAIL GROUP PLC ,16/07/2021,155.48
Finance & Human Resources,Revenues,Supplies & Services,Stationery,PREMIER PAPER GROUP LTD,15/07/2021,157.96
Finance & Human Resources,Revenues,Supplies & Services,Postages,Financial Data Management plc,27/07/2021,182.87
Finance & Human Resources,Revenues,Supplies & Services,Postages,Financial Data Management plc,27/07/2021,185.68
Finance & Human Resources,Revenues,Supplies & Services,Printing - Other,Financial Data Management plc,13/07/2021,188.53
Finance & Human Resources,Revenues,Supplies & Services,Postages,Financial Data Management plc,27/07/2021,207.54
Finance & Human Resources,Revenues,Supplies & Services,Stationery,PREMIER PAPER GROUP LTD,15/07/2021,223.58
Finance & Human Resources,Revenues,Supplies & Services,Postages,G FORCE EXPRESS PARCELS LTD,12/07/2021,244.8
Finance & Human Resources,Revenues,Supplies & Services,Postages,Financial Data Management plc,27/07/2021,253.55
Finance & Human Resources,Revenues,Supplies & Services,Postages,Financial Data Management plc,27/07/2021,317.23
Finance & Human Resources,Revenues,Supplies & Services,Other Office Expenses,DOCU-FINISH SOLUTIONS LTD,29/07/2021,326.82
Finance & Human Resources,Revenues,Supplies & Services,Postages,FREELANCE BUSINESS ASSOCIATES,12/07/2021,330
Finance & Human Resources,Revenues,Supplies & Services,Postages,Financial Data Management plc,27/07/2021,415.29
Finance & Human Resources,Revenues,Supplies & Services,Postages,Financial Data Management plc,27/07/2021,554.57
Finance & Human Resources,Revenues,Supplies & Services,Postages,Financial Data Management plc,27/07/2021,734.78
Finance & Human Resources,Revenues,Supplies & Services,Postages,Financial Data Management plc,27/07/2021,755.41
Finance & Human Resources,Revenues,Supplies & Services,Printing - Other,Financial Data Management plc,13/07/2021,822.52
Finance & Human Resources,Revenues,Supplies & Services,Postages,FRANCOTYP-POSTALIA LTD,20/07/2021,840
Finance & Human Resources,Revenues,Supplies & Services,Postages,Financial Data Management plc,27/07/2021,929.59
Finance & Human Resources,Revenues,Supplies & Services,Postages,FRANCOTYP-POSTALIA LTD,12/07/2021,1000
Finance & Human Resources,Revenues,Supplies & Services,Postages,FRANCOTYP-POSTALIA LTD,29/07/2021,1000
Finance & Human Resources,Revenues,Supplies & Services,Postages,ROYAL MAIL GROUP PLC,12/07/2021,1053.36
Finance & Human Resources,Revenues,Supplies & Services,Postages,ROYAL MAIL GROUP PLC,12/07/2021,1860.14
Finance & Human Resources,Revenues,Supplies & Services,Postages,ROYAL MAIL GROUP PLC,16/07/2021,3249.36
Finance & Human Resources,Revenues,Supplies & Services,Printing - Print Room,RICOH UK LIMITED,16/07/2021,8105.77
"Health, Wellbeing & Commissioning",Consultant in Public Health,Premises-Related Expenditure,Other,SHREWSBURY & TELFORD HOSPITAL NHS TRUST,23/07/2021,6224.29
"Health, Wellbeing & Commissioning",Consultant in Public Health,Premises-Related Expenditure,Other,SHREWSBURY & TELFORD HOSPITAL NHS TRUST,23/07/2021,12448.58
"Health, Wellbeing & Commissioning",Consultant in Public Health,Supplies & Services,Sub Contractors,Southport & Ormskirk Hospital NHS Trust,01/07/2021,136
"Health, Wellbeing & Commissioning",Consultant in Public Health,Supplies & Services,Sub Contractors,Lewisham and Greenwich NHS Trust,23/07/2021,206.4
"Health, Wellbeing & Commissioning",Consultant in Public Health,Supplies & Services,Sub Contractors,University Hospitals Birmingham NHS Foundation Trust,12/07/2021,210
"Health, Wellbeing & Commissioning",Consultant in Public Health,Supplies & Services,Sub Contractors,Chelsea and Westminster Hospital,14/07/2021,290.24
"Health, Wellbeing & Commissioning",Consultant in Public Health,Supplies & Services,Sub Contractors,Alere Uk Holdings Ltd,22/07/2021,412.5
"Health, Wellbeing & Commissioning",Consultant in Public Health,Supplies & Services,Comp Software (Purch / Hire),PHOENIX SOFTWARE LTD,28/07/2021,419.1
"Health, Wellbeing & Commissioning",Consultant in Public Health,Supplies & Services,Equipment - Purchase,VEOLIA ES (UK) LTD,15/07/2021,525
"Health, Wellbeing & Commissioning",Consultant in Public Health,Supplies & Services,Other Grants (Expenses),The Oyster Partnership Ltd,02/07/2021,525
"Health, Wellbeing & Commissioning",Consultant in Public Health,Supplies & Services,Subscriptions,W Limousine Hire Ltd,23/07/2021,600
"Health, Wellbeing & Commissioning",Consultant in Public Health,Supplies & Services,Service Contracts,Linxs,23/07/2021,812.5
"Health, Wellbeing & Commissioning",Consultant in Public Health,Supplies & Services,Other Grants (Expenses),Vivid Resourcing,22/07/2021,1665
"Health, Wellbeing & Commissioning",Consultant in Public Health,Supplies & Services,Other Services,Central Health Solutions Ltd,16/07/2021,3052
"Health, Wellbeing & Commissioning",Consultant in Public Health,Supplies & Services,Service Contracts,LOUDMOUTH EDUCATION & TRAINING LTD,01/07/2021,3425
"Health, Wellbeing & Commissioning",Consultant in Public Health,Supplies & Services,Sub Contractors,Midlands Partnership NHS Trust,23/07/2021,12126
"Health, Wellbeing & Commissioning",Consultant in Public Health,Supplies & Services,Service Contracts,TACT,09/07/2021,33750
"Health, Wellbeing & Commissioning",Health Improvement,Supplies & Services,Libraries Book Fund,W F H LTD,26/07/2021,131.2
"Health, Wellbeing & Commissioning",Health Improvement,Supplies & Services,Libraries Book Fund,W F H LTD,27/07/2021,131.2
"Health, Wellbeing & Commissioning",Health Improvement,Supplies & Services,Security Services,BUSINESS WATCH GUARDING LIMITED,26/07/2021,490.8
"Health, Wellbeing & Commissioning",Health Improvement,Supplies & Services,Security Services,BUSINESS WATCH GUARDING LIMITED,27/07/2021,490.8
"Health, Wellbeing & Commissioning",Health Improvement,Supplies & Services,Libraries Book Fund,Encyclopedia Britannica (UK) Ltd,27/07/2021,2195
"Health, Wellbeing & Commissioning",Health Improvement,Supplies & Services,Equipment - Purchase,PCWORLD,16/07/2021,2949.13
"Health, Wellbeing & Commissioning",Health Improvement,Supplies & Services,Other Grants (Expenses),Twiggys Day Nursery Ltd SUTTON HILL,17/07/2021,3633
"Health, Wellbeing & Commissioning",Health Improvement,Supplies & Services,Other Grants (Expenses),MEETING POINT TRUST LTD,17/07/2021,4184
"Health, Wellbeing & Commissioning",Health Improvement,Supplies & Services,Computer Software (Maint),AXIELL LTD,26/07/2021,4750.53
"Health, Wellbeing & Commissioning",Health Improvement,Supplies & Services,Other Grants (Expenses),Old Park Primary SCHOOL FUND,24/07/2021,4800
"Health, Wellbeing & Commissioning",Health Improvement,Supplies & Services,Other Grants (Expenses),HOLLINSWOOD & RANDLAY PARISH COUNCIL,08/07/2021,5120
"Health, Wellbeing & Commissioning",Health Improvement,Supplies & Services,Other Grants (Expenses),Great Dawley Town Council,17/07/2021,14380
"Housing, Employment & Infrastructure",Housing Strategy,Supplies & Services,Consultancy,Hatch Associates Ltd,29/07/2021,4905
"Housing, Employment & Infrastructure","Housing, Employment & Infrastructure",Supplies & Services,Fees,PERFECT CIRCLE JV LTD,29/07/2021,8856.32
"Housing, Employment & Infrastructure",Inward Investment & Business Support,Capital Expenditure,Payments to Contractor,R F PHOTOGRAPHY,16/07/2021,140.00
"Housing, Employment & Infrastructure",Inward Investment & Business Support,Capital Expenditure,Payments to Contractor,R F PHOTOGRAPHY,16/07/2021,180.00
"Housing, Employment & Infrastructure",Inward Investment & Business Support,Capital Expenditure,Payments to Contractor,THE SIGN SHOP,09/07/2021,298.00
"Housing, Employment & Infrastructure",Inward Investment & Business Support,Capital Expenditure,Other Capital Expenditure,BRITISH TELECOMMUNICATIONS PLC ,27/07/2021,555.00
"Housing, Employment & Infrastructure",Inward Investment & Business Support,Capital Expenditure,Payments to Contractor,THE SIGN SHOP,16/07/2021,"2,232.00"
"Housing, Employment & Infrastructure",Inward Investment & Business Support,Capital Expenditure,Payments to Contractor,THE SIGN SHOP,13/07/2021,"2,335.00"
"Housing, Employment & Infrastructure",Inward Investment & Business Support,Capital Expenditure,Payments to Contractor,D B Music,16/07/2021,"4,000.00"
"Housing, Employment & Infrastructure",Inward Investment & Business Support,Employees,Training Expenses,Always Consult Ltd,28/07/2021,170
"Housing, Employment & Infrastructure",Inward Investment & Business Support,Employees,Training Expenses,IJP CONSULTANCY LIMITED,15/07/2021,170
"Housing, Employment & Infrastructure",Inward Investment & Business Support,Employees,Training Expenses,Connect Consultancy (Shropshire) Limited,28/07/2021,255
"Housing, Employment & Infrastructure",Inward Investment & Business Support,Supplies & Services,Marketing & Publicity,R F PHOTOGRAPHY,15/07/2021,200
"Housing, Employment & Infrastructure",Inward Investment & Business Support,Supplies & Services,Web Services,CGR Business Solutions Limited,29/07/2021,595
"Housing, Employment & Infrastructure",Inward Investment & Business Support,Supplies & Services,Consultancy,Priority Managed Services Ltd,15/07/2021,595
"Housing, Employment & Infrastructure",Inward Investment & Business Support,Supplies & Services,Consultancy,CGR Business Solutions Limited,29/07/2021,680
"Housing, Employment & Infrastructure",Inward Investment & Business Support,Supplies & Services,Consultancy,Elkro Limited,09/07/2021,1079.05
"Housing, Employment & Infrastructure",Inward Investment & Business Support,Supplies & Services,Other Grants (Expenses),ibd Business Advice Group Ltd,05/07/2021,1648.75
"Housing, Employment & Infrastructure",Inward Investment & Business Support,Supplies & Services,Other Grants (Expenses),YARRINGTON LIMITED,21/07/2021,3769
"Housing, Employment & Infrastructure",Inward Investment & Business Support,Supplies & Services,Other Grants (Expenses),YARRINGTON LIMITED,21/07/2021,4739
"Housing, Employment & Infrastructure",Inward Investment & Business Support,Supplies & Services,Other Grants (Expenses),YARRINGTON LIMITED,27/07/2021,9750
"Housing, Employment & Infrastructure",Inward Investment & Business Support,Supplies & Services,Other Grants (Expenses),Wrekin College,28/07/2021,15000
"Housing, Employment & Infrastructure",Inward Investment & Business Support,Supplies & Services,Other Grants (Expenses),Good2Great Ltd,19/07/2021,21310.14
"Housing, Employment & Infrastructure",Inward Investment & Business Support,Third Party Payments,Contribution To Other La's,SHROPSHIRE CHAMBER OF COMMERCE & ENTERPR,20/07/2021,4000
"Housing, Employment & Infrastructure",Local Plan,Supplies & Services,Research Surveys,Sacks Consulting,06/07/2021,3500
"Housing, Employment & Infrastructure",Local Plan,Supplies & Services,Research Surveys,AECOM INFRASTRUCTURE & ENVIRONMENT UK LTD,01/07/2021,5560.9
"Housing, Employment & Infrastructure",Private Sector Housing & Enforcement,Supplies & Services,Consultancy,The Oyster Partnership Ltd,23/07/2021,1080
"Housing, Employment & Infrastructure",Private Sector Housing & Enforcement,Supplies & Services,Consultancy,The Oyster Partnership Ltd,23/07/2021,1080
"Housing, Employment & Infrastructure",Private Sector Housing & Enforcement,Supplies & Services,Consultancy,The Oyster Partnership Ltd,07/07/2021,1080
"Housing, Employment & Infrastructure",Private Sector Housing & Enforcement,Supplies & Services,Consultancy,The Oyster Partnership Ltd,09/07/2021,1080
"Housing, Employment & Infrastructure",Private Sector Housing & Enforcement,Supplies & Services,Consultancy,The Oyster Partnership Ltd,23/07/2021,1155
"Housing, Employment & Infrastructure",Private Sector Housing & Enforcement,Supplies & Services,Consultancy,The Oyster Partnership Ltd,09/07/2021,1155
"Housing, Employment & Infrastructure",Private Sector Housing & Enforcement,Supplies & Services,Consultancy,The Oyster Partnership Ltd,23/07/2021,1155
"Housing, Employment & Infrastructure",Private Sector Housing & Enforcement,Supplies & Services,Consultancy,The Oyster Partnership Ltd,09/07/2021,1155
"Housing, Employment & Infrastructure",Private Sector Housing & Enforcement,Supplies & Services,Consultancy,The Oyster Partnership Ltd,23/07/2021,1190
"Housing, Employment & Infrastructure",Private Sector Housing & Enforcement,Supplies & Services,Consultancy,The Oyster Partnership Ltd,07/07/2021,1190
"Housing, Employment & Infrastructure",Private Sector Housing & Enforcement,Supplies & Services,Consultancy,The Oyster Partnership Ltd,07/07/2021,1190
"Housing, Employment & Infrastructure",Private Sector Housing & Enforcement,Supplies & Services,Consultancy,The Oyster Partnership Ltd,23/07/2021,1190
"Housing, Employment & Infrastructure",Private Sector Housing & Enforcement,Supplies & Services,Consultancy,The Oyster Partnership Ltd,09/07/2021,1190
"Housing, Employment & Infrastructure",Private Sector Housing & Enforcement,Supplies & Services,Consultancy,The Oyster Partnership Ltd,23/07/2021,1480
"Housing, Employment & Infrastructure",Private Sector Housing & Enforcement,Supplies & Services,Consultancy,The Oyster Partnership Ltd,23/07/2021,1480
Neighbourhood & Enforcement Services,Highways and Network Management,Capital Expenditure,Marketing / Advertising,THE MIDLAND NEWS ASSOCIATION LTD,21/07/2021,110.88
Neighbourhood & Enforcement Services,Highways and Network Management,Capital Expenditure,Marketing / Advertising,THE MIDLAND NEWS ASSOCIATION LTD,21/07/2021,194.04
Neighbourhood & Enforcement Services,Highways and Network Management,Capital Expenditure,Marketing / Advertising,THE MIDLAND NEWS ASSOCIATION LTD,21/07/2021,194.04
Neighbourhood & Enforcement Services,Highways and Network Management,Capital Expenditure,Marketing / Advertising,THE MIDLAND NEWS ASSOCIATION LTD,21/07/2021,221.76
Neighbourhood & Enforcement Services,Highways and Network Management,Capital Expenditure,Other Capital Expenditure,THE MIDLAND NEWS ASSOCIATION LTD,21/07/2021,720.72
Neighbourhood & Enforcement Services,Highways and Network Management,Capital Expenditure,External Professional Fees,Amey OW Ltd,21/07/2021,"1,097.35"
Neighbourhood & Enforcement Services,Highways and Network Management,Capital Expenditure,External Professional Fees,TJC ENVIRONMENTAL LIMITED,16/07/2021,"1,500.00"
Neighbourhood & Enforcement Services,Highways and Network Management,Capital Expenditure,External Professional Fees,GROUND INVESTIGATION & PILING LTD,05/07/2021,"8,933.80"
Neighbourhood & Enforcement Services,Highways and Network Management,Capital Expenditure,External Professional Fees,Amey OW Ltd,16/07/2021,"19,214.23"
Neighbourhood & Enforcement Services,Highways and Network Management,Premises-Related Expenditure,Electricity,West Mercia Energy (WME),22/07/2021,236.23
Neighbourhood & Enforcement Services,Highways and Network Management,Premises-Related Expenditure,Electricity,West Mercia Energy (WME),22/07/2021,253.54
Neighbourhood & Enforcement Services,Highways and Network Management,Supplies & Services,Advertising,THE MIDLAND NEWS ASSOCIATION LTD,16/07/2021,110.88
Neighbourhood & Enforcement Services,Highways and Network Management,Supplies & Services,Other Services,PUMP & PLANT SERVICES LTD,16/07/2021,162
Neighbourhood & Enforcement Services,Highways and Network Management,Supplies & Services,Consultancy,W A,16/07/2021,357.3
Neighbourhood & Enforcement Services,Highways and Network Management,Supplies & Services,Comp Hardware (Purch / Hire),CCS MEDIA LIMITED,26/07/2021,374.1
Neighbourhood & Enforcement Services,Highways and Network Management,Supplies & Services,Other Services,VEOLIA ES (UK) LTD ,16/07/2021,987.25
Neighbourhood & Enforcement Services,Highways and Network Management,Supplies & Services,Licences,PILLAR SOFTWARE LIMITED,15/07/2021,1325
Neighbourhood & Enforcement Services,Highways and Network Management,Supplies & Services,Consultancy,W A,16/07/2021,2034.56
Neighbourhood & Enforcement Services,Highways and Network Management,Supplies & Services,Other Services,VEOLIA ES (UK) LTD ,16/07/2021,2075
Neighbourhood & Enforcement Services,Highways and Network Management,Supplies & Services,Equipment - Purchase,RSK LAND & DEVELOPMENT LIMITED ,21/07/2021,2685
Neighbourhood & Enforcement Services,Highways and Network Management,Supplies & Services,Consultancy,W A,16/07/2021,3115.2
Neighbourhood & Enforcement Services,Highways and Network Management,Supplies & Services,Consultancy,W A,16/07/2021,3158.64
Neighbourhood & Enforcement Services,Highways and Network Management,Supplies & Services,Consultancy,W A,16/07/2021,3786.24
Neighbourhood & Enforcement Services,Highways and Network Management,Supplies & Services,Equipment - Hire,ENVIRONMENT AGENCY,19/07/2021,4166.67
Neighbourhood & Enforcement Services,Highways and Network Management,Supplies & Services,Consultancy,W A,16/07/2021,4394.12
Neighbourhood & Enforcement Services,Highways and Network Management,Supplies & Services,Consultancy,W A,16/07/2021,4408.91
Neighbourhood & Enforcement Services,Highways and Network Management,Supplies & Services,Consultancy,W A,16/07/2021,5022.4
Neighbourhood & Enforcement Services,Highways and Network Management,Supplies & Services,Consultancy,W A,16/07/2021,5294.48
Neighbourhood & Enforcement Services,Highways and Network Management,Supplies & Services,Consultancy,W A,16/07/2021,6492.76
Neighbourhood & Enforcement Services,Highways and Network Management,Supplies & Services,Consultancy,W A,16/07/2021,6775.68
Neighbourhood & Enforcement Services,Highways and Network Management,Supplies & Services,Consultancy,W A,16/07/2021,6889.68
Neighbourhood & Enforcement Services,Highways and Network Management,Supplies & Services,Consultancy,W A,16/07/2021,7440.64
Neighbourhood & Enforcement Services,Highways and Network Management,Supplies & Services,Consultancy,W A,16/07/2021,7556.9
Neighbourhood & Enforcement Services,Highways and Network Management,Supplies & Services,Other Services,MSM Hire Ltd,21/07/2021,75369.66
Neighbourhood & Enforcement Services,Highways and Network Management,Third Party Payments,Contractor Recharge,PRYSMIAN CABLES & SYSTEMS LTD,21/07/2021,72151.8
Neighbourhood & Enforcement Services,Highways and Network Management,Third Party Payments,Contractor Recharge,PRYSMIAN CABLES & SYSTEMS LTD,21/07/2021,99997.14
Neighbourhood & Enforcement Services,Highways and Network Management,Third Party Payments,Highways Contract - BBLP,Balfour Beatty Civils Limited,21/07/2021,1394630.11
Neighbourhood & Enforcement Services,Neighbourhood & Enforcement Services,Premises-Related Expenditure,Bed & Breakfast Charges,BROMFORD HOUSING ASSOCIATION LIMITED,10/07/2021,177.97
Neighbourhood & Enforcement Services,Neighbourhood & Enforcement Services,Premises-Related Expenditure,Leasehold Rents,GPS Property Shropshire LLP,15/07/2021,600
Neighbourhood & Enforcement Services,Neighbourhood & Enforcement Services,Premises-Related Expenditure,Leasehold Rents,Northwood (Hereford) Ltd,20/07/2021,610
Neighbourhood & Enforcement Services,Neighbourhood & Enforcement Services,Premises-Related Expenditure,Leasehold Rents,GPS Property Shropshire LLP,13/07/2021,650
Neighbourhood & Enforcement Services,Neighbourhood & Enforcement Services,Premises-Related Expenditure,General Rents,THE WREKIN HOUSING TRUST ,14/07/2021,1470.9
Neighbourhood & Enforcement Services,Neighbourhood & Enforcement Services,Premises-Related Expenditure,Leasehold Rents,THE WREKIN HOUSING TRUST ,28/07/2021,1720.29
Neighbourhood & Enforcement Services,Neighbourhood & Enforcement Services,Supplies & Services,Other Services,LOUDMOUTH EDUCATION & TRAINING LTD,29/07/2021,1060
Neighbourhood & Enforcement Services,Neighbourhood & Environmental Services,Employees,Recruitment Advertising,HAYMARKET MEDIA GROUP LTD ,29/07/2021,985
Neighbourhood & Enforcement Services,Neighbourhood & Environmental Services,Employees,Recruitment Advertising,HAYMARKET MEDIA GROUP LTD ,29/07/2021,985
Neighbourhood & Enforcement Services,Neighbourhood & Environmental Services,Premises-Related Expenditure,Grounds Maint - Playgrounds,R P Playground Services Ltd,01/07/2021,4950
Neighbourhood & Enforcement Services,Neighbourhood & Environmental Services,Supplies & Services,Sub Contractors,H RIVER MAINTENANCE,21/07/2021,150
Neighbourhood & Enforcement Services,Neighbourhood & Environmental Services,Supplies & Services,Marketing & Publicity,KEEP BRITAIN TIDY,29/07/2021,329
Neighbourhood & Enforcement Services,Neighbourhood & Environmental Services,Supplies & Services,Other Materials,KEEP BRITAIN TIDY,29/07/2021,329
Neighbourhood & Enforcement Services,Neighbourhood & Environmental Services,Supplies & Services,Sport Equip - Purchase,W LEISURE LTD,06/07/2021,902
Neighbourhood & Enforcement Services,Neighbourhood & Environmental Services,Supplies & Services,Sport Equip - Purchase,R T Limited,27/07/2021,910
Neighbourhood & Enforcement Services,Neighbourhood & Environmental Services,Third Party Payments,Private Contractors,EMERGE DESIGN LTD,26/07/2021,132
Neighbourhood & Enforcement Services,Neighbourhood & Environmental Services,Third Party Payments,Private Contractors,EMERGE DESIGN LTD,26/07/2021,425
Neighbourhood & Enforcement Services,Neighbourhood & Environmental Services,Third Party Payments,Contractor Recharge,Id verde,05/07/2021,405285.04
Neighbourhood & Enforcement Services,Neighbourhood & Environmental Services,Third Party Payments,Contractor Recharge,Id verde,19/07/2021,407978.87
Neighbourhood & Enforcement Services,Public Protection,Employees,Staff Training,Alpha Parking,21/07/2021,1390
Neighbourhood & Enforcement Services,Public Protection,Employees,Agency Supply Costs,Traffic Enforcement Centre,28/07/2021,2000
